Body Name,Body,Service Label,Service Code,CIPFA Detailed Expenditure Type,CIPFA Detailed Expenditure Code,Date,Transaction Number,Net Amount,Supplier Name
Nottinghamshire County Council,1111/1001,Surplus or Deficit from Trading Undertak,TRADING,Supplies & Services,DDA,10/05/2016,02-10001,"1,704.18",Hamelin Paperbrands Ltd
Nottinghamshire County Council,1111/1001,Surplus or Deficit from Trading Undertak,TRADING,Supplies & Services,DDA,10/05/2016,02-10001,"7,442.82",Hamelin Paperbrands Ltd
Nottinghamshire County Council,1111/1001,Surplus or Deficit from Trading Undertak,TRADING,Supplies & Services,DDA,18/05/2016,02-10001,"2,330.92",Hamelin Paperbrands Ltd
Nottinghamshire County Council,1111/1001,Surplus or Deficit from Trading Undertak,TRADING,Supplies & Services,DDA,18/05/2016,02-10001,"1,780.48",Hamelin Paperbrands Ltd
Nottinghamshire County Council,1111/1001,Surplus or Deficit from Trading Undertak,TRADING,Supplies & Services,DDA,13/05/2016,02-10001,"1,029.00",Flb Group Ltd
Nottinghamshire County Council,1111/1001,Surplus or Deficit from Trading Undertak,TRADING,Supplies & Services,DDA,10/05/2016,02-10001,549.08,Plastoreg Smidt Gmbh
Nottinghamshire County Council,1111/1001,Surplus or Deficit from Trading Undertak,TRADING,Supplies & Services,DDA,25/05/2016,02-10001,530.62,Plastoreg Smidt Gmbh
Nottinghamshire County Council,1111/1001,Surplus or Deficit from Trading Undertak,TRADING,Supplies & Services,DDA,10/05/2016,02-10001,"4,811.28",Henkel Loctite Adhesives Ltd
Nottinghamshire County Council,1111/1001,Surplus or Deficit from Trading Undertak,TRADING,Supplies & Services,DDA,13/05/2016,02-10001,"9,678.30",Henkel Loctite Adhesives Ltd
Nottinghamshire County Council,1111/1001,Surplus or Deficit from Trading Undertak,TRADING,Supplies & Services,DAA,23/05/2016,02-10001,628.4,Rollstore Ltd
Nottinghamshire County Council,1111/1001,Surplus or Deficit from Trading Undertak,TRADING,Supplies & Services,DAA,13/05/2016,02-10001,540,H-Squared Electronics Ltd
Nottinghamshire County Council,1111/1001,Surplus or Deficit from Trading Undertak,TRADING,Supplies & Services,DAA,10/05/2016,02-10001,"1,000.32",Bostik Ltd
Nottinghamshire County Council,1111/1001,Surplus or Deficit from Trading Undertak,TRADING,Supplies & Services,DAA,11/05/2016,02-10001,906,Reliance Medical Ltd
Nottinghamshire County Council,1111/1001,Surplus or Deficit from Trading Undertak,TRADING,Supplies & Services,DFA,25/05/2016,02-10001,"6,090.07",Advanced Ticketing Limited
Nottinghamshire County Council,1111/1001,Surplus or Deficit from Trading Undertak,TRADING,Supplies & Services,DAA,17/05/2016,02-10001,540,Banner
Nottinghamshire County Council,1111/1001,Surplus or Deficit from Trading Undertak,TRADING,Supplies & Services,DAA,13/05/2016,02-10001,899,Premier Paper Group Ltd
Nottinghamshire County Council,1111/1001,Surplus or Deficit from Trading Undertak,TRADING,Supplies & Services,DAA,13/05/2016,02-10001,518.7,Heritage Envelopes Ltd
Nottinghamshire County Council,1111/1001,Surplus or Deficit from Trading Undertak,TRADING,Supplies & Services,DAA,04/05/2016,02-10001,"1,785.15",Antalis Key Accounts
Nottinghamshire County Council,1111/1001,Surplus or Deficit from Trading Undertak,TRADING,Supplies & Services,DAA,09/05/2016,02-10001,512.1,Antalis Key Accounts
Nottinghamshire County Council,1111/1001,Surplus or Deficit from Trading Undertak,TRADING,Supplies & Services,DAA,25/05/2016,02-10001,"1,102.15",Antalis Key Accounts
Nottinghamshire County Council,1111/1001,Surplus or Deficit from Trading Undertak,TRADING,Premises Related,BAA,11/05/2016,02-10001,"1,771.24",Flexiform Business Furniture
Nottinghamshire County Council,1111/1001,Surplus or Deficit from Trading Undertak,TRADING,Premises Related,BJA,11/05/2016,02-10001,"1,110.35",Kimberley Clark European Services Ltd
Nottinghamshire County Council,1111/1001,Surplus or Deficit from Trading Undertak,TRADING,Premises Related,BJA,20/05/2016,02-10001,"1,229.34",Kimberley Clark European Services Ltd
Nottinghamshire County Council,1111/1001,Surplus or Deficit from Trading Undertak,TRADING,Premises Related,BJA,27/05/2016,02-10001,630,Kimberley Clark European Services Ltd
Nottinghamshire County Council,1111/1001,Surplus or Deficit from Trading Undertak,TRADING,Premises Related,BJA,13/05/2016,02-10001,673.06,Ecover (Uk) Ltd
Nottinghamshire County Council,1111/1001,Surplus or Deficit from Trading Undertak,TRADING,Premises Related,BJA,05/05/2016,02-10001,"1,979.44",Cromwell Polythene Ltd
Nottinghamshire County Council,1111/1001,Surplus or Deficit from Trading Undertak,TRADING,Premises Related,BJA,18/05/2016,02-10001,630.02,3M (United Kingdom) Plc
Nottinghamshire County Council,1111/1001,Surplus or Deficit from Trading Undertak,TRADING,Premises Related,BJA,13/05/2016,02-10001,715.5,Evans Vanodine International Ltd
Nottinghamshire County Council,1111/1001,Surplus or Deficit from Trading Undertak,TRADING,Premises Related,BJA,10/05/2016,02-10001,697.4,Johnson Diversey
Nottinghamshire County Council,1111/1001,Surplus or Deficit from Trading Undertak,TRADING,Premises Related,BJA,17/05/2016,02-10001,"2,294.14",Johnson Diversey
Nottinghamshire County Council,1111/1001,Surplus or Deficit from Trading Undertak,TRADING,Premises Related,BJA,10/05/2016,02-10001,"3,355.20",Premiere Products (James Briggs Ltd)
Nottinghamshire County Council,1111/1001,Surplus or Deficit from Trading Undertak,TRADING,Premises Related,BJA,10/05/2016,02-10001,"2,755.48",Premiere Products (James Briggs Ltd)
Nottinghamshire County Council,1111/1001,Surplus or Deficit from Trading Undertak,TRADING,Premises Related,BJA,13/05/2016,02-10001,801.64,Premiere Products (James Briggs Ltd)
Nottinghamshire County Council,1111/1001,Surplus or Deficit from Trading Undertak,TRADING,Premises Related,BJA,27/05/2016,02-10001,"1,659.20",Premiere Products (James Briggs Ltd)
Nottinghamshire County Council,1111/1001,Surplus or Deficit from Trading Undertak,TRADING,Premises Related,BJA,09/05/2016,02-10001,880.06,Numatic International Ltd
Nottinghamshire County Council,1111/1001,Surplus or Deficit from Trading Undertak,TRADING,Supplies & Services,DAA,20/05/2016,02-10001,829.08,W V Howe (Hardware) Ltd
Nottinghamshire County Council,1111/1001,Surplus or Deficit from Trading Undertak,TRADING,Supplies & Services,DAA,20/05/2016,02-10001,753.66,Catering Supplies (Wakefield) Ltd
Nottinghamshire County Council,1111/1001,Surplus or Deficit from Trading Undertak,TRADING,Supplies & Services,DAA,20/05/2016,02-10001,968.6,Catering Supplies (Wakefield) Ltd
Nottinghamshire County Council,1111/1001,Surplus or Deficit from Trading Undertak,TRADING,Supplies & Services,DAA,05/05/2016,02-10001,"5,374.40",Sca Hygiene
Nottinghamshire County Council,1111/1001,Surplus or Deficit from Trading Undertak,TRADING,Supplies & Services,DAA,05/05/2016,02-10001,"4,430.60",Sca Hygiene
Nottinghamshire County Council,1111/1001,Surplus or Deficit from Trading Undertak,TRADING,Supplies & Services,DAA,27/05/2016,02-10001,628.24,Bce (Distributers) Ltd
Nottinghamshire County Council,1111/1001,Surplus or Deficit from Trading Undertak,TRADING,Supplies & Services,DBA,04/05/2016,02-10001,527.73,North West Tea Service Ltd
Nottinghamshire County Council,1111/1001,Surplus or Deficit from Trading Undertak,TRADING,Supplies & Services,DAA,18/05/2016,02-10001,658.73,Dualit Ltd
Nottinghamshire County Council,1111/1001,Surplus or Deficit from Trading Undertak,TRADING,Supplies & Services,DCA,04/05/2016,02-10001,977.85,Shermond
Nottinghamshire County Council,1111/1001,Surplus or Deficit from Trading Undertak,TRADING,Supplies & Services,DKA,05/05/2016,02-10001,689.7,Bunzl Cleaning & Hygiene Supplies
Nottinghamshire County Council,1111/1001,Surplus or Deficit from Trading Undertak,TRADING,Supplies & Services,DKA,05/05/2016,02-10001,555.78,Bunzl Cleaning & Hygiene Supplies
Nottinghamshire County Council,1111/1001,Surplus or Deficit from Trading Undertak,TRADING,Supplies & Services,DKA,13/05/2016,02-10001,"1,075.80",Bunzl Cleaning & Hygiene Supplies
Nottinghamshire County Council,1111/1001,Surplus or Deficit from Trading Undertak,TRADING,Supplies & Services,DKA,13/05/2016,02-10001,817.6,Bunzl Cleaning & Hygiene Supplies
Nottinghamshire County Council,1111/1001,Surplus or Deficit from Trading Undertak,TRADING,Supplies & Services,DKA,13/05/2016,02-10001,658.67,Bunzl Cleaning & Hygiene Supplies
Nottinghamshire County Council,1111/1001,Surplus or Deficit from Trading Undertak,TRADING,Supplies & Services,DKA,18/05/2016,02-10001,538.4,Bunzl Cleaning & Hygiene Supplies
Nottinghamshire County Council,1111/1001,Surplus or Deficit from Trading Undertak,TRADING,Supplies & Services,DKA,20/05/2016,02-10001,"1,456.28",Bunzl Cleaning & Hygiene Supplies
Nottinghamshire County Council,1111/1001,Surplus or Deficit from Trading Undertak,TRADING,Supplies & Services,DKA,27/05/2016,02-10001,534.07,Bunzl Cleaning & Hygiene Supplies
Nottinghamshire County Council,1111/1001,Surplus or Deficit from Trading Undertak,TRADING,Supplies & Services,DKA,27/05/2016,02-10001,923.2,Bunzl Cleaning & Hygiene Supplies
Nottinghamshire County Council,1111/1001,Surplus or Deficit from Trading Undertak,TRADING,Supplies & Services,DAA,10/05/2016,02-10001,"4,627.80",R Scott & Sons Ltd
Nottinghamshire County Council,1111/1001,Surplus or Deficit from Trading Undertak,TRADING,Supplies & Services,DAA,10/05/2016,02-10001,"1,807.00",R Scott & Sons Ltd
Nottinghamshire County Council,1111/1001,Surplus or Deficit from Trading Undertak,TRADING,Supplies & Services,DAA,31/05/2016,02-10001,741.1,R Scott & Sons Ltd
Nottinghamshire County Council,1111/1001,Surplus or Deficit from Trading Undertak,TRADING,Supplies & Services,DAA,09/05/2016,02-10001,"2,870.90",Office Innovations
Nottinghamshire County Council,1111/1001,Surplus or Deficit from Trading Undertak,TRADING,Supplies & Services,DAA,27/05/2016,02-10001,"3,116.00",Office Innovations
Nottinghamshire County Council,1111/1001,Surplus or Deficit from Trading Undertak,TRADING,Supplies & Services,DAA,04/05/2016,02-10001,"1,727.30",Principal Furniture
Nottinghamshire County Council,1111/1001,Surplus or Deficit from Trading Undertak,TRADING,Supplies & Services,DAA,20/05/2016,02-10001,524.25,Principal Furniture
Nottinghamshire County Council,1111/1001,Surplus or Deficit from Trading Undertak,TRADING,Supplies & Services,DAA,11/05/2016,02-10001,668.21,Advanced Moulds Ltd
Nottinghamshire County Council,1111/1001,Surplus or Deficit from Trading Undertak,TRADING,Supplies & Services,DAA,04/05/2016,02-10001,566.9,Combined Office Interiors Ltd
Nottinghamshire County Council,1111/1001,Surplus or Deficit from Trading Undertak,TRADING,Supplies & Services,DAA,20/05/2016,02-10001,510,Mardel Office Interiors
Nottinghamshire County Council,1111/1001,Surplus or Deficit from Trading Undertak,TRADING,Supplies & Services,DAA,27/05/2016,02-10001,520.26,Hille Education Products Ltd
Nottinghamshire County Council,1111/1001,Surplus or Deficit from Trading Undertak,TRADING,Supplies & Services,DAA,11/05/2016,02-10001,842.68,Denis Rawlins Ltd
Nottinghamshire County Council,1111/1001,Surplus or Deficit from Trading Undertak,TRADING,Supplies & Services,DAA,04/05/2016,02-10001,689.2,Kent County Supplies
Nottinghamshire County Council,1111/1001,Surplus or Deficit from Trading Undertak,TRADING,Supplies & Services,DAA,04/05/2016,02-10001,"1,779.80",Kent County Supplies
Nottinghamshire County Council,1111/1001,Surplus or Deficit from Trading Undertak,TRADING,Supplies & Services,DAA,10/05/2016,02-10001,"2,960.10",Kent County Supplies
Nottinghamshire County Council,1111/1001,Surplus or Deficit from Trading Undertak,TRADING,Supplies & Services,DAA,13/05/2016,02-10001,"1,154.00",Grosvenor House Papers Ltd
Nottinghamshire County Council,1111/1001,Surplus or Deficit from Trading Undertak,TRADING,Supplies & Services,DAA,13/05/2016,02-10001,"1,159.15",Newell Rubbermaid
Nottinghamshire County Council,1111/1001,Surplus or Deficit from Trading Undertak,TRADING,Supplies & Services,DAA,13/05/2016,02-10001,"1,707.76",Newell Rubbermaid
Nottinghamshire County Council,1111/1001,Surplus or Deficit from Trading Undertak,TRADING,Supplies & Services,DAA,20/05/2016,02-10001,"1,398.64",Newell Rubbermaid
Nottinghamshire County Council,1111/1001,Surplus or Deficit from Trading Undertak,TRADING,Supplies & Services,DAA,20/05/2016,02-10001,"3,212.51",Newell Rubbermaid
Nottinghamshire County Council,1111/1001,Surplus or Deficit from Trading Undertak,TRADING,Supplies & Services,DAA,09/05/2016,02-10001,"1,958.42",Staedtler (Uk) Ltd
Nottinghamshire County Council,1111/1001,Surplus or Deficit from Trading Undertak,TRADING,Supplies & Services,DAA,11/05/2016,02-10001,"4,436.24",Staedtler (Uk) Ltd
Nottinghamshire County Council,1111/1001,Surplus or Deficit from Trading Undertak,TRADING,Supplies & Services,DAA,20/05/2016,02-10001,722.97,Staedtler (Uk) Ltd
Nottinghamshire County Council,1111/1001,Surplus or Deficit from Trading Undertak,TRADING,Supplies & Services,DAA,27/05/2016,02-10001,"2,309.66",Staedtler (Uk) Ltd
Nottinghamshire County Council,1111/1001,Surplus or Deficit from Trading Undertak,TRADING,Supplies & Services,DAA,11/05/2016,02-10001,807.2,Bic U.K. Ltd
Nottinghamshire County Council,1111/1001,Surplus or Deficit from Trading Undertak,TRADING,Supplies & Services,DAA,17/05/2016,02-10001,637,Edding Uk Ltd
Nottinghamshire County Council,1111/1001,Surplus or Deficit from Trading Undertak,TRADING,Supplies & Services,DAA,17/05/2016,02-10001,840.65,Allen Glenold Ltd
Nottinghamshire County Council,1111/1001,Surplus or Deficit from Trading Undertak,TRADING,Supplies & Services,DAA,17/05/2016,02-10001,"1,778.09",Allen Glenold Ltd
Nottinghamshire County Council,1111/1001,Surplus or Deficit from Trading Undertak,TRADING,Supplies & Services,DAA,05/05/2016,02-10001,"1,250.83",Slater Harrison & Co Ltd
Nottinghamshire County Council,1111/1001,Surplus or Deficit from Trading Undertak,TRADING,Supplies & Services,DAA,09/05/2016,02-10001,"1,309.24",Slater Harrison & Co Ltd
Nottinghamshire County Council,1111/1001,Surplus or Deficit from Trading Undertak,TRADING,Supplies & Services,DAA,09/05/2016,02-10001,"1,497.20",Slater Harrison & Co Ltd
Nottinghamshire County Council,1111/1001,Surplus or Deficit from Trading Undertak,TRADING,Supplies & Services,DAA,18/05/2016,02-10001,"1,047.74",Slater Harrison & Co Ltd
Nottinghamshire County Council,1111/1001,Surplus or Deficit from Trading Undertak,TRADING,Supplies & Services,DAA,18/05/2016,02-10001,"1,078.84",Slater Harrison & Co Ltd
Nottinghamshire County Council,1111/1001,Surplus or Deficit from Trading Undertak,TRADING,Supplies & Services,DAA,04/05/2016,02-10001,626.24,E V Naish Ltd
Nottinghamshire County Council,1111/1001,Surplus or Deficit from Trading Undertak,TRADING,Supplies & Services,DAA,27/05/2016,02-10001,543.68,Creativity International Ltd
Nottinghamshire County Council,1111/1001,Surplus or Deficit from Trading Undertak,TRADING,Supplies & Services,DAA,10/05/2016,02-10001,581.98,Eastpoint
Nottinghamshire County Council,1111/1001,Surplus or Deficit from Trading Undertak,TRADING,Supplies & Services,DAA,18/05/2016,02-10001,"2,630.88",Eastpoint
Nottinghamshire County Council,1111/1001,Surplus or Deficit from Trading Undertak,TRADING,Supplies & Services,DAA,18/05/2016,02-10001,"1,879.96",Eastpoint
Nottinghamshire County Council,1111/1001,Surplus or Deficit from Trading Undertak,TRADING,Supplies & Services,DAA,18/05/2016,02-10001,"3,300.00",Eastpoint
Nottinghamshire County Council,1111/1001,Surplus or Deficit from Trading Undertak,TRADING,Supplies & Services,DAA,20/05/2016,02-10001,500.15,Eastpoint
Nottinghamshire County Council,1111/1001,Surplus or Deficit from Trading Undertak,TRADING,Supplies & Services,DAA,11/05/2016,02-10001,"1,620.00",Deco-Pak Ltd
Nottinghamshire County Council,1111/1001,Surplus or Deficit from Trading Undertak,TRADING,Supplies & Services,DAA,31/05/2016,02-10001,525.7,Brian Clegg (Educational Products) Ltd
Nottinghamshire County Council,1111/1001,Surplus or Deficit from Trading Undertak,TRADING,Supplies & Services,DAA,31/05/2016,02-10001,586.86,Brian Clegg (Educational Products) Ltd
Nottinghamshire County Council,1111/1001,Surplus or Deficit from Trading Undertak,TRADING,Supplies & Services,DAA,31/05/2016,02-10001,"1,562.88",Brian Clegg (Educational Products) Ltd
Nottinghamshire County Council,1111/1001,Surplus or Deficit from Trading Undertak,TRADING,Supplies & Services,DAA,31/05/2016,02-10001,758.64,Brian Clegg (Educational Products) Ltd
Nottinghamshire County Council,1111/1001,Surplus or Deficit from Trading Undertak,TRADING,Supplies & Services,DAA,31/05/2016,02-10001,"1,272.60",Brian Clegg (Educational Products) Ltd
Nottinghamshire County Council,1111/1001,Surplus or Deficit from Trading Undertak,TRADING,Supplies & Services,DAA,11/05/2016,02-10001,518.6,Commotion Technology Supplies
Nottinghamshire County Council,1111/1001,Surplus or Deficit from Trading Undertak,TRADING,Supplies & Services,DAA,04/05/2016,02-10001,"1,136.50",Monarch Computer Furniture
Nottinghamshire County Council,1111/1001,Surplus or Deficit from Trading Undertak,TRADING,Supplies & Services,DAA,04/05/2016,02-10001,787.74,Monarch Computer Furniture
Nottinghamshire County Council,1111/1001,Surplus or Deficit from Trading Undertak,TRADING,Supplies & Services,DAA,05/05/2016,02-10001,"1,197.79",Monarch Computer Furniture
Nottinghamshire County Council,1111/1001,Surplus or Deficit from Trading Undertak,TRADING,Supplies & Services,DAA,17/05/2016,02-10001,550.18,Monarch Computer Furniture
Nottinghamshire County Council,1111/1001,Surplus or Deficit from Trading Undertak,TRADING,Supplies & Services,DFA,06/05/2016,02-10001,849.58,Legion Distribution Services Ltd
Nottinghamshire County Council,1111/1001,Surplus or Deficit from Trading Undertak,TRADING,Employee Related,AAA,06/05/2016,02-10001,915.7,A&T Active Recruitment
Nottinghamshire County Council,1111/1001,Surplus or Deficit from Trading Undertak,TRADING,Employee Related,AAA,23/05/2016,02-10001,"1,060.52",A&T Active Recruitment
Nottinghamshire County Council,1111/1001,Surplus or Deficit from Trading Undertak,TRADING,Employee Related,AAA,23/05/2016,02-10001,813.48,A&T Active Recruitment
Nottinghamshire County Council,1111/1001,Surplus or Deficit from Trading Undertak,TRADING,Employee Related,AAA,23/05/2016,02-10001,"1,368.73",A&T Active Recruitment
Nottinghamshire County Council,1111/1001,Surplus or Deficit from Trading Undertak,TRADING,Employee Related,AAA,25/05/2016,02-10001,"1,124.14",A&T Active Recruitment
Nottinghamshire County Council,1111/1001,Children and Young People,CYP,Premises Related,BCA,20/05/2016,02-17544,728.98,Healdswood Infant & Nursery School
Nottinghamshire County Council,1111/1001,Children and Young People,CYP,Premises Related,BCA,26/05/2016,02-17663,"1,681.00",High Park Industries Ltd
Nottinghamshire County Council,1111/1001,Children and Young People,CYP,Premises Related,BCA,31/05/2016,02-17772,680.6,High Park Industries Ltd
Nottinghamshire County Council,1111/1001,Children and Young People,CYP,Premises Related,BDA,03/05/2016,02-10001,859.8,Sheffield Hallam Univ Enterprises L
Nottinghamshire County Council,1111/1001,Children and Young People,CYP,Premises Related,BDA,04/05/2016,02-10002,"3,009.22",Making It! Enterprises Ltd
Nottinghamshire County Council,1111/1001,Children and Young People,CYP,Premises Related,BDA,04/05/2016,02-10003,"5,862.49",Making It! Enterprises Ltd
Nottinghamshire County Council,1111/1001,Children and Young People,CYP,Premises Related,BDA,04/05/2016,02-10004,605,High Peak Borough Council
Nottinghamshire County Council,1111/1001,Children and Young People,CYP,Premises Related,BDA,04/05/2016,02-10005,"4,768.26",Making It! Enterprises Ltd
Nottinghamshire County Council,1111/1001,Children and Young People,CYP,Premises Related,BDA,04/05/2016,02-10007,606.67,J Sedoo t/a Sedoo Investments
Nottinghamshire County Council,1111/1001,Children and Young People,CYP,Premises Related,BDA,04/05/2016,02-10008,606.67,J Sedoo t/a Sedoo Investments
Nottinghamshire County Council,1111/1001,Children and Young People,CYP,Premises Related,BDA,04/05/2016,02-10009,606.67,J Sedoo t/a Sedoo Investments
Nottinghamshire County Council,1111/1001,Children and Young People,CYP,Premises Related,BDA,04/05/2016,02-10012,650,Ashfield District Council
Nottinghamshire County Council,1111/1001,Children and Young People,CYP,Premises Related,BDA,04/05/2016,02-10013,675,[Redacted]
Nottinghamshire County Council,1111/1001,Children and Young People,CYP,Premises Related,BDA,04/05/2016,02-10014,"1,559.56",Refuge
Nottinghamshire County Council,1111/1001,Children and Young People,CYP,Premises Related,BDA,11/05/2016,02-10015,650,Ashfield District Council
Nottinghamshire County Council,1111/1001,Children and Young People,CYP,Premises Related,BDA,11/05/2016,02-10016,"1,757.14",Framework Housing Association
Nottinghamshire County Council,1111/1001,Children and Young People,CYP,Premises Related,BDA,11/05/2016,02-17073,"20,000.00",Mansfield District Council
Nottinghamshire County Council,1111/1001,Children and Young People,CYP,Premises Related,BDA,11/05/2016,02-17086,"2,509.39",Everyone Active (HO)
Nottinghamshire County Council,1111/1001,Children and Young People,CYP,Premises Related,BDA,18/05/2016,02-17375,"2,149.40",Everyone Active (HO)
Nottinghamshire County Council,1111/1001,Children and Young People,CYP,Premises Related,BDA,20/05/2016,02-17484,800,PB UK Ltd
Nottinghamshire County Council,1111/1001,Children and Young People,CYP,Premises Related,BDA,20/05/2016,02-17529,566.65,Ransomwood Estates Ltd
Nottinghamshire County Council,1111/1001,Children and Young People,CYP,Premises Related,BDA,27/05/2016,02-17741,544,Ransomwood Estates Ltd
Nottinghamshire County Council,1111/1001,Children and Young People,CYP,Premises Related,BFA,25/05/2016,02-17651,583.86,Abbey Road Primary School
Nottinghamshire County Council,1111/1001,Children and Young People,CYP,Premises Related,BJA,04/05/2016,02-16940,629.46,Bassetlaw District Council
Nottinghamshire County Council,1111/1001,Children and Young People,CYP,Premises Related,BJA,24/05/2016,02-17610,763.88,Broxtowe Borough Council
Nottinghamshire County Council,1111/1001,Children and Young People,CYP,Premises Related,BJA,27/05/2016,02-16980,563.33,Solutions 4 Cleaning Ltd
Nottinghamshire County Council,1111/1001,Children and Young People,CYP,Premises Related,BJA,27/05/2016,02-16982,975.35,Solutions 4 Cleaning Ltd
Nottinghamshire County Council,1111/1001,Children and Young People,CYP,Premises Related,BJA,27/05/2016,02-16983,892.32,Solutions 4 Cleaning Ltd
Nottinghamshire County Council,1111/1001,Children and Young People,CYP,Transport Related,CCA,04/05/2016,02-10373,"2,299.86",F4Control Ltd (t/a First4care)
Nottinghamshire County Council,1111/1001,Children and Young People,CYP,Transport Related,CCA,04/05/2016,02-10377,"1,566.25",D G Private Hire Ltd
Nottinghamshire County Council,1111/1001,Children and Young People,CYP,Transport Related,CCA,04/05/2016,02-10380,"1,447.50",Taxicover Uk Ltd
Nottinghamshire County Council,1111/1001,Children and Young People,CYP,Transport Related,CCA,04/05/2016,02-10381,"2,370.00",Taxicover Uk Ltd
Nottinghamshire County Council,1111/1001,Children and Young People,CYP,Transport Related,CCA,04/05/2016,02-10382,"2,181.60",Taxicover Uk Ltd
Nottinghamshire County Council,1111/1001,Children and Young People,CYP,Transport Related,CCA,04/05/2016,02-10383,"2,088.68",Taxicover Uk Ltd
Nottinghamshire County Council,1111/1001,Children and Young People,CYP,Transport Related,CCA,04/05/2016,02-10384,"2,188.67",Taxicover Uk Ltd
Nottinghamshire County Council,1111/1001,Children and Young People,CYP,Transport Related,CCA,04/05/2016,02-10385,"1,950.00",Taxicover Uk Ltd
Nottinghamshire County Council,1111/1001,Children and Young People,CYP,Transport Related,CCA,04/05/2016,02-10386,"1,494.00",Taxicover Uk Ltd
Nottinghamshire County Council,1111/1001,Children and Young People,CYP,Transport Related,CCA,04/05/2016,02-10387,"1,589.00",Taxicover Uk Ltd
Nottinghamshire County Council,1111/1001,Children and Young People,CYP,Transport Related,CCA,04/05/2016,02-10388,"1,840.00",Taxicover Uk Ltd
Nottinghamshire County Council,1111/1001,Children and Young People,CYP,Transport Related,CCA,04/05/2016,02-10389,"1,840.00",Taxicover Uk Ltd
Nottinghamshire County Council,1111/1001,Children and Young People,CYP,Transport Related,CCA,04/05/2016,02-10391,"1,722.05",Taxicover Uk Ltd
Nottinghamshire County Council,1111/1001,Children and Young People,CYP,Transport Related,CCA,04/05/2016,02-10392,"1,544.29",Taxicover Uk Ltd
Nottinghamshire County Council,1111/1001,Children and Young People,CYP,Transport Related,CCA,04/05/2016,02-10393,"1,643.18",Taxicover Uk Ltd
Nottinghamshire County Council,1111/1001,Children and Young People,CYP,Transport Related,CCA,04/05/2016,02-10394,"1,866.48",Taxicover Uk Ltd
Nottinghamshire County Council,1111/1001,Children and Young People,CYP,Transport Related,CCA,04/05/2016,02-10395,"1,733.16",Taxicover Uk Ltd
Nottinghamshire County Council,1111/1001,Children and Young People,CYP,Transport Related,CCA,04/05/2016,02-10396,"1,580.00",Taxicover Uk Ltd
Nottinghamshire County Council,1111/1001,Children and Young People,CYP,Transport Related,CCA,04/05/2016,02-10397,"1,098.25",Southside Cars
Nottinghamshire County Council,1111/1001,Children and Young People,CYP,Transport Related,CCA,04/05/2016,02-10398,"1,198.75",Southside Cars
Nottinghamshire County Council,1111/1001,Children and Young People,CYP,Transport Related,CCA,04/05/2016,02-10399,"1,230.00",Southside Cars
Nottinghamshire County Council,1111/1001,Children and Young People,CYP,Transport Related,CCA,04/05/2016,02-10400,"1,380.00",Southside Cars
Nottinghamshire County Council,1111/1001,Children and Young People,CYP,Transport Related,CCA,04/05/2016,02-10401,"1,012.00",Southside Cars
Nottinghamshire County Council,1111/1001,Children and Young People,CYP,Transport Related,CCA,04/05/2016,02-10402,816.08,Southside Cars
Nottinghamshire County Council,1111/1001,Children and Young People,CYP,Transport Related,CCA,04/05/2016,02-10404,700,Southside Cars
Nottinghamshire County Council,1111/1001,Children and Young People,CYP,Transport Related,CCA,04/05/2016,02-10408,"1,467.93",All Wayz Travel
Nottinghamshire County Council,1111/1001,Children and Young People,CYP,Transport Related,CCA,04/05/2016,02-10410,"2,677.50",Johnson Bros Tours Ltd
Nottinghamshire County Council,1111/1001,Children and Young People,CYP,Transport Related,CCA,04/05/2016,02-10411,"1,282.93",D G Private Hire Ltd
Nottinghamshire County Council,1111/1001,Children and Young People,CYP,Transport Related,CCA,04/05/2016,02-10412,"1,398.65",D G Private Hire Ltd
Nottinghamshire County Council,1111/1001,Children and Young People,CYP,Transport Related,CCA,04/05/2016,02-10414,"1,417.50",Fozcabs Newark Taxis
Nottinghamshire County Council,1111/1001,Children and Young People,CYP,Transport Related,CCA,04/05/2016,02-10415,"1,199.88",Fozcabs Newark Taxis
Nottinghamshire County Council,1111/1001,Children and Young People,CYP,Transport Related,CCA,04/05/2016,02-10416,506,Fozcabs Newark Taxis
Nottinghamshire County Council,1111/1001,Children and Young People,CYP,Transport Related,CCA,04/05/2016,02-10418,"1,353.22",Fozcabs Newark Taxis
Nottinghamshire County Council,1111/1001,Children and Young People,CYP,Transport Related,CCA,04/05/2016,02-10421,"1,666.50",Horizon Travel
Nottinghamshire County Council,1111/1001,Children and Young People,CYP,Transport Related,CCA,04/05/2016,02-10422,"1,317.33",Horizon Travel
Nottinghamshire County Council,1111/1001,Children and Young People,CYP,Transport Related,CCA,04/05/2016,02-10425,630,Shelleys Taxis Ltd
Nottinghamshire County Council,1111/1001,Children and Young People,CYP,Transport Related,CCA,04/05/2016,02-10426,825,Shelleys Taxis Ltd
Nottinghamshire County Council,1111/1001,Children and Young People,CYP,Transport Related,CCA,04/05/2016,02-10427,"1,051.93",D G Private Hire Ltd
Nottinghamshire County Council,1111/1001,Children and Young People,CYP,Transport Related,CCA,04/05/2016,02-10428,"1,477.63",D G Private Hire Ltd
Nottinghamshire County Council,1111/1001,Children and Young People,CYP,Transport Related,CCA,04/05/2016,02-10429,"1,616.00",D G Private Hire Ltd
Nottinghamshire County Council,1111/1001,Children and Young People,CYP,Transport Related,CCA,04/05/2016,02-10430,"1,131.20",D G Private Hire Ltd
Nottinghamshire County Council,1111/1001,Children and Young People,CYP,Transport Related,CCA,04/05/2016,02-10431,736.56,D G Private Hire Ltd
Nottinghamshire County Council,1111/1001,Children and Young People,CYP,Transport Related,CCA,04/05/2016,02-10432,660,D G Private Hire Ltd
Nottinghamshire County Council,1111/1001,Children and Young People,CYP,Transport Related,CCA,04/05/2016,02-10433,660,D G Private Hire Ltd
Nottinghamshire County Council,1111/1001,Children and Young People,CYP,Transport Related,CCA,04/05/2016,02-10434,"1,120.00",D G Private Hire Ltd
Nottinghamshire County Council,1111/1001,Children and Young People,CYP,Transport Related,CCA,04/05/2016,02-10435,"1,778.00",Marshalls Of Sutton On Trent Ltd
Nottinghamshire County Council,1111/1001,Children and Young People,CYP,Transport Related,CCA,04/05/2016,02-10448,"3,840.00",Freeway Coaches Ltd
Nottinghamshire County Council,1111/1001,Children and Young People,CYP,Transport Related,CCA,04/05/2016,02-10455,"1,347.00",L A Travel
Nottinghamshire County Council,1111/1001,Children and Young People,CYP,Transport Related,CCA,04/05/2016,02-10457,504.11,Diamond Cars
Nottinghamshire County Council,1111/1001,Children and Young People,CYP,Transport Related,CCA,04/05/2016,02-10532,"1,442.65",Midfield Travel
Nottinghamshire County Council,1111/1001,Children and Young People,CYP,Transport Related,CCA,05/05/2016,02-10633,747,Mars Cars Ltd
Nottinghamshire County Council,1111/1001,Children and Young People,CYP,Transport Related,CCA,05/05/2016,02-10638,"1,314.50",Arrow Specialised Transport Ltd
Nottinghamshire County Council,1111/1001,Children and Young People,CYP,Transport Related,CCA,05/05/2016,02-10639,599.55,Arrow Specialised Transport Ltd
Nottinghamshire County Council,1111/1001,Children and Young People,CYP,Transport Related,CCA,05/05/2016,02-10640,"1,155.00",Arrow Specialised Transport Ltd
Nottinghamshire County Council,1111/1001,Children and Young People,CYP,Transport Related,CCA,05/05/2016,02-10641,"1,078.00",Arrow Specialised Transport Ltd
Nottinghamshire County Council,1111/1001,Children and Young People,CYP,Transport Related,CCA,05/05/2016,02-10643,"1,430.00",Arrow Specialised Transport Ltd
Nottinghamshire County Council,1111/1001,Children and Young People,CYP,Transport Related,CCA,05/05/2016,02-10644,"1,122.00",Arrow Specialised Transport Ltd
Nottinghamshire County Council,1111/1001,Children and Young People,CYP,Transport Related,CCA,05/05/2016,02-10645,"1,595.00",Arrow Specialised Transport Ltd
Nottinghamshire County Council,1111/1001,Children and Young People,CYP,Transport Related,CCA,05/05/2016,02-10646,"1,232.00",Arrow Specialised Transport Ltd
Nottinghamshire County Council,1111/1001,Children and Young People,CYP,Transport Related,CCA,05/05/2016,02-10647,"1,177.00",Arrow Specialised Transport Ltd
Nottinghamshire County Council,1111/1001,Children and Young People,CYP,Transport Related,CCA,05/05/2016,02-10648,"1,314.50",Arrow Specialised Transport Ltd
Nottinghamshire County Council,1111/1001,Children and Young People,CYP,Transport Related,CCA,05/05/2016,02-10649,959.2,Arrow Specialised Transport Ltd
Nottinghamshire County Council,1111/1001,Children and Young People,CYP,Transport Related,CCA,05/05/2016,02-10650,"1,045.00",Arrow Specialised Transport Ltd
Nottinghamshire County Council,1111/1001,Children and Young People,CYP,Transport Related,CCA,05/05/2016,02-10651,"1,199.00",Arrow Specialised Transport Ltd
Nottinghamshire County Council,1111/1001,Children and Young People,CYP,Transport Related,CCA,05/05/2016,02-10652,"1,485.00",Arrow Specialised Transport Ltd
Nottinghamshire County Council,1111/1001,Children and Young People,CYP,Transport Related,CCA,05/05/2016,02-10653,"1,045.00",Arrow Specialised Transport Ltd
Nottinghamshire County Council,1111/1001,Children and Young People,CYP,Transport Related,CCA,05/05/2016,02-10654,790,Arrow Specialised Transport Ltd
Nottinghamshire County Council,1111/1001,Children and Young People,CYP,Transport Related,CCA,05/05/2016,02-10655,"1,869.01",Arrow Specialised Transport Ltd
Nottinghamshire County Council,1111/1001,Children and Young People,CYP,Transport Related,CCA,05/05/2016,02-10656,"1,438.60",Arrow Specialised Transport Ltd
Nottinghamshire County Council,1111/1001,Children and Young People,CYP,Transport Related,CCA,05/05/2016,02-10657,987.47,Arrow Specialised Transport Ltd
Nottinghamshire County Council,1111/1001,Children and Young People,CYP,Transport Related,CCA,05/05/2016,02-10658,"1,318.35",Arrow Specialised Transport Ltd
Nottinghamshire County Council,1111/1001,Children and Young People,CYP,Transport Related,CCA,05/05/2016,02-10659,"1,148.62",Arrow Specialised Transport Ltd
Nottinghamshire County Council,1111/1001,Children and Young People,CYP,Transport Related,CCA,05/05/2016,02-10660,"1,059.85",Arrow Specialised Transport Ltd
Nottinghamshire County Council,1111/1001,Children and Young People,CYP,Transport Related,CCA,05/05/2016,02-10661,"1,311.09",Arrow Specialised Transport Ltd
Nottinghamshire County Council,1111/1001,Children and Young People,CYP,Transport Related,CCA,05/05/2016,02-10662,"1,578.61",Arrow Specialised Transport Ltd
Nottinghamshire County Council,1111/1001,Children and Young People,CYP,Transport Related,CCA,05/05/2016,02-10663,"1,838.10",Arrow Specialised Transport Ltd
Nottinghamshire County Council,1111/1001,Children and Young People,CYP,Transport Related,CCA,05/05/2016,02-10664,"1,135.42",Arrow Specialised Transport Ltd
Nottinghamshire County Council,1111/1001,Children and Young People,CYP,Transport Related,CCA,05/05/2016,02-10665,"1,654.95",Arrow Specialised Transport Ltd
Nottinghamshire County Council,1111/1001,Children and Young People,CYP,Transport Related,CCA,05/05/2016,02-10666,"1,074.15",Arrow Specialised Transport Ltd
Nottinghamshire County Council,1111/1001,Children and Young People,CYP,Transport Related,CCA,05/05/2016,02-10667,"1,149.50",Arrow Specialised Transport Ltd
Nottinghamshire County Council,1111/1001,Children and Young People,CYP,Transport Related,CCA,05/05/2016,02-10668,"1,133.00",Arrow Specialised Transport Ltd
Nottinghamshire County Council,1111/1001,Children and Young People,CYP,Transport Related,CCA,05/05/2016,02-10669,"1,155.00",Arrow Specialised Transport Ltd
Nottinghamshire County Council,1111/1001,Children and Young People,CYP,Transport Related,CCA,05/05/2016,02-10670,"1,144.00",Arrow Specialised Transport Ltd
Nottinghamshire County Council,1111/1001,Children and Young People,CYP,Transport Related,CCA,05/05/2016,02-10671,"1,384.35",Arrow Specialised Transport Ltd
Nottinghamshire County Council,1111/1001,Children and Young People,CYP,Transport Related,CCA,05/05/2016,02-10672,"1,276.00",Arrow Specialised Transport Ltd
Nottinghamshire County Council,1111/1001,Children and Young People,CYP,Transport Related,CCA,05/05/2016,02-10673,"1,056.00",Arrow Specialised Transport Ltd
Nottinghamshire County Council,1111/1001,Children and Young People,CYP,Transport Related,CCA,05/05/2016,02-10674,"1,320.00",Arrow Specialised Transport Ltd
Nottinghamshire County Council,1111/1001,Children and Young People,CYP,Transport Related,CCA,05/05/2016,02-10675,"1,276.00",Arrow Specialised Transport Ltd
Nottinghamshire County Council,1111/1001,Children and Young People,CYP,Transport Related,CCA,05/05/2016,02-10676,"1,320.00",Arrow Specialised Transport Ltd
Nottinghamshire County Council,1111/1001,Children and Young People,CYP,Transport Related,CCA,05/05/2016,02-10677,"1,408.00",Arrow Specialised Transport Ltd
Nottinghamshire County Council,1111/1001,Children and Young People,CYP,Transport Related,CCA,05/05/2016,02-10679,"1,133.00",Arrow Specialised Transport Ltd
Nottinghamshire County Council,1111/1001,Children and Young People,CYP,Transport Related,CCA,05/05/2016,02-10680,"1,040.00",Arrow Specialised Transport Ltd
Nottinghamshire County Council,1111/1001,Children and Young People,CYP,Transport Related,CCA,05/05/2016,02-10681,"2,013.34",Arrow Specialised Transport Ltd
Nottinghamshire County Council,1111/1001,Children and Young People,CYP,Transport Related,CCA,05/05/2016,02-10682,960,Arrow Specialised Transport Ltd
Nottinghamshire County Council,1111/1001,Children and Young People,CYP,Transport Related,CCA,05/05/2016,02-10683,"1,001.00",Arrow Specialised Transport Ltd
Nottinghamshire County Council,1111/1001,Children and Young People,CYP,Transport Related,CCA,05/05/2016,02-10684,"1,155.44",Arrow Specialised Transport Ltd
Nottinghamshire County Council,1111/1001,Children and Young People,CYP,Transport Related,CCA,05/05/2016,02-10685,"1,866.48",Arrow Specialised Transport Ltd
Nottinghamshire County Council,1111/1001,Children and Young People,CYP,Transport Related,CCA,05/05/2016,02-10686,"5,437.85",Arrow Specialised Transport Ltd
Nottinghamshire County Council,1111/1001,Children and Young People,CYP,Transport Related,CCA,05/05/2016,02-10687,"1,433.19",Arrow Specialised Transport Ltd
Nottinghamshire County Council,1111/1001,Children and Young People,CYP,Transport Related,CCA,05/05/2016,02-10688,"2,700.00",Arrow Specialised Transport Ltd
Nottinghamshire County Council,1111/1001,Children and Young People,CYP,Transport Related,CCA,05/05/2016,02-10689,"1,090.80",Arrow Specialised Transport Ltd
Nottinghamshire County Council,1111/1001,Children and Young People,CYP,Transport Related,CCA,05/05/2016,02-10690,"1,909.20",Arrow Specialised Transport Ltd
Nottinghamshire County Council,1111/1001,Children and Young People,CYP,Transport Related,CCA,05/05/2016,02-10692,"2,124.36",Arrow Specialised Transport Ltd
Nottinghamshire County Council,1111/1001,Children and Young People,CYP,Transport Related,CCA,05/05/2016,02-10694,936.27,Arrow Specialised Transport Ltd
Nottinghamshire County Council,1111/1001,Children and Young People,CYP,Transport Related,CCA,05/05/2016,02-10696,"1,462.12",Arrow Specialised Transport Ltd
Nottinghamshire County Council,1111/1001,Children and Young People,CYP,Transport Related,CCA,05/05/2016,02-10697,"1,099.89",Arrow Specialised Transport Ltd
Nottinghamshire County Council,1111/1001,Children and Young People,CYP,Transport Related,CCA,05/05/2016,02-10698,"1,322.09",Arrow Specialised Transport Ltd
Nottinghamshire County Council,1111/1001,Children and Young People,CYP,Transport Related,CCA,05/05/2016,02-10700,856.5,Arrow Specialised Transport Ltd
Nottinghamshire County Council,1111/1001,Children and Young People,CYP,Transport Related,CCA,05/05/2016,02-10701,"1,961.54",Arrow Specialised Transport Ltd
Nottinghamshire County Council,1111/1001,Children and Young People,CYP,Transport Related,CCA,05/05/2016,02-10703,"1,210.00",Arrow Specialised Transport Ltd
Nottinghamshire County Council,1111/1001,Children and Young People,CYP,Transport Related,CCA,05/05/2016,02-10704,"1,545.60",Arrow Specialised Transport Ltd
Nottinghamshire County Council,1111/1001,Children and Young People,CYP,Transport Related,CCA,05/05/2016,02-10705,"1,984.65",Arrow Specialised Transport Ltd
Nottinghamshire County Council,1111/1001,Children and Young People,CYP,Transport Related,CCA,05/05/2016,02-10706,828.74,Arrow Specialised Transport Ltd
Nottinghamshire County Council,1111/1001,Children and Young People,CYP,Transport Related,CCA,05/05/2016,02-10707,"1,416.58",Arrow Specialised Transport Ltd
Nottinghamshire County Council,1111/1001,Children and Young People,CYP,Transport Related,CCA,05/05/2016,02-10708,"1,008.59",Arrow Specialised Transport Ltd
Nottinghamshire County Council,1111/1001,Children and Young People,CYP,Transport Related,CCA,05/05/2016,02-10709,"1,257.85",Arrow Specialised Transport Ltd
Nottinghamshire County Council,1111/1001,Children and Young People,CYP,Transport Related,CCA,05/05/2016,02-10710,"1,422.08",Arrow Specialised Transport Ltd
Nottinghamshire County Council,1111/1001,Children and Young People,CYP,Transport Related,CCA,05/05/2016,02-10711,945.67,Arrow Specialised Transport Ltd
Nottinghamshire County Council,1111/1001,Children and Young People,CYP,Transport Related,CCA,05/05/2016,02-10712,423.17,Arrow Specialised Transport Ltd
Nottinghamshire County Council,1111/1001,Children and Young People,CYP,Transport Related,CCA,05/05/2016,02-10714,992.31,Arrow Specialised Transport Ltd
Nottinghamshire County Council,1111/1001,Children and Young People,CYP,Transport Related,CCA,05/05/2016,02-10715,"1,095.71",Arrow Specialised Transport Ltd
Nottinghamshire County Council,1111/1001,Children and Young People,CYP,Transport Related,CCA,05/05/2016,02-10716,"1,104.73",Arrow Specialised Transport Ltd
Nottinghamshire County Council,1111/1001,Children and Young People,CYP,Transport Related,CCA,05/05/2016,02-10717,802.23,Arrow Specialised Transport Ltd
Nottinghamshire County Council,1111/1001,Children and Young People,CYP,Transport Related,CCA,05/05/2016,02-10720,"1,260.82",Arrow Specialised Transport Ltd
Nottinghamshire County Council,1111/1001,Children and Young People,CYP,Transport Related,CCA,05/05/2016,02-10721,"1,311.97",Arrow Specialised Transport Ltd
Nottinghamshire County Council,1111/1001,Children and Young People,CYP,Transport Related,CCA,05/05/2016,02-10722,"1,644.28",Arrow Specialised Transport Ltd
Nottinghamshire County Council,1111/1001,Children and Young People,CYP,Transport Related,CCA,05/05/2016,02-10723,"1,099.89",Arrow Specialised Transport Ltd
Nottinghamshire County Council,1111/1001,Children and Young People,CYP,Transport Related,CCA,05/05/2016,02-10724,"1,244.32",Arrow Specialised Transport Ltd
Nottinghamshire County Council,1111/1001,Children and Young People,CYP,Transport Related,CCA,05/05/2016,02-10725,"1,595.00",Arrow Specialised Transport Ltd
Nottinghamshire County Council,1111/1001,Children and Young People,CYP,Transport Related,CCA,05/05/2016,02-10726,"3,144.20",Bridges Transport Services
Nottinghamshire County Council,1111/1001,Children and Young People,CYP,Transport Related,CCA,05/05/2016,02-10733,"1,446.32",Bridges Transport Services
Nottinghamshire County Council,1111/1001,Children and Young People,CYP,Transport Related,CCA,05/05/2016,02-10736,"1,111.00",Bridges Transport Services
Nottinghamshire County Council,1111/1001,Children and Young People,CYP,Transport Related,CCA,05/05/2016,02-10737,"1,764.00",Bridges Transport Services
Nottinghamshire County Council,1111/1001,Children and Young People,CYP,Transport Related,CCA,05/05/2016,02-10738,935,Bridges Transport Services
Nottinghamshire County Council,1111/1001,Children and Young People,CYP,Transport Related,CCA,05/05/2016,02-10739,739.75,Bridges Transport Services
Nottinghamshire County Council,1111/1001,Children and Young People,CYP,Transport Related,CCA,05/05/2016,02-10740,907.5,Bridges Transport Services
Nottinghamshire County Council,1111/1001,Children and Young People,CYP,Transport Related,CCA,05/05/2016,02-10741,714.45,Bridges Transport Services
Nottinghamshire County Council,1111/1001,Children and Young People,CYP,Transport Related,CCA,05/05/2016,02-10742,507.21,Bridges Transport Services
Nottinghamshire County Council,1111/1001,Children and Young People,CYP,Transport Related,CCA,05/05/2016,02-10743,"1,224.00",Bridges Transport Services
Nottinghamshire County Council,1111/1001,Children and Young People,CYP,Transport Related,CCA,05/05/2016,02-10744,"1,969.19",Bridges Transport Services
Nottinghamshire County Council,1111/1001,Children and Young People,CYP,Transport Related,CCA,05/05/2016,02-10745,"2,791.65",Bridges Transport Services
Nottinghamshire County Council,1111/1001,Children and Young People,CYP,Transport Related,CCA,05/05/2016,02-10746,"1,540.00",Bridges Transport Services
Nottinghamshire County Council,1111/1001,Children and Young People,CYP,Transport Related,CCA,05/05/2016,02-10747,"1,147.41",Bridges Transport Services
Nottinghamshire County Council,1111/1001,Children and Young People,CYP,Transport Related,CCA,05/05/2016,02-10748,"1,552.32",Bridges Transport Services
Nottinghamshire County Council,1111/1001,Children and Young People,CYP,Transport Related,CCA,05/05/2016,02-10749,"2,892.80",Bridges Transport Services
Nottinghamshire County Council,1111/1001,Children and Young People,CYP,Transport Related,CCA,05/05/2016,02-10750,807.4,Bridges Transport Services
Nottinghamshire County Council,1111/1001,Children and Young People,CYP,Transport Related,CCA,05/05/2016,02-10751,512.43,Bridges Transport Services
Nottinghamshire County Council,1111/1001,Children and Young People,CYP,Transport Related,CCA,05/05/2016,02-10753,900,Bridges Transport Services
Nottinghamshire County Council,1111/1001,Children and Young People,CYP,Transport Related,CCA,05/05/2016,02-10754,"1,089.00",Bridges Transport Services
Nottinghamshire County Council,1111/1001,Children and Young People,CYP,Transport Related,CCA,05/05/2016,02-10755,"1,251.69",Bridges Transport Services
Nottinghamshire County Council,1111/1001,Children and Young People,CYP,Transport Related,CCA,05/05/2016,02-10756,"1,673.00",Bridges Transport Services
Nottinghamshire County Council,1111/1001,Children and Young People,CYP,Transport Related,CCA,05/05/2016,02-10757,"1,919.96",Bridges Transport Services
Nottinghamshire County Council,1111/1001,Children and Young People,CYP,Transport Related,CCA,05/05/2016,02-10758,"1,848.00",Bridges Transport Services
Nottinghamshire County Council,1111/1001,Children and Young People,CYP,Transport Related,CCA,05/05/2016,02-10762,"2,095.39",Galaxy Cabs
Nottinghamshire County Council,1111/1001,Children and Young People,CYP,Transport Related,CCA,05/05/2016,02-10763,865.34,Galaxy Cabs
Nottinghamshire County Council,1111/1001,Children and Young People,CYP,Transport Related,CCA,05/05/2016,02-10765,"1,140.00",Galaxy Cabs
Nottinghamshire County Council,1111/1001,Children and Young People,CYP,Transport Related,CCA,05/05/2016,02-10766,"1,805.43",Ja Travel Ltd
Nottinghamshire County Council,1111/1001,Children and Young People,CYP,Transport Related,CCA,05/05/2016,02-10767,"1,777.60",Ja Travel Ltd
Nottinghamshire County Council,1111/1001,Children and Young People,CYP,Transport Related,CCA,05/05/2016,02-10768,982.74,Ja Travel Ltd
Nottinghamshire County Council,1111/1001,Children and Young People,CYP,Transport Related,CCA,05/05/2016,02-10774,"1,888.70",Vallances Coaches
Nottinghamshire County Council,1111/1001,Children and Young People,CYP,Transport Related,CCA,05/05/2016,02-10775,"1,644.28",Vallances Coaches
Nottinghamshire County Council,1111/1001,Children and Young People,CYP,Transport Related,CCA,05/05/2016,02-10776,"2,706.20",Vallances Coaches
Nottinghamshire County Council,1111/1001,Children and Young People,CYP,Transport Related,CCA,05/05/2016,02-10777,"1,962.00",K & S Coaches
Nottinghamshire County Council,1111/1001,Children and Young People,CYP,Transport Related,CCA,05/05/2016,02-10787,"1,723.70",Marshalls Of Sutton On Trent Ltd
Nottinghamshire County Council,1111/1001,Children and Young People,CYP,Transport Related,CCA,05/05/2016,02-10798,"1,520.00",P & P Taxis
Nottinghamshire County Council,1111/1001,Children and Young People,CYP,Transport Related,CCA,05/05/2016,02-10819,"1,740.00",Town Cars (UK) Ltd
Nottinghamshire County Council,1111/1001,Children and Young People,CYP,Transport Related,CCA,05/05/2016,02-10820,341.51,Town Cars (UK) Ltd
Nottinghamshire County Council,1111/1001,Children and Young People,CYP,Transport Related,CCA,05/05/2016,02-10823,594,Forest Cars
Nottinghamshire County Council,1111/1001,Children and Young People,CYP,Transport Related,CCA,05/05/2016,02-10826,"1,470.00",Forest Cars
Nottinghamshire County Council,1111/1001,Children and Young People,CYP,Transport Related,CCA,05/05/2016,02-10827,"1,323.00",Forest Cars
Nottinghamshire County Council,1111/1001,Children and Young People,CYP,Transport Related,CCA,05/05/2016,02-10828,960,Forest Cars
Nottinghamshire County Council,1111/1001,Children and Young People,CYP,Transport Related,CCA,05/05/2016,02-10829,521.6,Forest Cars
Nottinghamshire County Council,1111/1001,Children and Young People,CYP,Transport Related,CCA,05/05/2016,02-10831,814,Forest Cars
Nottinghamshire County Council,1111/1001,Children and Young People,CYP,Transport Related,CCA,05/05/2016,02-10832,770,Sean's Taxi Services
Nottinghamshire County Council,1111/1001,Children and Young People,CYP,Transport Related,CCA,09/05/2016,02-11803,"1,661.00",Johnson Bros Tours Ltd
Nottinghamshire County Council,1111/1001,Children and Young People,CYP,Transport Related,CCA,09/05/2016,02-11806,756,200 Cars Ltd
Nottinghamshire County Council,1111/1001,Children and Young People,CYP,Transport Related,CCA,09/05/2016,02-11807,504,200 Cars Ltd
Nottinghamshire County Council,1111/1001,Children and Young People,CYP,Transport Related,CCA,09/05/2016,02-11808,"1,120.00",CBC Taxis Ltd
Nottinghamshire County Council,1111/1001,Children and Young People,CYP,Transport Related,CCA,09/05/2016,02-11809,803,CBC Taxis Ltd
Nottinghamshire County Council,1111/1001,Children and Young People,CYP,Transport Related,CCA,09/05/2016,02-11810,900,CBC Taxis Ltd
Nottinghamshire County Council,1111/1001,Children and Young People,CYP,Transport Related,CCA,09/05/2016,02-11811,"1,100.00",CBC Taxis Ltd
Nottinghamshire County Council,1111/1001,Children and Young People,CYP,Transport Related,CCA,09/05/2016,02-11812,"1,100.00",CBC Taxis Ltd
Nottinghamshire County Council,1111/1001,Children and Young People,CYP,Transport Related,CCA,09/05/2016,02-11813,500,CBC Taxis Ltd
Nottinghamshire County Council,1111/1001,Children and Young People,CYP,Transport Related,CCA,09/05/2016,02-11814,840,CBC Taxis Ltd
Nottinghamshire County Council,1111/1001,Children and Young People,CYP,Transport Related,CCA,09/05/2016,02-11815,550,CBC Taxis Ltd
Nottinghamshire County Council,1111/1001,Children and Young People,CYP,Transport Related,CCA,09/05/2016,02-11816,275,CBC Taxis Ltd
Nottinghamshire County Council,1111/1001,Children and Young People,CYP,Transport Related,CCA,09/05/2016,02-11819,"1,680.00",Headland Taxi Services
Nottinghamshire County Council,1111/1001,Children and Young People,CYP,Transport Related,CCA,09/05/2016,02-11820,777.7,Ng11 Cars
Nottinghamshire County Council,1111/1001,Children and Young People,CYP,Transport Related,CCA,09/05/2016,02-11822,936,Ng11 Cars
Nottinghamshire County Council,1111/1001,Children and Young People,CYP,Transport Related,CCA,09/05/2016,02-11823,"1,020.00",Ng11 Cars
Nottinghamshire County Council,1111/1001,Children and Young People,CYP,Transport Related,CCA,09/05/2016,02-11824,500,Ng11 Cars
Nottinghamshire County Council,1111/1001,Children and Young People,CYP,Transport Related,CCA,09/05/2016,02-11825,594,Ng11 Cars
Nottinghamshire County Council,1111/1001,Children and Young People,CYP,Transport Related,CCA,09/05/2016,02-11826,770,Ng11 Cars
Nottinghamshire County Council,1111/1001,Children and Young People,CYP,Transport Related,CCA,09/05/2016,02-11827,"1,008.00",Shelleys Taxis Ltd
Nottinghamshire County Council,1111/1001,Children and Young People,CYP,Transport Related,CCA,09/05/2016,02-11828,"1,260.00",Shelleys Taxis Ltd
Nottinghamshire County Council,1111/1001,Children and Young People,CYP,Transport Related,CCA,09/05/2016,02-11829,575.7,Shelleys Taxis Ltd
Nottinghamshire County Council,1111/1001,Children and Young People,CYP,Transport Related,CCA,09/05/2016,02-11830,"1,260.00",Shelleys Taxis Ltd
Nottinghamshire County Council,1111/1001,Children and Young People,CYP,Transport Related,CCA,09/05/2016,02-11831,"1,060.50",Shelleys Taxis Ltd
Nottinghamshire County Council,1111/1001,Children and Young People,CYP,Transport Related,CCA,09/05/2016,02-11832,"1,100.00",Shelleys Taxis Ltd
Nottinghamshire County Council,1111/1001,Children and Young People,CYP,Transport Related,CCA,09/05/2016,02-11833,527.22,Shelleys Taxis Ltd
Nottinghamshire County Council,1111/1001,Children and Young People,CYP,Transport Related,CCA,09/05/2016,02-11834,724,Shelleys Taxis Ltd
Nottinghamshire County Council,1111/1001,Children and Young People,CYP,Transport Related,CCA,09/05/2016,02-11835,636.3,Shelleys Taxis Ltd
Nottinghamshire County Council,1111/1001,Children and Young People,CYP,Transport Related,CCA,09/05/2016,02-11837,726,Shelleys Taxis Ltd
Nottinghamshire County Council,1111/1001,Children and Young People,CYP,Transport Related,CCA,09/05/2016,02-11838,770,Shelleys Taxis Ltd
Nottinghamshire County Council,1111/1001,Children and Young People,CYP,Transport Related,CCA,09/05/2016,02-11847,792,Abacus Cars
Nottinghamshire County Council,1111/1001,Children and Young People,CYP,Transport Related,CCA,09/05/2016,02-11849,"3,232.00",Abacus Cars
Nottinghamshire County Council,1111/1001,Children and Young People,CYP,Transport Related,CCA,09/05/2016,02-11851,"1,408.10",Travel Wright Ltd
Nottinghamshire County Council,1111/1001,Children and Young People,CYP,Transport Related,CCA,09/05/2016,02-11853,780.4,Travel Wright Ltd
Nottinghamshire County Council,1111/1001,Children and Young People,CYP,Transport Related,CCA,09/05/2016,02-11868,"1,688.72",Eurocab 2000 Ltd
Nottinghamshire County Council,1111/1001,Children and Young People,CYP,Transport Related,CCA,09/05/2016,02-11869,"1,200.00",Eurocab 2000 Ltd
Nottinghamshire County Council,1111/1001,Children and Young People,CYP,Transport Related,CCA,09/05/2016,02-11871,522.5,Eurocab 2000 Ltd
Nottinghamshire County Council,1111/1001,Children and Young People,CYP,Transport Related,CCA,09/05/2016,02-11875,760,Nottingham Cars Ltd
Nottinghamshire County Council,1111/1001,Children and Young People,CYP,Transport Related,CCA,10/05/2016,02-11924,500,Ace Of Mansfield Ltd
Nottinghamshire County Council,1111/1001,Children and Young People,CYP,Transport Related,CCA,10/05/2016,02-11926,540,Ace Of Mansfield Ltd
Nottinghamshire County Council,1111/1001,Children and Young People,CYP,Transport Related,CCA,10/05/2016,02-11928,"1,893.75",Ace Of Mansfield Ltd
Nottinghamshire County Council,1111/1001,Children and Young People,CYP,Transport Related,CCA,10/05/2016,02-11929,795.14,Ace Of Mansfield Ltd
Nottinghamshire County Council,1111/1001,Children and Young People,CYP,Transport Related,CCA,10/05/2016,02-11931,"1,012.00",Ace Of Mansfield Ltd
Nottinghamshire County Council,1111/1001,Children and Young People,CYP,Transport Related,CCA,10/05/2016,02-11932,861,Alpha Cars
Nottinghamshire County Council,1111/1001,Children and Young People,CYP,Transport Related,CCA,10/05/2016,02-11939,"1,526.70",Nunns Cars
Nottinghamshire County Council,1111/1001,Children and Young People,CYP,Transport Related,CCA,10/05/2016,02-11940,"1,600.00",K Matthews Travel
Nottinghamshire County Council,1111/1001,Children and Young People,CYP,Transport Related,CCA,10/05/2016,02-11941,"1,700.00",K Matthews Travel
Nottinghamshire County Council,1111/1001,Children and Young People,CYP,Transport Related,CCA,10/05/2016,02-11942,"2,747.20",K Matthews Travel
Nottinghamshire County Council,1111/1001,Children and Young People,CYP,Transport Related,CCA,10/05/2016,02-11943,"1,389.00",Rio Cabs
Nottinghamshire County Council,1111/1001,Children and Young People,CYP,Transport Related,CCA,10/05/2016,02-11945,509.94,Rio Cabs
Nottinghamshire County Council,1111/1001,Children and Young People,CYP,Transport Related,CCA,10/05/2016,02-11947,895,Ace Cars
Nottinghamshire County Council,1111/1001,Children and Young People,CYP,Transport Related,CCA,10/05/2016,02-11948,803,Ace Cars
Nottinghamshire County Council,1111/1001,Children and Young People,CYP,Transport Related,CCA,10/05/2016,02-11950,"1,673.00",Ace Cars
Nottinghamshire County Council,1111/1001,Children and Young People,CYP,Transport Related,CCA,10/05/2016,02-11951,"1,419.00",Ace Cars
Nottinghamshire County Council,1111/1001,Children and Young People,CYP,Transport Related,CCA,10/05/2016,02-11952,856.8,Ace Cars
Nottinghamshire County Council,1111/1001,Children and Young People,CYP,Transport Related,CCA,10/05/2016,02-11953,894.38,Ace Cars
Nottinghamshire County Council,1111/1001,Children and Young People,CYP,Transport Related,CCA,10/05/2016,02-11955,"1,792.50",Ace Cars
Nottinghamshire County Council,1111/1001,Children and Young People,CYP,Transport Related,CCA,10/05/2016,02-11956,"1,440.00",Ace Cars
Nottinghamshire County Council,1111/1001,Children and Young People,CYP,Transport Related,CCA,10/05/2016,02-11957,"1,623.00",Ace Cars
Nottinghamshire County Council,1111/1001,Children and Young People,CYP,Transport Related,CCA,10/05/2016,02-11958,"1,500.00",Trevor Bailey t/a Trevor Bailey Tra
Nottinghamshire County Council,1111/1001,Children and Young People,CYP,Transport Related,CCA,11/05/2016,02-11984,"1,161.30",F4Control Ltd (t/a First4care)
Nottinghamshire County Council,1111/1001,Children and Young People,CYP,Transport Related,CCA,11/05/2016,02-11985,"1,200.09",F4Control Ltd (t/a First4care)
Nottinghamshire County Council,1111/1001,Children and Young People,CYP,Transport Related,CCA,11/05/2016,02-11987,"1,135.80",F4Control Ltd (t/a First4care)
Nottinghamshire County Council,1111/1001,Children and Young People,CYP,Transport Related,CCA,11/05/2016,02-11989,"1,257.92",F4Control Ltd (t/a First4care)
Nottinghamshire County Council,1111/1001,Children and Young People,CYP,Transport Related,CCA,11/05/2016,02-11991,"1,490.94",F4Control Ltd (t/a First4care)
Nottinghamshire County Council,1111/1001,Children and Young People,CYP,Transport Related,CCA,11/05/2016,02-11992,874.79,F4Control Ltd (t/a First4care)
Nottinghamshire County Council,1111/1001,Children and Young People,CYP,Transport Related,CCA,11/05/2016,02-11995,"1,310.98",F4Control Ltd (t/a First4care)
Nottinghamshire County Council,1111/1001,Children and Young People,CYP,Transport Related,CCA,11/05/2016,02-11996,"1,322.09",F4Control Ltd (t/a First4care)
Nottinghamshire County Council,1111/1001,Children and Young People,CYP,Transport Related,CCA,11/05/2016,02-11997,"1,407.45",F4Control Ltd (t/a First4care)
Nottinghamshire County Council,1111/1001,Children and Young People,CYP,Transport Related,CCA,11/05/2016,02-11998,411.12,F4Control Ltd (t/a First4care)
Nottinghamshire County Council,1111/1001,Children and Young People,CYP,Transport Related,CCA,11/05/2016,02-12000,"1,427.03",F4Control Ltd (t/a First4care)
Nottinghamshire County Council,1111/1001,Children and Young People,CYP,Transport Related,CCA,11/05/2016,02-12002,"1,069.20",F4Control Ltd (t/a First4care)
Nottinghamshire County Council,1111/1001,Children and Young People,CYP,Transport Related,CCA,11/05/2016,02-12003,"1,145.80",F4Control Ltd (t/a First4care)
Nottinghamshire County Council,1111/1001,Children and Young People,CYP,Transport Related,CCA,11/05/2016,02-12004,"1,158.30",F4Control Ltd (t/a First4care)
Nottinghamshire County Council,1111/1001,Children and Young People,CYP,Transport Related,CCA,11/05/2016,02-12005,"1,257.30",F4Control Ltd (t/a First4care)
Nottinghamshire County Council,1111/1001,Children and Young People,CYP,Transport Related,CCA,11/05/2016,02-12006,"1,174.80",F4Control Ltd (t/a First4care)
Nottinghamshire County Council,1111/1001,Children and Young People,CYP,Transport Related,CCA,11/05/2016,02-12007,"2,001.45",Martins Travel
Nottinghamshire County Council,1111/1001,Children and Young People,CYP,Transport Related,CCA,11/05/2016,02-12008,"1,355.42",Martins Travel
Nottinghamshire County Council,1111/1001,Children and Young People,CYP,Transport Related,CCA,11/05/2016,02-12013,810,Ace Of Mansfield Ltd
Nottinghamshire County Council,1111/1001,Children and Young People,CYP,Transport Related,CCA,11/05/2016,02-12014,"1,492.92",F4Control Ltd (t/a First4care)
Nottinghamshire County Council,1111/1001,Children and Young People,CYP,Transport Related,CCA,11/05/2016,02-12021,"3,101.88",Gem Mini Travel Ltd
Nottinghamshire County Council,1111/1001,Children and Young People,CYP,Transport Related,CCA,11/05/2016,02-12064,"1,530.00",Wallis Coachways
Nottinghamshire County Council,1111/1001,Children and Young People,CYP,Transport Related,CCA,11/05/2016,02-12065,"1,697.50",Ace Cars
Nottinghamshire County Council,1111/1001,Children and Young People,CYP,Transport Related,CCA,11/05/2016,02-12066,"2,259.00",Ace Cars
Nottinghamshire County Council,1111/1001,Children and Young People,CYP,Transport Related,CCA,11/05/2016,02-12067,"1,028.00",Ace Cars
Nottinghamshire County Council,1111/1001,Children and Young People,CYP,Transport Related,CCA,11/05/2016,02-12068,"1,760.00",Ace Cars
Nottinghamshire County Council,1111/1001,Children and Young People,CYP,Transport Related,CCA,11/05/2016,02-12069,504.11,Diamond Cars
Nottinghamshire County Council,1111/1001,Children and Young People,CYP,Transport Related,CCA,12/05/2016,02-12213,870.48,Alert Cars Ltd
Nottinghamshire County Council,1111/1001,Children and Young People,CYP,Transport Related,CCA,12/05/2016,02-12214,714,Alert Cars Ltd
Nottinghamshire County Council,1111/1001,Children and Young People,CYP,Transport Related,CCA,12/05/2016,02-12216,546,Alert Cars Ltd
Nottinghamshire County Council,1111/1001,Children and Young People,CYP,Transport Related,CCA,12/05/2016,02-12219,"2,173.08",CBC Taxis Ltd
Nottinghamshire County Council,1111/1001,Children and Young People,CYP,Transport Related,CCA,12/05/2016,02-12226,720,Alpha Cars
Nottinghamshire County Council,1111/1001,Children and Young People,CYP,Transport Related,CCA,12/05/2016,02-12227,912,Alpha Cars
Nottinghamshire County Council,1111/1001,Children and Young People,CYP,Transport Related,CCA,12/05/2016,02-12229,"1,320.00",Sprays Transport Ltd
Nottinghamshire County Council,1111/1001,Children and Young People,CYP,Transport Related,CCA,12/05/2016,02-12230,"1,380.00",Sprays Transport Ltd
Nottinghamshire County Council,1111/1001,Children and Young People,CYP,Transport Related,CCA,12/05/2016,02-12231,"1,076.57",Sprays Transport Ltd
Nottinghamshire County Council,1111/1001,Children and Young People,CYP,Transport Related,CCA,12/05/2016,02-12232,"1,310.98",Sprays Transport Ltd
Nottinghamshire County Council,1111/1001,Children and Young People,CYP,Transport Related,CCA,12/05/2016,02-12233,"1,132.78",Sprays Transport Ltd
Nottinghamshire County Council,1111/1001,Children and Young People,CYP,Transport Related,CCA,12/05/2016,02-12234,"1,078.00",Sprays Transport Ltd
Nottinghamshire County Council,1111/1001,Children and Young People,CYP,Transport Related,CCA,12/05/2016,02-12235,"1,647.00",Sprays Transport Ltd
Nottinghamshire County Council,1111/1001,Children and Young People,CYP,Transport Related,CCA,12/05/2016,02-12237,"1,042.58",Sprays Transport Ltd
Nottinghamshire County Council,1111/1001,Children and Young People,CYP,Transport Related,CCA,12/05/2016,02-12238,"1,050.72",Sprays Transport Ltd
Nottinghamshire County Council,1111/1001,Children and Young People,CYP,Transport Related,CCA,12/05/2016,02-12239,"1,222.10",Sprays Transport Ltd
Nottinghamshire County Council,1111/1001,Children and Young People,CYP,Transport Related,CCA,12/05/2016,02-12240,"1,166.55",Sprays Transport Ltd
Nottinghamshire County Council,1111/1001,Children and Young People,CYP,Transport Related,CCA,12/05/2016,02-12241,"1,199.88",Sprays Transport Ltd
Nottinghamshire County Council,1111/1001,Children and Young People,CYP,Transport Related,CCA,12/05/2016,02-12243,"1,199.88",Sprays Transport Ltd
Nottinghamshire County Council,1111/1001,Children and Young People,CYP,Transport Related,CCA,12/05/2016,02-12244,"1,647.00",Sprays Transport Ltd
Nottinghamshire County Council,1111/1001,Children and Young People,CYP,Transport Related,CCA,12/05/2016,02-12247,"2,203.00",Skills Motor Coaches Ltd
Nottinghamshire County Council,1111/1001,Children and Young People,CYP,Transport Related,CCA,12/05/2016,02-12251,656,Abacus Cars
Nottinghamshire County Council,1111/1001,Children and Young People,CYP,Transport Related,CCA,12/05/2016,02-12256,"1,701.67",Travel Wright Ltd
Nottinghamshire County Council,1111/1001,Children and Young People,CYP,Transport Related,CCA,12/05/2016,02-12260,"1,039.50",Ace Cars
Nottinghamshire County Council,1111/1001,Children and Young People,CYP,Transport Related,CCA,12/05/2016,02-12261,"2,010.00",Ace Cars
Nottinghamshire County Council,1111/1001,Children and Young People,CYP,Transport Related,CCA,12/05/2016,02-12262,672.5,Ace Cars
Nottinghamshire County Council,1111/1001,Children and Young People,CYP,Transport Related,CCA,12/05/2016,02-12264,"1,267.50",Ace Cars
Nottinghamshire County Council,1111/1001,Children and Young People,CYP,Transport Related,CCA,12/05/2016,02-12266,"1,606.50",Ace Cars
Nottinghamshire County Council,1111/1001,Children and Young People,CYP,Transport Related,CCA,12/05/2016,02-12267,"2,205.00",Ace Cars
Nottinghamshire County Council,1111/1001,Children and Young People,CYP,Transport Related,CCA,12/05/2016,02-12268,"1,195.00",Ace Cars
Nottinghamshire County Council,1111/1001,Children and Young People,CYP,Transport Related,CCA,12/05/2016,02-12269,897.75,Ace Cars
Nottinghamshire County Council,1111/1001,Children and Young People,CYP,Transport Related,CCA,12/05/2016,02-12270,"1,249.60",Ace Cars
Nottinghamshire County Council,1111/1001,Children and Young People,CYP,Transport Related,CCA,12/05/2016,02-12273,"3,466.92",Target Taxis
Nottinghamshire County Council,1111/1001,Children and Young People,CYP,Transport Related,CCA,13/05/2016,02-12349,"12,075.00",Sharpes Of Nottingham
Nottinghamshire County Council,1111/1001,Children and Young People,CYP,Transport Related,CCA,13/05/2016,02-12351,"1,190.00",Johnson Bros Tours Ltd
Nottinghamshire County Council,1111/1001,Children and Young People,CYP,Transport Related,CCA,13/05/2016,02-12352,"3,549.00",Butler Brothers Ltd
Nottinghamshire County Council,1111/1001,Children and Young People,CYP,Transport Related,CCA,13/05/2016,02-12355,"1,877.59",Butler Brothers Ltd
Nottinghamshire County Council,1111/1001,Children and Young People,CYP,Transport Related,CCA,13/05/2016,02-12356,"1,249.49",Erewash Community Transport
Nottinghamshire County Council,1111/1001,Children and Young People,CYP,Transport Related,CCA,13/05/2016,02-12357,"8,154.52",Erewash Community Transport
Nottinghamshire County Council,1111/1001,Children and Young People,CYP,Transport Related,CCA,13/05/2016,02-12358,999.9,Ng11 Cars
Nottinghamshire County Council,1111/1001,Children and Young People,CYP,Transport Related,CCA,13/05/2016,02-12359,722.26,Abacus Cars
Nottinghamshire County Council,1111/1001,Children and Young People,CYP,Transport Related,CCA,13/05/2016,02-12361,777.7,Abacus Cars
Nottinghamshire County Council,1111/1001,Children and Young People,CYP,Transport Related,CCA,13/05/2016,02-12362,"1,012.00",Abacus Cars
Nottinghamshire County Council,1111/1001,Children and Young People,CYP,Transport Related,CCA,13/05/2016,02-12363,"1,275.00",Abacus Cars
Nottinghamshire County Council,1111/1001,Children and Young People,CYP,Transport Related,CCA,13/05/2016,02-12364,"1,275.00",Abacus Cars
Nottinghamshire County Council,1111/1001,Children and Young People,CYP,Transport Related,CCA,13/05/2016,02-12366,"1,200.00",Abacus Cars
Nottinghamshire County Council,1111/1001,Children and Young People,CYP,Transport Related,CCA,13/05/2016,02-12367,"1,144.00",Abacus Cars
Nottinghamshire County Council,1111/1001,Children and Young People,CYP,Transport Related,CCA,13/05/2016,02-12370,777.7,Abacus Cars
Nottinghamshire County Council,1111/1001,Children and Young People,CYP,Transport Related,CCA,13/05/2016,02-12372,739.86,Abacus Cars
Nottinghamshire County Council,1111/1001,Children and Young People,CYP,Transport Related,CCA,13/05/2016,02-12373,"1,778.00",Marshalls Of Sutton On Trent Ltd
Nottinghamshire County Council,1111/1001,Children and Young People,CYP,Transport Related,CCA,13/05/2016,02-12389,519.52,I Can Charity
Nottinghamshire County Council,1111/1001,Children and Young People,CYP,Transport Related,CCA,16/05/2016,02-12411,"13,286.93",Marshalls Of Sutton On Trent Ltd
Nottinghamshire County Council,1111/1001,Children and Young People,CYP,Transport Related,CCA,17/05/2016,02-15538,900,Sharpes Of Nottingham
Nottinghamshire County Council,1111/1001,Children and Young People,CYP,Transport Related,CCA,17/05/2016,02-15539,"1,464.00",Sprays Transport Ltd
Nottinghamshire County Council,1111/1001,Children and Young People,CYP,Transport Related,CCA,17/05/2016,02-15540,"2,161.39",BN Gibson Ltd
Nottinghamshire County Council,1111/1001,Children and Young People,CYP,Transport Related,CCA,17/05/2016,02-15541,"2,522.41",BN Gibson Ltd
Nottinghamshire County Council,1111/1001,Children and Young People,CYP,Transport Related,CCA,17/05/2016,02-15542,"1,284.47",BN Gibson Ltd
Nottinghamshire County Council,1111/1001,Children and Young People,CYP,Transport Related,CCA,17/05/2016,02-15543,"1,322.86",BN Gibson Ltd
Nottinghamshire County Council,1111/1001,Children and Young People,CYP,Transport Related,CCA,17/05/2016,02-15544,"1,160.17",BN Gibson Ltd
Nottinghamshire County Council,1111/1001,Children and Young People,CYP,Transport Related,CCA,17/05/2016,02-15545,"2,501.62",BN Gibson Ltd
Nottinghamshire County Council,1111/1001,Children and Young People,CYP,Transport Related,CCA,17/05/2016,02-15546,"1,641.42",BN Gibson Ltd
Nottinghamshire County Council,1111/1001,Children and Young People,CYP,Transport Related,CCA,17/05/2016,02-15547,"2,109.03",BN Gibson Ltd
Nottinghamshire County Council,1111/1001,Children and Young People,CYP,Transport Related,CCA,17/05/2016,02-15548,"1,937.43",BN Gibson Ltd
Nottinghamshire County Council,1111/1001,Children and Young People,CYP,Transport Related,CCA,17/05/2016,02-15549,"1,744.38",BN Gibson Ltd
Nottinghamshire County Council,1111/1001,Children and Young People,CYP,Transport Related,CCA,17/05/2016,02-15551,"1,908.94",BN Gibson Ltd
Nottinghamshire County Council,1111/1001,Children and Young People,CYP,Transport Related,CCA,17/05/2016,02-15552,"1,866.92",BN Gibson Ltd
Nottinghamshire County Council,1111/1001,Children and Young People,CYP,Transport Related,CCA,17/05/2016,02-15553,"2,599.08",BN Gibson Ltd
Nottinghamshire County Council,1111/1001,Children and Young People,CYP,Transport Related,CCA,17/05/2016,02-15554,"2,685.43",BN Gibson Ltd
Nottinghamshire County Council,1111/1001,Children and Young People,CYP,Transport Related,CCA,17/05/2016,02-15555,"1,629.76",BN Gibson Ltd
Nottinghamshire County Council,1111/1001,Children and Young People,CYP,Transport Related,CCA,17/05/2016,02-15557,"1,760.00",BN Gibson Ltd
Nottinghamshire County Council,1111/1001,Children and Young People,CYP,Transport Related,CCA,17/05/2016,02-15558,"1,389.19",BN Gibson Ltd
Nottinghamshire County Council,1111/1001,Children and Young People,CYP,Transport Related,CCA,17/05/2016,02-15559,"2,181.96",BN Gibson Ltd
Nottinghamshire County Council,1111/1001,Children and Young People,CYP,Transport Related,CCA,17/05/2016,02-15560,"1,298.33",BN Gibson Ltd
Nottinghamshire County Council,1111/1001,Children and Young People,CYP,Transport Related,CCA,17/05/2016,02-15561,"1,319.25",BN Gibson Ltd
Nottinghamshire County Council,1111/1001,Children and Young People,CYP,Transport Related,CCA,17/05/2016,02-15562,"2,623.50",BN Gibson Ltd
Nottinghamshire County Council,1111/1001,Children and Young People,CYP,Transport Related,CCA,17/05/2016,02-15563,"1,861.44",BN Gibson Ltd
Nottinghamshire County Council,1111/1001,Children and Young People,CYP,Transport Related,CCA,17/05/2016,02-15564,"1,035.87",BN Gibson Ltd
Nottinghamshire County Council,1111/1001,Children and Young People,CYP,Transport Related,CCA,17/05/2016,02-15565,"1,667.93",BN Gibson Ltd
Nottinghamshire County Council,1111/1001,Children and Young People,CYP,Transport Related,CCA,17/05/2016,02-15566,"1,617.66",BN Gibson Ltd
Nottinghamshire County Council,1111/1001,Children and Young People,CYP,Transport Related,CCA,17/05/2016,02-15567,"1,233.65",BN Gibson Ltd
Nottinghamshire County Council,1111/1001,Children and Young People,CYP,Transport Related,CCA,17/05/2016,02-15574,681.75,D G Private Hire Ltd
Nottinghamshire County Council,1111/1001,Children and Young People,CYP,Transport Related,CCA,17/05/2016,02-15575,945,D G Private Hire Ltd
Nottinghamshire County Council,1111/1001,Children and Young People,CYP,Transport Related,CCA,17/05/2016,02-15577,540,D G Private Hire Ltd
Nottinghamshire County Council,1111/1001,Children and Young People,CYP,Transport Related,CCA,17/05/2016,02-15581,"1,166.00",Silverdale Tours Nottm Ltd
Nottinghamshire County Council,1111/1001,Children and Young People,CYP,Transport Related,CCA,17/05/2016,02-15593,504.11,Diamond Cars
Nottinghamshire County Council,1111/1001,Children and Young People,CYP,Transport Related,CCA,17/05/2016,02-15595,"1,610.00",Eurocab 2000 Ltd
Nottinghamshire County Council,1111/1001,Children and Young People,CYP,Transport Related,CCA,17/05/2016,02-15602,"1,099.45",F4Control Ltd (t/a First4care)
Nottinghamshire County Council,1111/1001,Children and Young People,CYP,Transport Related,CCA,17/05/2016,02-15606,"1,466.74",BN Gibson Ltd
Nottinghamshire County Council,1111/1001,Children and Young People,CYP,Transport Related,CCA,17/05/2016,02-15607,"1,408.77",BN Gibson Ltd
Nottinghamshire County Council,1111/1001,Children and Young People,CYP,Transport Related,CCA,17/05/2016,02-15608,"2,332.00",Silverdale Tours Nottm Ltd
Nottinghamshire County Council,1111/1001,Children and Young People,CYP,Transport Related,CCA,19/05/2016,02-15994,"1,232.00",F4Control Ltd (t/a First4care)
Nottinghamshire County Council,1111/1001,Children and Young People,CYP,Transport Related,CCA,19/05/2016,02-15995,"1,127.30",F4Control Ltd (t/a First4care)
Nottinghamshire County Council,1111/1001,Children and Young People,CYP,Transport Related,CCA,19/05/2016,02-15996,550,Acorn Contracts
Nottinghamshire County Council,1111/1001,Children and Young People,CYP,Transport Related,CCA,19/05/2016,02-15997,538.29,Acorn Contracts
Nottinghamshire County Council,1111/1001,Children and Young People,CYP,Transport Related,CCA,19/05/2016,02-16001,"1,102.00",Town Cars (UK) Ltd
Nottinghamshire County Council,1111/1001,Children and Young People,CYP,Transport Related,CCA,19/05/2016,02-16003,576,Nottingham Cars Ltd
Nottinghamshire County Council,1111/1001,Children and Young People,CYP,Transport Related,CCA,19/05/2016,02-17473,"6,600.00",Brotherwood Automobility Ltd
Nottinghamshire County Council,1111/1001,Children and Young People,CYP,Transport Related,CCA,24/05/2016,02-16526,"1,112.58",Central Cars Nottm Ltd
Nottinghamshire County Council,1111/1001,Children and Young People,CYP,Transport Related,CCA,24/05/2016,02-16528,893.1,Central Cars Nottm Ltd
Nottinghamshire County Council,1111/1001,Children and Young People,CYP,Transport Related,CCA,24/05/2016,02-16529,"1,541.82",Central Cars Nottm Ltd
Nottinghamshire County Council,1111/1001,Children and Young People,CYP,Transport Related,CCA,24/05/2016,02-16530,"1,019.92",Central Cars Nottm Ltd
Nottinghamshire County Council,1111/1001,Children and Young People,CYP,Transport Related,CCA,24/05/2016,02-16535,547.8,SJW (Muskham) Ltd T/A Z Cars
Nottinghamshire County Council,1111/1001,Children and Young People,CYP,Transport Related,CCA,24/05/2016,02-16536,630,200 Cars Ltd
Nottinghamshire County Council,1111/1001,Children and Young People,CYP,Transport Related,CCA,24/05/2016,02-16537,"1,023.00",Arrow Specialised Transport Ltd
Nottinghamshire County Council,1111/1001,Children and Young People,CYP,Transport Related,CCA,24/05/2016,02-16538,"1,111.68",Arrow Specialised Transport Ltd
Nottinghamshire County Council,1111/1001,Children and Young People,CYP,Transport Related,CCA,24/05/2016,02-16540,"1,222.10",Arrow Specialised Transport Ltd
Nottinghamshire County Council,1111/1001,Children and Young People,CYP,Transport Related,CCA,24/05/2016,02-16541,"1,144.00",Arrow Specialised Transport Ltd
Nottinghamshire County Council,1111/1001,Children and Young People,CYP,Transport Related,CCA,24/05/2016,02-16546,"1,243.00",Sprays Transport Ltd
Nottinghamshire County Council,1111/1001,Children and Young People,CYP,Transport Related,CCA,24/05/2016,02-16547,"1,169.74",Sprays Transport Ltd
Nottinghamshire County Council,1111/1001,Children and Young People,CYP,Transport Related,CCA,24/05/2016,02-16549,"1,760.66",BN Gibson Ltd
Nottinghamshire County Council,1111/1001,Children and Young People,CYP,Transport Related,CCA,24/05/2016,02-16550,"1,032.02",BN Gibson Ltd
Nottinghamshire County Council,1111/1001,Children and Young People,CYP,Transport Related,CCA,24/05/2016,02-16560,"1,210.00",AAA Cabs
Nottinghamshire County Council,1111/1001,Children and Young People,CYP,Transport Related,CCA,24/05/2016,02-16561,504.11,Diamond Cars
Nottinghamshire County Council,1111/1001,Children and Young People,CYP,Transport Related,CCA,24/05/2016,02-16563,690,Nottingham Coaches
Nottinghamshire County Council,1111/1001,Children and Young People,CYP,Transport Related,CCA,24/05/2016,02-16565,"1,520.00",Nottingham Cars Ltd
Nottinghamshire County Council,1111/1001,Children and Young People,CYP,Transport Related,CCA,25/05/2016,02-16679,"2,000.00",Central Cars Nottm Ltd
Nottinghamshire County Council,1111/1001,Children and Young People,CYP,Transport Related,CCA,26/05/2016,02-16733,"1,288.08",F4Control Ltd (t/a First4care)
Nottinghamshire County Council,1111/1001,Children and Young People,CYP,Transport Related,CCA,26/05/2016,02-16734,"1,080.64",Johnson Bros Tours Ltd
Nottinghamshire County Council,1111/1001,Children and Young People,CYP,Transport Related,CCA,26/05/2016,02-16737,"2,241.25",Silverdale Tours Nottm Ltd
Nottinghamshire County Council,1111/1001,Children and Young People,CYP,Transport Related,CCA,31/05/2016,02-16775,"1,100.70",Arrow Specialised Transport Ltd
Nottinghamshire County Council,1111/1001,Children and Young People,CYP,Transport Related,CCA,31/05/2016,02-16777,"3,428.59",BN Gibson Ltd
Nottinghamshire County Council,1111/1001,Children and Young People,CYP,Transport Related,CCA,31/05/2016,02-16778,865.2,BN Gibson Ltd
Nottinghamshire County Council,1111/1001,Children and Young People,CYP,Transport Related,CDA,04/05/2016,02-10402,230.17,Southside Cars
Nottinghamshire County Council,1111/1001,Children and Young People,CYP,Transport Related,CDA,04/05/2016,02-10416,506,Fozcabs Newark Taxis
Nottinghamshire County Council,1111/1001,Children and Young People,CYP,Transport Related,CDA,04/05/2016,02-10422,260.29,Horizon Travel
Nottinghamshire County Council,1111/1001,Children and Young People,CYP,Transport Related,CDA,04/05/2016,02-10436,"1,720.40",Nottingham Minibuses & Coaches
Nottinghamshire County Council,1111/1001,Children and Young People,CYP,Transport Related,CDA,04/05/2016,02-10437,"4,301.00",Nottingham Minibuses & Coaches
Nottinghamshire County Council,1111/1001,Children and Young People,CYP,Transport Related,CDA,04/05/2016,02-10439,"1,540.00",Nottingham Minibuses & Coaches
Nottinghamshire County Council,1111/1001,Children and Young People,CYP,Transport Related,CDA,04/05/2016,02-10440,"1,430.00",Nottingham Minibuses & Coaches
Nottinghamshire County Council,1111/1001,Children and Young People,CYP,Transport Related,CDA,04/05/2016,02-10441,"1,045.00",Nottingham Minibuses & Coaches
Nottinghamshire County Council,1111/1001,Children and Young People,CYP,Transport Related,CDA,04/05/2016,02-10442,"1,375.00",Nottingham Minibuses & Coaches
Nottinghamshire County Council,1111/1001,Children and Young People,CYP,Transport Related,CDA,04/05/2016,02-10444,"2,100.00",Nottingham Minibuses & Coaches
Nottinghamshire County Council,1111/1001,Children and Young People,CYP,Transport Related,CDA,04/05/2016,02-10445,"1,950.00",Nottingham Minibuses & Coaches
Nottinghamshire County Council,1111/1001,Children and Young People,CYP,Transport Related,CDA,05/05/2016,02-10641,154,Arrow Specialised Transport Ltd
Nottinghamshire County Council,1111/1001,Children and Young People,CYP,Transport Related,CDA,05/05/2016,02-10699,799.7,Arrow Specialised Transport Ltd
Nottinghamshire County Council,1111/1001,Children and Young People,CYP,Transport Related,CDA,05/05/2016,02-10717,802.23,Arrow Specialised Transport Ltd
Nottinghamshire County Council,1111/1001,Children and Young People,CYP,Transport Related,CDA,05/05/2016,02-10751,256.17,Bridges Transport Services
Nottinghamshire County Council,1111/1001,Children and Young People,CYP,Transport Related,CDA,05/05/2016,02-10763,865.34,Galaxy Cabs
Nottinghamshire County Council,1111/1001,Children and Young People,CYP,Transport Related,CDA,05/05/2016,02-10797,504.24,P & P Taxis
Nottinghamshire County Council,1111/1001,Children and Young People,CYP,Transport Related,CDA,05/05/2016,02-10799,"1,176.00",P & P Taxis
Nottinghamshire County Council,1111/1001,Children and Young People,CYP,Transport Related,CDA,05/05/2016,02-10824,544.5,Forest Cars
Nottinghamshire County Council,1111/1001,Children and Young People,CYP,Transport Related,CDA,09/05/2016,02-11816,275,CBC Taxis Ltd
Nottinghamshire County Council,1111/1001,Children and Young People,CYP,Transport Related,CDA,09/05/2016,02-11867,"1,045.00",Eurocab 2000 Ltd
Nottinghamshire County Council,1111/1001,Children and Young People,CYP,Transport Related,CDA,09/05/2016,02-11869,"1,200.00",Eurocab 2000 Ltd
Nottinghamshire County Council,1111/1001,Children and Young People,CYP,Transport Related,CDA,09/05/2016,02-11871,522.5,Eurocab 2000 Ltd
Nottinghamshire County Council,1111/1001,Children and Young People,CYP,Transport Related,CDA,09/05/2016,02-11873,"2,400.00",Eurocab 2000 Ltd
Nottinghamshire County Council,1111/1001,Children and Young People,CYP,Transport Related,CDA,09/05/2016,02-11874,"1,860.00",Nottingham Cars Ltd
Nottinghamshire County Council,1111/1001,Children and Young People,CYP,Transport Related,CDA,10/05/2016,02-11937,311.3,Nunns Cars
Nottinghamshire County Council,1111/1001,Children and Young People,CYP,Transport Related,CDA,10/05/2016,02-11943,"1,389.00",Rio Cabs
Nottinghamshire County Council,1111/1001,Children and Young People,CYP,Transport Related,CDA,11/05/2016,02-11998,853.88,F4Control Ltd (t/a First4care)
Nottinghamshire County Council,1111/1001,Children and Young People,CYP,Transport Related,CDA,12/05/2016,02-12225,521.6,Ace Of Mansfield Ltd
Nottinghamshire County Council,1111/1001,Children and Young People,CYP,Transport Related,CDA,12/05/2016,02-12241,133.32,Sprays Transport Ltd
Nottinghamshire County Council,1111/1001,Children and Young People,CYP,Transport Related,CDA,12/05/2016,02-12262,672.5,Ace Cars
Nottinghamshire County Council,1111/1001,Children and Young People,CYP,Transport Related,CDA,13/05/2016,02-12368,455.02,Abacus Cars
Nottinghamshire County Council,1111/1001,Children and Young People,CYP,Transport Related,CDA,16/05/2016,02-12409,"7,750.00",C W Moxon Ltd
Nottinghamshire County Council,1111/1001,Children and Young People,CYP,Transport Related,CDA,16/05/2016,02-12410,"12,532.40",Marshalls Of Sutton On Trent Ltd
Nottinghamshire County Council,1111/1001,Children and Young People,CYP,Transport Related,CDA,16/05/2016,02-12412,"24,902.50",C W Moxon Ltd
Nottinghamshire County Council,1111/1001,Children and Young People,CYP,Transport Related,CDA,16/05/2016,02-12413,"43,256.59",Stagecoach Services Ltd
Nottinghamshire County Council,1111/1001,Children and Young People,CYP,Transport Related,CDA,16/05/2016,02-12414,"17,463.25",Johnson Bros Tours Ltd
Nottinghamshire County Council,1111/1001,Children and Young People,CYP,Transport Related,CDA,17/05/2016,02-15555,407.44,BN Gibson Ltd
Nottinghamshire County Council,1111/1001,Children and Young People,CYP,Transport Related,CDA,17/05/2016,02-15568,606,D G Private Hire Ltd
Nottinghamshire County Council,1111/1001,Children and Young People,CYP,Transport Related,CDA,17/05/2016,02-15570,"1,170.00",D G Private Hire Ltd
Nottinghamshire County Council,1111/1001,Children and Young People,CYP,Transport Related,CDA,17/05/2016,02-15576,906.62,D G Private Hire Ltd
Nottinghamshire County Council,1111/1001,Children and Young People,CYP,Transport Related,CDA,19/05/2016,02-16004,"3,738.00",Nottingham Cars Ltd
Nottinghamshire County Council,1111/1001,Children and Young People,CYP,Transport Related,CDA,24/05/2016,02-16526,123.62,Central Cars Nottm Ltd
Nottinghamshire County Council,1111/1001,Children and Young People,CYP,Transport Related,CDA,24/05/2016,02-16533,539,SJW (Muskham) Ltd T/A Z Cars
Nottinghamshire County Council,1111/1001,Children and Young People,CYP,Transport Related,CDA,24/05/2016,02-16548,"1,535.05",Sprays Transport Ltd
Nottinghamshire County Council,1111/1001,Children and Young People,CYP,Transport Related,CDA,24/05/2016,02-16553,"1,984.40",AOT Coaches
Nottinghamshire County Council,1111/1001,Children and Young People,CYP,Transport Related,CDA,24/05/2016,02-16554,895.4,AOT Coaches
Nottinghamshire County Council,1111/1001,Children and Young People,CYP,Transport Related,CDA,24/05/2016,02-16555,"1,650.00",AOT Coaches
Nottinghamshire County Council,1111/1001,Children and Young People,CYP,Transport Related,CDA,24/05/2016,02-16564,"1,235.00",Eurocab 2000 Ltd
Nottinghamshire County Council,1111/1001,Children and Young People,CYP,Transport Related,CDA,31/05/2016,02-16778,123.6,BN Gibson Ltd
Nottinghamshire County Council,1111/1001,Children and Young People,CYP,Supplies & Services,DAA,24/05/2016,02-17416,798.98,William Freer Limited
Nottinghamshire County Council,1111/1001,Children and Young People,CYP,Supplies & Services,DAA,27/05/2016,02-16097,"24,593.95",Greythorn Primary Academy
Nottinghamshire County Council,1111/1001,Children and Young People,CYP,Supplies & Services,DAA,31/05/2016,02-17764,"1,107.50",Inflatable Testing & Repairing Serv
Nottinghamshire County Council,1111/1001,Children and Young People,CYP,Supplies & Services,DBA,05/05/2016,02-10850,305.13,Brake Bros Ltd
Nottinghamshire County Council,1111/1001,Children and Young People,CYP,Supplies & Services,DBA,05/05/2016,02-10853,123.85,Brake Bros Ltd
Nottinghamshire County Council,1111/1001,Children and Young People,CYP,Supplies & Services,DBA,06/05/2016,02-10867,95.08,Brake Bros Ltd
Nottinghamshire County Council,1111/1001,Children and Young People,CYP,Supplies & Services,DBA,06/05/2016,02-10870,153.09,Brake Bros Ltd
Nottinghamshire County Council,1111/1001,Children and Young People,CYP,Supplies & Services,DBA,06/05/2016,02-10873,421.26,Brake Bros Ltd
Nottinghamshire County Council,1111/1001,Children and Young People,CYP,Supplies & Services,DBA,10/05/2016,02-11970,659.99,John Palin (Wholesale) Ltd
Nottinghamshire County Council,1111/1001,Children and Young People,CYP,Supplies & Services,DBA,12/05/2016,02-12303,412.56,Brake Bros Ltd
Nottinghamshire County Council,1111/1001,Children and Young People,CYP,Supplies & Services,DBA,12/05/2016,02-12306,388,Brake Bros Ltd
Nottinghamshire County Council,1111/1001,Children and Young People,CYP,Supplies & Services,DBA,12/05/2016,02-12309,98.09,Brake Bros Ltd
Nottinghamshire County Council,1111/1001,Children and Young People,CYP,Supplies & Services,DBA,12/05/2016,02-12312,413.45,Brake Bros Ltd
Nottinghamshire County Council,1111/1001,Children and Young People,CYP,Supplies & Services,DBA,17/05/2016,02-15617,93.38,M Maloney Country Butchers & B Ltd
Nottinghamshire County Council,1111/1001,Children and Young People,CYP,Supplies & Services,DBA,17/05/2016,02-15621,109.97,M Maloney Country Butchers & B Ltd
Nottinghamshire County Council,1111/1001,Children and Young People,CYP,Supplies & Services,DBA,17/05/2016,02-15625,80.54,M Maloney Country Butchers & B Ltd
Nottinghamshire County Council,1111/1001,Children and Young People,CYP,Supplies & Services,DBA,17/05/2016,02-15629,89.76,M Maloney Country Butchers & B Ltd
Nottinghamshire County Council,1111/1001,Children and Young People,CYP,Supplies & Services,DBA,18/05/2016,02-15740,56.05,Brake Bros Ltd
Nottinghamshire County Council,1111/1001,Children and Young People,CYP,Supplies & Services,DBA,18/05/2016,02-15743,218.11,Brake Bros Ltd
Nottinghamshire County Council,1111/1001,Children and Young People,CYP,Supplies & Services,DBA,18/05/2016,02-15746,103.25,Brake Bros Ltd
Nottinghamshire County Council,1111/1001,Children and Young People,CYP,Supplies & Services,DBA,18/05/2016,02-15750,118.11,Brake Bros Ltd
Nottinghamshire County Council,1111/1001,Children and Young People,CYP,Supplies & Services,DBA,23/05/2016,02-16083,56.44,M Maloney Country Butchers & B Ltd
Nottinghamshire County Council,1111/1001,Children and Young People,CYP,Supplies & Services,DBA,23/05/2016,02-16087,88.68,M Maloney Country Butchers & B Ltd
Nottinghamshire County Council,1111/1001,Children and Young People,CYP,Supplies & Services,DCA,31/05/2016,02-17083,710.25,Clean Sheet Laundry Ltd
Nottinghamshire County Council,1111/1001,Children and Young People,CYP,Supplies & Services,DEA,06/05/2016,02-17031,"1,341.51",Lane Family Decorators Ltd
Nottinghamshire County Council,1111/1001,Children and Young People,CYP,Supplies & Services,DEA,09/05/2016,02-17034,675,River Education Services Ltd
Nottinghamshire County Council,1111/1001,Children and Young People,CYP,Supplies & Services,DEA,11/05/2016,02-17093,"3,150.00",[Redacted]
Nottinghamshire County Council,1111/1001,Children and Young People,CYP,Supplies & Services,DEA,12/05/2016,02-17125,"3,916.67",Adoption Plus Ltd
Nottinghamshire County Council,1111/1001,Children and Young People,CYP,Supplies & Services,DEA,12/05/2016,02-17131,"3,916.67",Adoption Plus Ltd
Nottinghamshire County Council,1111/1001,Children and Young People,CYP,Supplies & Services,DEA,13/05/2016,02-17192,610.25,[Redacted]
Nottinghamshire County Council,1111/1001,Children and Young People,CYP,Supplies & Services,DEA,16/05/2016,02-17270,640,Little Acorns Childminding
Nottinghamshire County Council,1111/1001,Children and Young People,CYP,Supplies & Services,DEA,16/05/2016,02-17271,"1,300.00",The Together Trust Ltd
Nottinghamshire County Council,1111/1001,Children and Young People,CYP,Supplies & Services,DEA,18/05/2016,02-17403,844.48,"Futures Advice, Skills & Employment"
Nottinghamshire County Council,1111/1001,Children and Young People,CYP,Supplies & Services,DEA,19/05/2016,02-16006,500,[Redacted]
Nottinghamshire County Council,1111/1001,Children and Young People,CYP,Supplies & Services,DEA,19/05/2016,02-17471,"1,350.00",[Redacted]
Nottinghamshire County Council,1111/1001,Children and Young People,CYP,Supplies & Services,DEA,19/05/2016,02-17489,"2,500.00",[Redacted]
Nottinghamshire County Council,1111/1001,Children and Young People,CYP,Supplies & Services,DEA,20/05/2016,02-17132,"1,875.00",St Johns CE Academy
Nottinghamshire County Council,1111/1001,Children and Young People,CYP,Supplies & Services,DEA,20/05/2016,02-17160,"3,675.80",Stoke on Trent City Council
Nottinghamshire County Council,1111/1001,Children and Young People,CYP,Supplies & Services,DEA,20/05/2016,02-17178,"4,413.00",Cambridgshire County Council
Nottinghamshire County Council,1111/1001,Children and Young People,CYP,Supplies & Services,DEA,20/05/2016,02-17468,"1,350.00",[Redacted]
Nottinghamshire County Council,1111/1001,Children and Young People,CYP,Supplies & Services,DEA,20/05/2016,02-17496,"1,760.00",British Youth Council
Nottinghamshire County Council,1111/1001,Children and Young People,CYP,Supplies & Services,DEA,20/05/2016,02-17540,"1,800.00",[Redacted]
Nottinghamshire County Council,1111/1001,Children and Young People,CYP,Supplies & Services,DEA,23/05/2016,02-17579,"4,946.00",Cambridgshire County Council
Nottinghamshire County Council,1111/1001,Children and Young People,CYP,Supplies & Services,DEA,25/05/2016,02-17469,"3,713.00",The Aspire Educational Trust
Nottinghamshire County Council,1111/1001,Children and Young People,CYP,Supplies & Services,DEA,25/05/2016,02-17628,500,Target Litracy
Nottinghamshire County Council,1111/1001,Children and Young People,CYP,Supplies & Services,DEA,26/05/2016,02-17680,567,Fantastic Foxes Childcare
Nottinghamshire County Council,1111/1001,Children and Young People,CYP,Supplies & Services,DEA,27/05/2016,02-12407,"5,180.00",Aslockton Orston & Flintham Kids Cl
Nottinghamshire County Council,1111/1001,Children and Young People,CYP,Supplies & Services,DEA,27/05/2016,02-16745,"7,493.11","Culture, Learning & Libraries (Midl"
Nottinghamshire County Council,1111/1001,Children and Young People,CYP,Supplies & Services,DEA,27/05/2016,02-17246,897.5,Capita Business Services Ltd
Nottinghamshire County Council,1111/1001,Children and Young People,CYP,Supplies & Services,DEA,31/05/2016,02-17268,750,Family Action Enterprises Ltd
Nottinghamshire County Council,1111/1001,Children and Young People,CYP,Supplies & Services,DEA,31/05/2016,02-17421,"1,168.75",Chris Few Consultancy Ltd
Nottinghamshire County Council,1111/1001,Children and Young People,CYP,Supplies & Services,DEA,31/05/2016,02-17776,500,S M B Consulting
Nottinghamshire County Council,1111/1001,Children and Young People,CYP,Supplies & Services,DHA,12/05/2016,02-17187,"2,131.00",Ofsted
Nottinghamshire County Council,1111/1001,Children and Young People,CYP,Supplies & Services,DHA,25/05/2016,02-16716,"8,020.00",Hornes Construction Ltd
Nottinghamshire County Council,1111/1001,Children and Young People,CYP,Supplies & Services,DKA,05/05/2016,02-16999,552.87,Fusion Independence
Nottinghamshire County Council,1111/1001,Children and Young People,CYP,Supplies & Services,DKA,06/05/2016,02-17017,"1,456.43",Phs Group Plc
Nottinghamshire County Council,1111/1001,Children and Young People,CYP,Supplies & Services,DKA,06/05/2016,02-17018,506.9,Phs Group Plc
Nottinghamshire County Council,1111/1001,Children and Young People,CYP,Supplies & Services,DKA,13/05/2016,02-17244,"1,086.40",Carefirst Services
Nottinghamshire County Council,1111/1001,Children and Young People,CYP,Supplies & Services,DKA,18/05/2016,02-17376,"1,229.00",Carefirst Services
Nottinghamshire County Council,1111/1001,Children and Young People,CYP,Supplies & Services,DKA,20/05/2016,02-17512,"1,358.00",Carefirst Services
Nottinghamshire County Council,1111/1001,Children and Young People,CYP,Supplies & Services,DKA,23/05/2016,02-17574,"3,089.56",Schofield Education
Nottinghamshire County Council,1111/1001,Children and Young People,CYP,Supplies & Services,DKA,27/05/2016,02-17693,"1,334.11",Refuge
Nottinghamshire County Council,1111/1001,Children and Young People,CYP,Supplies & Services,DKA,31/05/2016,02-17683,"14,175.00",Family Action
Nottinghamshire County Council,1111/1001,Children and Young People,CYP,Third Party Payments,EBA,17/05/2016,02-17278,"37,872.00",Mansfield District Council
Nottinghamshire County Council,1111/1001,Children and Young People,CYP,Third Party Payments,EBA,18/05/2016,02-17274,"21,307.49",Derbyshire County Council
Nottinghamshire County Council,1111/1001,Children and Young People,CYP,Third Party Payments,EBA,25/05/2016,02-17062,"3,950.00",Technical Outdoor Solutions
Nottinghamshire County Council,1111/1001,Children and Young People,CYP,Third Party Payments,EBA,26/05/2016,02-16566,"2,568.25",Transform Schools
Nottinghamshire County Council,1111/1001,Children and Young People,CYP,Third Party Payments,EBA,26/05/2016,02-16567,"2,209.01",Transform Schools
Nottinghamshire County Council,1111/1001,Children and Young People,CYP,Third Party Payments,EBA,26/05/2016,02-16568,"8,090.08",Transform Schools
Nottinghamshire County Council,1111/1001,Children and Young People,CYP,Third Party Payments,EBA,26/05/2016,02-16569,"12,761.88",Transform Schools
Nottinghamshire County Council,1111/1001,Children and Young People,CYP,Third Party Payments,EBA,26/05/2016,02-16570,"2,632.61",Transform Schools
Nottinghamshire County Council,1111/1001,Children and Young People,CYP,Third Party Payments,EBA,26/05/2016,02-16571,"37,159.53",Transform Schools
Nottinghamshire County Council,1111/1001,Children and Young People,CYP,Third Party Payments,EBA,26/05/2016,02-16572,"42,744.00",Transform Schools
Nottinghamshire County Council,1111/1001,Children and Young People,CYP,Third Party Payments,EBA,26/05/2016,02-16585,"10,230.80",East Leake Schools Ltd
Nottinghamshire County Council,1111/1001,Children and Young People,CYP,Third Party Payments,EBA,26/05/2016,02-16717,"246,284.94",East Leake Schools Ltd
Nottinghamshire County Council,1111/1001,Children and Young People,CYP,Third Party Payments,EBA,26/05/2016,02-16718,"1,482,746.53",Transform Schools
Nottinghamshire County Council,1111/1001,Children and Young People,CYP,Third Party Payments,EBA,27/05/2016,02-17042,"3,260.00",Athelstan Primary School
Nottinghamshire County Council,1111/1001,Children and Young People,CYP,Third Party Payments,EDA,03/05/2016,02-10168,"19,539.00",George Spencer Academy
Nottinghamshire County Council,1111/1001,Children and Young People,CYP,Third Party Payments,EDA,04/05/2016,02-10096,"10,987.00",Leverton C Of E Academy
Nottinghamshire County Council,1111/1001,Children and Young People,CYP,Third Party Payments,EDA,04/05/2016,02-10602,779.1,Norbridge Academy
Nottinghamshire County Council,1111/1001,Children and Young People,CYP,Third Party Payments,EDA,04/05/2016,02-10603,763.2,Norbridge Academy
Nottinghamshire County Council,1111/1001,Children and Young People,CYP,Third Party Payments,EDA,04/05/2016,02-10604,"1,431.00",Norbridge Academy
Nottinghamshire County Council,1111/1001,Children and Young People,CYP,Third Party Payments,EDA,04/05/2016,02-10605,"1,772.85",Sir Donald Bailey Academy
Nottinghamshire County Council,1111/1001,Children and Young People,CYP,Third Party Payments,EDA,04/05/2016,02-10606,"2,098.80",Sir Donald Bailey Academy
Nottinghamshire County Council,1111/1001,Children and Young People,CYP,Third Party Payments,EDA,04/05/2016,02-10607,"2,480.40",Sir Donald Bailey Academy
Nottinghamshire County Council,1111/1001,Children and Young People,CYP,Third Party Payments,EDA,04/05/2016,02-10608,"17,024.00",Birklands Primary (Academy)
Nottinghamshire County Council,1111/1001,Children and Young People,CYP,Third Party Payments,EDA,04/05/2016,02-10609,"66,081.25",The Beech Academy
Nottinghamshire County Council,1111/1001,Children and Young People,CYP,Third Party Payments,EDA,04/05/2016,02-10610,"16,666.67",The Beech Academy
Nottinghamshire County Council,1111/1001,Children and Young People,CYP,Third Party Payments,EDA,04/05/2016,02-10611,"4,166.67",The Beech Academy
Nottinghamshire County Council,1111/1001,Children and Young People,CYP,Third Party Payments,EDA,04/05/2016,02-10612,"74,281.25",Foxwood Academy
Nottinghamshire County Council,1111/1001,Children and Young People,CYP,Third Party Payments,EDA,10/05/2016,02-11959,667.8,The Bramble Academy
Nottinghamshire County Council,1111/1001,Children and Young People,CYP,Third Party Payments,EDA,12/05/2016,02-12195,"1,790.85",The Carlton Academy
Nottinghamshire County Council,1111/1001,Children and Young People,CYP,Third Party Payments,EDA,12/05/2016,02-12196,"3,820.00",Queen Elizabeth's Academy
Nottinghamshire County Council,1111/1001,Children and Young People,CYP,Third Party Payments,EDA,23/05/2016,02-12333,"50,000.00",Bassetlaw Primary Behaviour Partner
Nottinghamshire County Council,1111/1001,Children and Young People,CYP,Third Party Payments,EDA,25/05/2016,02-16584,"2,665.00",St Peters C of E Academy
Nottinghamshire County Council,1111/1001,Children and Young People,CYP,Third Party Payments,EDA,25/05/2016,02-16586,"4,032.00",St Patricks Catholic Primary
Nottinghamshire County Council,1111/1001,Children and Young People,CYP,Third Party Payments,EDA,27/05/2016,02-12275,"8,081.00",The South Wolds Academy & Sixth For
Nottinghamshire County Council,1111/1001,Children and Young People,CYP,Third Party Payments,EDA,27/05/2016,02-12276,"52,917.00",The South Wolds Academy & Sixth For
Nottinghamshire County Council,1111/1001,Children and Young People,CYP,Third Party Payments,EDA,27/05/2016,02-16757,"22,882.83",Arnbrook Primary Academy
Nottinghamshire County Council,1111/1001,Children and Young People,CYP,Third Party Payments,EDA,27/05/2016,02-16758,"7,235.20",St Peters C of E Academy
Nottinghamshire County Council,1111/1001,Children and Young People,CYP,Third Party Payments,EFA,05/05/2016,02-17000,"2,533.33",Nisai Virtual Academy Ltd
Nottinghamshire County Council,1111/1001,Children and Young People,CYP,Third Party Payments,EFA,06/05/2016,02-17030,"1,800.30",Teaching Personnel Ltd
Nottinghamshire County Council,1111/1001,Children and Young People,CYP,Third Party Payments,EFA,06/05/2016,02-17040,"1,800.30",Teaching Personnel Ltd
Nottinghamshire County Council,1111/1001,Children and Young People,CYP,Third Party Payments,EFA,09/05/2016,02-17024,935,Rural Community Action Notts
Nottinghamshire County Council,1111/1001,Children and Young People,CYP,Third Party Payments,EFA,11/05/2016,02-17110,"11,632.00",Sutherland House Trading Ltd
Nottinghamshire County Council,1111/1001,Children and Young People,CYP,Third Party Payments,EFA,11/05/2016,02-17114,"55,846.29",Esland North Ltd
Nottinghamshire County Council,1111/1001,Children and Young People,CYP,Third Party Payments,EFA,11/05/2016,02-17117,"16,267.00",Sutherland House Trading Ltd
Nottinghamshire County Council,1111/1001,Children and Young People,CYP,Third Party Payments,EFA,11/05/2016,02-17118,"11,272.00",Sutherland House Trading Ltd
Nottinghamshire County Council,1111/1001,Children and Young People,CYP,Third Party Payments,EFA,11/05/2016,02-17119,"14,972.00",Sutherland House Trading Ltd
Nottinghamshire County Council,1111/1001,Children and Young People,CYP,Third Party Payments,EFA,11/05/2016,02-17120,"10,337.00",Sutherland House Trading Ltd
Nottinghamshire County Council,1111/1001,Children and Young People,CYP,Third Party Payments,EFA,11/05/2016,02-17121,"10,337.00",Sutherland House Trading Ltd
Nottinghamshire County Council,1111/1001,Children and Young People,CYP,Third Party Payments,EFA,11/05/2016,02-17124,"15,907.00",Sutherland House Trading Ltd
Nottinghamshire County Council,1111/1001,Children and Young People,CYP,Third Party Payments,EFA,11/05/2016,02-17126,"11,272.00",Sutherland House Trading Ltd
Nottinghamshire County Council,1111/1001,Children and Young People,CYP,Third Party Payments,EFA,11/05/2016,02-17127,"11,272.00",Sutherland House Trading Ltd
Nottinghamshire County Council,1111/1001,Children and Young People,CYP,Third Party Payments,EFA,11/05/2016,02-17128,"11,632.00",Sutherland House Trading Ltd
Nottinghamshire County Council,1111/1001,Children and Young People,CYP,Third Party Payments,EFA,11/05/2016,02-17133,"16,800.00",Sutherland House Trading Ltd
Nottinghamshire County Council,1111/1001,Children and Young People,CYP,Third Party Payments,EFA,12/05/2016,02-17153,"16,267.00",Sutherland House Trading Ltd
Nottinghamshire County Council,1111/1001,Children and Young People,CYP,Third Party Payments,EFA,12/05/2016,02-17168,"23,670.00",Homefield College Ltd
Nottinghamshire County Council,1111/1001,Children and Young People,CYP,Third Party Payments,EFA,13/05/2016,02-17191,"1,080.00",Good Apple Education
Nottinghamshire County Council,1111/1001,Children and Young People,CYP,Third Party Payments,EFA,13/05/2016,02-17226,"16,267.00",Sutherland House Trading Ltd
Nottinghamshire County Council,1111/1001,Children and Young People,CYP,Third Party Payments,EFA,13/05/2016,02-17227,"11,632.00",Sutherland House Trading Ltd
Nottinghamshire County Council,1111/1001,Children and Young People,CYP,Third Party Payments,EFA,13/05/2016,02-17228,"11,632.00",Sutherland House Trading Ltd
Nottinghamshire County Council,1111/1001,Children and Young People,CYP,Third Party Payments,EFA,13/05/2016,02-17229,"11,632.00",Sutherland House Trading Ltd
Nottinghamshire County Council,1111/1001,Children and Young People,CYP,Third Party Payments,EFA,13/05/2016,02-17230,"11,272.00",Sutherland House Trading Ltd
Nottinghamshire County Council,1111/1001,Children and Young People,CYP,Third Party Payments,EFA,13/05/2016,02-17231,"11,272.00",Sutherland House Trading Ltd
Nottinghamshire County Council,1111/1001,Children and Young People,CYP,Third Party Payments,EFA,13/05/2016,02-17232,"10,337.00",Sutherland House Trading Ltd
Nottinghamshire County Council,1111/1001,Children and Young People,CYP,Third Party Payments,EFA,13/05/2016,02-17233,"11,272.00",Sutherland House Trading Ltd
Nottinghamshire County Council,1111/1001,Children and Young People,CYP,Third Party Payments,EFA,13/05/2016,02-17234,"16,267.00",Sutherland House Trading Ltd
Nottinghamshire County Council,1111/1001,Children and Young People,CYP,Third Party Payments,EFA,13/05/2016,02-17235,"11,632.00",Sutherland House Trading Ltd
Nottinghamshire County Council,1111/1001,Children and Young People,CYP,Third Party Payments,EFA,13/05/2016,02-17236,"10,337.00",Sutherland House Trading Ltd
Nottinghamshire County Council,1111/1001,Children and Young People,CYP,Third Party Payments,EFA,13/05/2016,02-17237,"10,337.00",Sutherland House Trading Ltd
Nottinghamshire County Council,1111/1001,Children and Young People,CYP,Third Party Payments,EFA,13/05/2016,02-17238,"16,267.00",Sutherland House Trading Ltd
Nottinghamshire County Council,1111/1001,Children and Young People,CYP,Third Party Payments,EFA,13/05/2016,02-17239,"10,337.00",Sutherland House Trading Ltd
Nottinghamshire County Council,1111/1001,Children and Young People,CYP,Third Party Payments,EFA,13/05/2016,02-17240,"15,907.00",Sutherland House Trading Ltd
Nottinghamshire County Council,1111/1001,Children and Young People,CYP,Third Party Payments,EFA,13/05/2016,02-17241,"10,337.00",Sutherland House Trading Ltd
Nottinghamshire County Council,1111/1001,Children and Young People,CYP,Third Party Payments,EFA,13/05/2016,02-17242,"11,632.00",Sutherland House Trading Ltd
Nottinghamshire County Council,1111/1001,Children and Young People,CYP,Third Party Payments,EFA,17/05/2016,02-17266,"19,612.67",Kisimul School
Nottinghamshire County Council,1111/1001,Children and Young People,CYP,Third Party Payments,EFA,17/05/2016,02-17285,"1,800.30",Teaching Personnel Ltd
Nottinghamshire County Council,1111/1001,Children and Young People,CYP,Third Party Payments,EFA,17/05/2016,02-17286,"1,800.30",Teaching Personnel Ltd
Nottinghamshire County Council,1111/1001,Children and Young People,CYP,Third Party Payments,EFA,17/05/2016,02-17365,"67,687.00",Landmarks Ltd
Nottinghamshire County Council,1111/1001,Children and Young People,CYP,Third Party Payments,EFA,18/05/2016,02-17367,"2,533.33",Nisai Virtual Academy Ltd
Nottinghamshire County Council,1111/1001,Children and Young People,CYP,Third Party Payments,EFA,19/05/2016,02-17427,538,Alternative Programme Education Ltd
Nottinghamshire County Council,1111/1001,Children and Young People,CYP,Third Party Payments,EFA,19/05/2016,02-17428,522,Alternative Programme Education Ltd
Nottinghamshire County Council,1111/1001,Children and Young People,CYP,Third Party Payments,EFA,19/05/2016,02-17436,"16,610.00",North Notts College
Nottinghamshire County Council,1111/1001,Children and Young People,CYP,Third Party Payments,EFA,19/05/2016,02-17490,"1,800.30",Teaching Personnel Ltd
Nottinghamshire County Council,1111/1001,Children and Young People,CYP,Third Party Payments,EFA,20/05/2016,02-17457,"15,006.34",National Autistic Society
Nottinghamshire County Council,1111/1001,Children and Young People,CYP,Third Party Payments,EFA,20/05/2016,02-17458,"35,682.67",National Autistic Society
Nottinghamshire County Council,1111/1001,Children and Young People,CYP,Third Party Payments,EFA,23/05/2016,02-17535,720,Creative Family Solutions Ltd
Nottinghamshire County Council,1111/1001,Children and Young People,CYP,Third Party Payments,EFA,23/05/2016,02-17536,"1,990.00",Creative Family Solutions Ltd
Nottinghamshire County Council,1111/1001,Children and Young People,CYP,Third Party Payments,EFA,23/05/2016,02-17546,"99,491.68",Hope House School Ltd
Nottinghamshire County Council,1111/1001,Children and Young People,CYP,Third Party Payments,EFA,23/05/2016,02-17559,"84,915.00",Doncaster Deaf Trust
Nottinghamshire County Council,1111/1001,Children and Young People,CYP,Third Party Payments,EFA,23/05/2016,02-17581,647.4,Creative Family Solutions Ltd
Nottinghamshire County Council,1111/1001,Children and Young People,CYP,Third Party Payments,EFA,23/05/2016,02-17586,960,Buxton Training Enterprises Ltd
Nottinghamshire County Council,1111/1001,Children and Young People,CYP,Third Party Payments,EFA,23/05/2016,02-17590,900,Phoenix Aspirational Learning Suppo
Nottinghamshire County Council,1111/1001,Children and Young People,CYP,Third Party Payments,EFA,23/05/2016,02-17594,"4,842.78",Nisai Virtual Academy Ltd
Nottinghamshire County Council,1111/1001,Children and Young People,CYP,Third Party Payments,EFA,24/05/2016,02-16523,"152,500.00",Bassetlaw Primary Behaviour Partner
Nottinghamshire County Council,1111/1001,Children and Young People,CYP,Third Party Payments,EFA,25/05/2016,02-17638,"1,800.30",Teaching Personnel Ltd
Nottinghamshire County Council,1111/1001,Children and Young People,CYP,Third Party Payments,EFA,26/05/2016,02-17641,"2,949.43",Castle Homes Care Ltd
Nottinghamshire County Council,1111/1001,Children and Young People,CYP,Third Party Payments,EFA,26/05/2016,02-17652,"2,430.00",Nisai Virtual Academy Ltd
Nottinghamshire County Council,1111/1001,Children and Young People,CYP,Third Party Payments,EFA,26/05/2016,02-17675,"1,800.30",Teaching Personnel Ltd
Nottinghamshire County Council,1111/1001,Children and Young People,CYP,Third Party Payments,EFA,26/05/2016,02-17676,"1,800.30",Teaching Personnel Ltd
Nottinghamshire County Council,1111/1001,Children and Young People,CYP,Third Party Payments,EFA,27/05/2016,02-16946,"1,516.00",Grantham College
Nottinghamshire County Council,1111/1001,Children and Young People,CYP,Third Party Payments,EFA,27/05/2016,02-16947,"1,605.00",First Universal Enterprises Ltd
Nottinghamshire County Council,1111/1001,Children and Young People,CYP,Third Party Payments,EFA,31/05/2016,02-17162,"5,775.00",Stone Soup Academy
Nottinghamshire County Council,1111/1001,Children and Young People,CYP,Third Party Payments,EGA,04/05/2016,02-10582,833,Fernwood Day Nursery Ltd
Nottinghamshire County Council,1111/1001,Children and Young People,CYP,Third Party Payments,EGA,04/05/2016,02-10583,578.2,JPAC Ltd
Nottinghamshire County Council,1111/1001,Children and Young People,CYP,Third Party Payments,EGA,04/05/2016,02-10584,637,Bingham Robert Miles Extended Care
Nottinghamshire County Council,1111/1001,Children and Young People,CYP,Third Party Payments,EGA,04/05/2016,02-10585,637,Bingham Robert Miles Extended Care
Nottinghamshire County Council,1111/1001,Children and Young People,CYP,Third Party Payments,EGA,04/05/2016,02-10586,637,Learning Ladder Childcare Ltd
Nottinghamshire County Council,1111/1001,Children and Young People,CYP,Third Party Payments,EGA,04/05/2016,02-10587,764.4,Little Kites Playgroup
Nottinghamshire County Council,1111/1001,Children and Young People,CYP,Third Party Payments,EGA,04/05/2016,02-10588,882,The Lime Trees
Nottinghamshire County Council,1111/1001,Children and Young People,CYP,Third Party Payments,EGA,04/05/2016,02-10589,874.65,Busy Bees (Daybrook)
Nottinghamshire County Council,1111/1001,Children and Young People,CYP,Third Party Payments,EGA,04/05/2016,02-10590,624.75,Busy Bees Nursery
Nottinghamshire County Council,1111/1001,Children and Young People,CYP,Third Party Payments,EGA,04/05/2016,02-10591,833,Highfields School & Nursery
Nottinghamshire County Council,1111/1001,Children and Young People,CYP,Third Party Payments,EGA,04/05/2016,02-10592,833,Tiny World Mansfield
Nottinghamshire County Council,1111/1001,Children and Young People,CYP,Third Party Payments,EGA,04/05/2016,02-10593,722.75,Wollaton Village Day Nurseries Ltd.
Nottinghamshire County Council,1111/1001,Children and Young People,CYP,Third Party Payments,EGA,04/05/2016,02-10594,573.3,PSLA Newstead Childcare (HO)
Nottinghamshire County Council,1111/1001,Children and Young People,CYP,Third Party Payments,EGA,04/05/2016,02-10595,583.1,Ollerton Out Of School Care
Nottinghamshire County Council,1111/1001,Children and Young People,CYP,Third Party Payments,EGA,04/05/2016,02-10596,666.4,Papermoon Day Nursery Sutton In Ash
Nottinghamshire County Council,1111/1001,Children and Young People,CYP,Third Party Payments,EGA,04/05/2016,02-10597,637,Papermoon Day Nursery
Nottinghamshire County Council,1111/1001,Children and Young People,CYP,Third Party Payments,EGA,04/05/2016,02-16944,583.2,Prestige Adolescent Care & Educatio
Nottinghamshire County Council,1111/1001,Children and Young People,CYP,Third Party Payments,EGA,04/05/2016,02-16948,"2,901.40",Wyntax
Nottinghamshire County Council,1111/1001,Children and Young People,CYP,Third Party Payments,EGA,04/05/2016,02-16954,"8,490.97",Sunbeam Fostering Agency Ltd
Nottinghamshire County Council,1111/1001,Children and Young People,CYP,Third Party Payments,EGA,04/05/2016,02-16972,"903,407.67",Nottinghamshire Healthcare Nhs F Tr
Nottinghamshire County Council,1111/1001,Children and Young People,CYP,Third Party Payments,EGA,04/05/2016,02-16974,"34,618.42","Culture, Learning & Libraries (Midl"
Nottinghamshire County Council,1111/1001,Children and Young People,CYP,Third Party Payments,EGA,05/05/2016,02-10833,694.79,Tracey Lever (Child-Minder)
Nottinghamshire County Council,1111/1001,Children and Young People,CYP,Third Party Payments,EGA,05/05/2016,02-10834,"45,127.37",Breedon House Nurseries Ltd
Nottinghamshire County Council,1111/1001,Children and Young People,CYP,Third Party Payments,EGA,05/05/2016,02-10835,"11,970.00",Breedon House Nurseries Ltd
Nottinghamshire County Council,1111/1001,Children and Young People,CYP,Third Party Payments,EGA,05/05/2016,02-10836,"15,420.95",Children 1st @ Newark Centre
Nottinghamshire County Council,1111/1001,Children and Young People,CYP,Third Party Payments,EGA,05/05/2016,02-10837,"25,711.14",Children 1st @ Breedon House
Nottinghamshire County Council,1111/1001,Children and Young People,CYP,Third Party Payments,EGA,05/05/2016,02-10838,"11,687.14",Angels With Dirty Faces Day Nursery
Nottinghamshire County Council,1111/1001,Children and Young People,CYP,Third Party Payments,EGA,05/05/2016,02-10839,"1,146.60",[Redacted]
Nottinghamshire County Council,1111/1001,Children and Young People,CYP,Third Party Payments,EGA,05/05/2016,02-16986,"9,342.88",Hope Fostering Services Ltd
Nottinghamshire County Council,1111/1001,Children and Young People,CYP,Third Party Payments,EGA,05/05/2016,02-16988,"41,918.56",The Place Young Peoples Company Ltd
Nottinghamshire County Council,1111/1001,Children and Young People,CYP,Third Party Payments,EGA,05/05/2016,02-17003,"34,865.81",Treehouse Care Fostering Solutions
Nottinghamshire County Council,1111/1001,Children and Young People,CYP,Third Party Payments,EGA,05/05/2016,02-17004,"10,112.50",Carefirst Services
Nottinghamshire County Council,1111/1001,Children and Young People,CYP,Third Party Payments,EGA,06/05/2016,02-10885,"1,747.20",Sues Childminding Services
Nottinghamshire County Council,1111/1001,Children and Young People,CYP,Third Party Payments,EGA,06/05/2016,02-10886,"9,828.00",Trowell Pre School
Nottinghamshire County Council,1111/1001,Children and Young People,CYP,Third Party Payments,EGA,06/05/2016,02-10887,"5,806.71",Phoenix Farm Pre School
Nottinghamshire County Council,1111/1001,Children and Young People,CYP,Third Party Payments,EGA,06/05/2016,02-10888,"4,637.20",Pea Pod Day Nursery Ltd
Nottinghamshire County Council,1111/1001,Children and Young People,CYP,Third Party Payments,EGA,06/05/2016,02-10889,"1,480.57",[Redacted]
Nottinghamshire County Council,1111/1001,Children and Young People,CYP,Third Party Payments,EGA,06/05/2016,02-10890,"2,403.45",Jubilee House Christian School
Nottinghamshire County Council,1111/1001,Children and Young People,CYP,Third Party Payments,EGA,06/05/2016,02-10891,546,L Holloway Childminding Service
Nottinghamshire County Council,1111/1001,Children and Young People,CYP,Third Party Payments,EGA,06/05/2016,02-10892,"9,797.79",Hermitage Pre-School
Nottinghamshire County Council,1111/1001,Children and Young People,CYP,Third Party Payments,EGA,06/05/2016,02-10893,546,Little Tots
Nottinghamshire County Council,1111/1001,Children and Young People,CYP,Third Party Payments,EGA,06/05/2016,02-10894,"11,096.64",Carlton Hill Playgroup
Nottinghamshire County Council,1111/1001,Children and Young People,CYP,Third Party Payments,EGA,06/05/2016,02-10895,546,[Redacted]
Nottinghamshire County Council,1111/1001,Children and Young People,CYP,Third Party Payments,EGA,06/05/2016,02-16949,"525,000.00","Futures Advice, Skills & Employment"
Nottinghamshire County Council,1111/1001,Children and Young People,CYP,Third Party Payments,EGA,06/05/2016,02-17025,"9,070.80",Hope Fostering Services Ltd
Nottinghamshire County Council,1111/1001,Children and Young People,CYP,Third Party Payments,EGA,09/05/2016,02-17041,613,Mixed Foundations
Nottinghamshire County Council,1111/1001,Children and Young People,CYP,Third Party Payments,EGA,09/05/2016,02-17053,516,Alphabet House Day Nursery Worksop
Nottinghamshire County Council,1111/1001,Children and Young People,CYP,Third Party Payments,EGA,09/05/2016,02-17054,516,Alphabet House Day Nursery Worksop
Nottinghamshire County Council,1111/1001,Children and Young People,CYP,Third Party Payments,EGA,09/05/2016,02-17059,"1,600.00",Social Home Choices
Nottinghamshire County Council,1111/1001,Children and Young People,CYP,Third Party Payments,EGA,10/05/2016,02-11969,695.04,Portland College
Nottinghamshire County Council,1111/1001,Children and Young People,CYP,Third Party Payments,EGA,10/05/2016,02-17069,"17,891.43",GBA Care Ltd
Nottinghamshire County Council,1111/1001,Children and Young People,CYP,Third Party Payments,EGA,10/05/2016,02-17074,"3,764.29",Five Rivers Child Care Ltd
Nottinghamshire County Council,1111/1001,Children and Young People,CYP,Third Party Payments,EGA,10/05/2016,02-17079,"3,995.00",Crystal Care Solutions Ltd
Nottinghamshire County Council,1111/1001,Children and Young People,CYP,Third Party Payments,EGA,10/05/2016,02-17080,"3,995.00",Crystal Care Solutions Ltd
Nottinghamshire County Council,1111/1001,Children and Young People,CYP,Third Party Payments,EGA,11/05/2016,02-17087,"1,444.00",Independent Childcare Group Of Schs
Nottinghamshire County Council,1111/1001,Children and Young People,CYP,Third Party Payments,EGA,11/05/2016,02-17089,"36,916.56",Fusion Fostering
Nottinghamshire County Council,1111/1001,Children and Young People,CYP,Third Party Payments,EGA,11/05/2016,02-17142,"110,406.46",Fostering People Ltd
Nottinghamshire County Council,1111/1001,Children and Young People,CYP,Third Party Payments,EGA,12/05/2016,02-12277,"17,841.97",Learning Ladder Childcare Ltd
Nottinghamshire County Council,1111/1001,Children and Young People,CYP,Third Party Payments,EGA,12/05/2016,02-12278,"12,910.15",Cheeky Monkeys Day Nursery
Nottinghamshire County Council,1111/1001,Children and Young People,CYP,Third Party Payments,EGA,12/05/2016,02-12279,"13,259.16",Duncroft Day Nursery
Nottinghamshire County Council,1111/1001,Children and Young People,CYP,Third Party Payments,EGA,12/05/2016,02-12280,"3,871.14",Jesters Childcare Ltd
Nottinghamshire County Council,1111/1001,Children and Young People,CYP,Third Party Payments,EGA,12/05/2016,02-12281,"1,935.57","Sue Smith, Happy Kids Childminding"
Nottinghamshire County Council,1111/1001,Children and Young People,CYP,Third Party Payments,EGA,12/05/2016,02-12283,"31,430.50",Good Foundations Day Nursery
Nottinghamshire County Council,1111/1001,Children and Young People,CYP,Third Party Payments,EGA,12/05/2016,02-17076,"70,000.00",Exeter Royal Academy For Deaf Educa
Nottinghamshire County Council,1111/1001,Children and Young People,CYP,Third Party Payments,EGA,12/05/2016,02-17092,"3,995.00",Crystal Care Solutions Ltd
Nottinghamshire County Council,1111/1001,Children and Young People,CYP,Third Party Payments,EGA,12/05/2016,02-17122,"14,068.80",Piers (UK) Ltd
Nottinghamshire County Council,1111/1001,Children and Young People,CYP,Third Party Payments,EGA,12/05/2016,02-17129,"3,100.00",Piers (UK) Ltd
Nottinghamshire County Council,1111/1001,Children and Young People,CYP,Third Party Payments,EGA,12/05/2016,02-17139,"3,995.00",Crystal Care Solutions Ltd
Nottinghamshire County Council,1111/1001,Children and Young People,CYP,Third Party Payments,EGA,12/05/2016,02-17141,"3,995.00",Crystal Care Solutions Ltd
Nottinghamshire County Council,1111/1001,Children and Young People,CYP,Third Party Payments,EGA,12/05/2016,02-17157,"18,603.00",Independent Childcare Group Of Schs
Nottinghamshire County Council,1111/1001,Children and Young People,CYP,Third Party Payments,EGA,12/05/2016,02-17194,"7,767.43",Fusion Independence
Nottinghamshire County Council,1111/1001,Children and Young People,CYP,Third Party Payments,EGA,12/05/2016,02-17195,"1,549.72",Fusion Independence
Nottinghamshire County Council,1111/1001,Children and Young People,CYP,Third Party Payments,EGA,12/05/2016,02-17196,"2,986.28",Fusion Independence
Nottinghamshire County Council,1111/1001,Children and Young People,CYP,Third Party Payments,EGA,13/05/2016,02-17215,"122,671.43",Esland North Ltd
Nottinghamshire County Council,1111/1001,Children and Young People,CYP,Third Party Payments,EGA,16/05/2016,02-17252,"6,080.84",Futureminds Social Enterprise Ltd
Nottinghamshire County Council,1111/1001,Children and Young People,CYP,Third Party Payments,EGA,16/05/2016,02-17253,"6,887.86",Foster Care Associates Limited
Nottinghamshire County Council,1111/1001,Children and Young People,CYP,Third Party Payments,EGA,16/05/2016,02-17265,"20,285.24",Jani Homes Ltd
Nottinghamshire County Council,1111/1001,Children and Young People,CYP,Third Party Payments,EGA,17/05/2016,02-15536,"11,120.64",Portland College
Nottinghamshire County Council,1111/1001,Children and Young People,CYP,Third Party Payments,EGA,17/05/2016,02-17296,"3,764.29",Five Rivers Child Care Ltd
Nottinghamshire County Council,1111/1001,Children and Young People,CYP,Third Party Payments,EGA,17/05/2016,02-17299,"4,134.10",Wyntax
Nottinghamshire County Council,1111/1001,Children and Young People,CYP,Third Party Payments,EGA,17/05/2016,02-17300,538.95,Wyntax
Nottinghamshire County Council,1111/1001,Children and Young People,CYP,Third Party Payments,EGA,17/05/2016,02-17301,"6,113.10",Wyntax
Nottinghamshire County Council,1111/1001,Children and Young People,CYP,Third Party Payments,EGA,17/05/2016,02-17302,"3,098.97",Wyntax
Nottinghamshire County Council,1111/1001,Children and Young People,CYP,Third Party Payments,EGA,17/05/2016,02-17303,868.95,Wyntax
Nottinghamshire County Council,1111/1001,Children and Young People,CYP,Third Party Payments,EGA,17/05/2016,02-17304,"3,545.15",Wyntax
Nottinghamshire County Council,1111/1001,Children and Young People,CYP,Third Party Payments,EGA,17/05/2016,02-17305,"1,171.00",Wyntax
Nottinghamshire County Council,1111/1001,Children and Young People,CYP,Third Party Payments,EGA,17/05/2016,02-17306,"4,775.70",Wyntax
Nottinghamshire County Council,1111/1001,Children and Young People,CYP,Third Party Payments,EGA,17/05/2016,02-17321,"1,476.00",[Redacted]
Nottinghamshire County Council,1111/1001,Children and Young People,CYP,Third Party Payments,EGA,17/05/2016,02-17333,"73,709.70",The National Fostering Agency
Nottinghamshire County Council,1111/1001,Children and Young People,CYP,Third Party Payments,EGA,17/05/2016,02-17334,"1,792.40",Wyntax
Nottinghamshire County Council,1111/1001,Children and Young People,CYP,Third Party Payments,EGA,18/05/2016,02-17272,"3,214.20",Teen Support Services Ltd
Nottinghamshire County Council,1111/1001,Children and Young People,CYP,Third Party Payments,EGA,18/05/2016,02-17353,509.4,Wyntax
Nottinghamshire County Council,1111/1001,Children and Young People,CYP,Third Party Payments,EGA,18/05/2016,02-17368,"7,040.00",Safe Haven Accommodation Ltd
Nottinghamshire County Council,1111/1001,Children and Young People,CYP,Third Party Payments,EGA,18/05/2016,02-17387,"3,995.00",Crystal Care Solutions Ltd
Nottinghamshire County Council,1111/1001,Children and Young People,CYP,Third Party Payments,EGA,18/05/2016,02-17388,"38,988.40",Jay Fostering
Nottinghamshire County Council,1111/1001,Children and Young People,CYP,Third Party Payments,EGA,18/05/2016,02-17404,"10,628.66",Chrysalis Consortium Ltd
Nottinghamshire County Council,1111/1001,Children and Young People,CYP,Third Party Payments,EGA,18/05/2016,02-17409,644,Independent Childcare Group Of Schs
Nottinghamshire County Council,1111/1001,Children and Young People,CYP,Third Party Payments,EGA,18/05/2016,02-17415,"10,075.00",Independent Childcare Group Of Schs
Nottinghamshire County Council,1111/1001,Children and Young People,CYP,Third Party Payments,EGA,18/05/2016,02-17423,"2,048.00",Newark Emmaus Trust
Nottinghamshire County Council,1111/1001,Children and Young People,CYP,Third Party Payments,EGA,19/05/2016,02-17371,"32,003.00",Nottinghamshire YMCA (HO)
Nottinghamshire County Council,1111/1001,Children and Young People,CYP,Third Party Payments,EGA,19/05/2016,02-17465,"64,807.57",The National Fostering Agency
Nottinghamshire County Council,1111/1001,Children and Young People,CYP,Third Party Payments,EGA,19/05/2016,02-17466,"64,807.57",The National Fostering Agency
Nottinghamshire County Council,1111/1001,Children and Young People,CYP,Third Party Payments,EGA,20/05/2016,02-16013,637,Brooklyn Day Nursery
Nottinghamshire County Council,1111/1001,Children and Young People,CYP,Third Party Payments,EGA,23/05/2016,02-17542,"19,577.14",Esland South Ltd
Nottinghamshire County Council,1111/1001,Children and Young People,CYP,Third Party Payments,EGA,23/05/2016,02-17561,"6,820.00",Fostering People Ltd
Nottinghamshire County Council,1111/1001,Children and Young People,CYP,Third Party Payments,EGA,23/05/2016,02-17562,"34,595.84",Fusion Fostering
Nottinghamshire County Council,1111/1001,Children and Young People,CYP,Third Party Payments,EGA,24/05/2016,02-17417,"1,300.00",Piers (UK) Ltd
Nottinghamshire County Council,1111/1001,Children and Young People,CYP,Third Party Payments,EGA,24/05/2016,02-17593,"14,700.00",Piers (UK) Ltd
Nottinghamshire County Council,1111/1001,Children and Young People,CYP,Third Party Payments,EGA,24/05/2016,02-17605,"3,289.33",[Redacted]
Nottinghamshire County Council,1111/1001,Children and Young People,CYP,Third Party Payments,EGA,25/05/2016,02-17627,"24,459.90",Team Fostering
Nottinghamshire County Council,1111/1001,Children and Young People,CYP,Third Party Payments,EGA,25/05/2016,02-17630,"1,250.00",Tree House Out Of School
Nottinghamshire County Council,1111/1001,Children and Young People,CYP,Third Party Payments,EGA,25/05/2016,02-17642,"11,566.72",Castle Homes Care Ltd
Nottinghamshire County Council,1111/1001,Children and Young People,CYP,Third Party Payments,EGA,25/05/2016,02-17643,"74,760.00",Castle Homes Care Ltd
Nottinghamshire County Council,1111/1001,Children and Young People,CYP,Third Party Payments,EGA,25/05/2016,02-17644,"74,760.00",Castle Homes Care Ltd
Nottinghamshire County Council,1111/1001,Children and Young People,CYP,Third Party Payments,EGA,25/05/2016,02-17647,"1,088.00",[Redacted]
Nottinghamshire County Council,1111/1001,Children and Young People,CYP,Third Party Payments,EGA,25/05/2016,02-17650,900,Carefirst Services
Nottinghamshire County Council,1111/1001,Children and Young People,CYP,Third Party Payments,EGA,26/05/2016,02-17084,"10,285.80",Chrysalis Consortium Ltd
Nottinghamshire County Council,1111/1001,Children and Young People,CYP,Third Party Payments,EGA,26/05/2016,02-17550,"100,852.04",Foster Care Associates Limited
Nottinghamshire County Council,1111/1001,Children and Young People,CYP,Third Party Payments,EGA,26/05/2016,02-17648,"3,995.00",Crystal Care Solutions Ltd
Nottinghamshire County Council,1111/1001,Children and Young People,CYP,Third Party Payments,EGA,26/05/2016,02-17649,"3,995.00",Crystal Care Solutions Ltd
Nottinghamshire County Council,1111/1001,Children and Young People,CYP,Third Party Payments,EGA,26/05/2016,02-17668,"72,367.13",Blue Mountain Homes Ltd
Nottinghamshire County Council,1111/1001,Children and Young People,CYP,Third Party Payments,EGA,26/05/2016,02-17672,"107,514.00",Pathway Care Solutions II Ltd
Nottinghamshire County Council,1111/1001,Children and Young People,CYP,Third Party Payments,EGA,26/05/2016,02-17681,"13,333.33",Remedi
Nottinghamshire County Council,1111/1001,Children and Young People,CYP,Third Party Payments,EGA,26/05/2016,02-17682,"1,044.91",Progressive Care
Nottinghamshire County Council,1111/1001,Children and Young People,CYP,Third Party Payments,EGA,26/05/2016,02-17684,"21,975.90",Team Fostering
Nottinghamshire County Council,1111/1001,Children and Young People,CYP,Third Party Payments,EGA,26/05/2016,02-17685,"6,912.50",Carefirst Services
Nottinghamshire County Council,1111/1001,Children and Young People,CYP,Third Party Payments,EGA,27/05/2016,02-17589,"3,909.60",Foster Care Associates Limited
Nottinghamshire County Council,1111/1001,Children and Young People,CYP,Third Party Payments,EGA,27/05/2016,02-17689,"30,584.90",East Midlands Care Matters
Nottinghamshire County Council,1111/1001,Children and Young People,CYP,Third Party Payments,EGA,27/05/2016,02-17695,"12,534.20",Teen Support Services Ltd
Nottinghamshire County Council,1111/1001,Children and Young People,CYP,Third Party Payments,EGA,27/05/2016,02-17713,"39,856.50",Total Care Matters Ltd
Nottinghamshire County Council,1111/1001,Children and Young People,CYP,Third Party Payments,EGA,27/05/2016,02-17714,"1,531.91",Sensory Learning & Play CIC
Nottinghamshire County Council,1111/1001,Children and Young People,CYP,Third Party Payments,EGA,27/05/2016,02-17715,"1,670.50",Sensory Learning & Play CIC
Nottinghamshire County Council,1111/1001,Children and Young People,CYP,Third Party Payments,EGA,27/05/2016,02-17716,"3,835.15",Wyntax
Nottinghamshire County Council,1111/1001,Children and Young People,CYP,Third Party Payments,EGA,27/05/2016,02-17717,"4,094.60",Wyntax
Nottinghamshire County Council,1111/1001,Children and Young People,CYP,Third Party Payments,EGA,27/05/2016,02-17718,3608.15,Wyntax
Nottinghamshire County Council,1111/1001,Children and Young People,CYP,Third Party Payments,EGA,27/05/2016,02-17719,2255.7,Framework Housing Association
Nottinghamshire County Council,1111/1001,Children and Young People,CYP,Third Party Payments,EGA,27/05/2016,02-17720,2214.64,Framework Housing Association
Nottinghamshire County Council,1111/1001,Children and Young People,CYP,Third Party Payments,EGA,27/05/2016,02-17721,4333.71,Safe Haven Accommodation Ltd
Nottinghamshire County Council,1111/1001,Children and Young People,CYP,Third Party Payments,EGA,27/05/2016,02-17727,820,Cared 4 Ltd T/A Brookhill House Day
Nottinghamshire County Council,1111/1001,Children and Young People,CYP,Third Party Payments,EGA,27/05/2016,02-17743,37855.87,Pathway Care Solutions Ltd
Nottinghamshire County Council,1111/1001,Children and Young People,CYP,Third Party Payments,EGA,27/05/2016,02-17746,37855.87,Pathway Care Solutions Ltd
Nottinghamshire County Council,1111/1001,Children and Young People,CYP,Third Party Payments,EGA,27/05/2016,02-17749,23994.35,Compass Fostering Central Ltd
Nottinghamshire County Council,1111/1001,Children and Young People,CYP,Third Party Payments,EGA,27/05/2016,02-17754,9271.48,Regional Foster Placements Ltd
Nottinghamshire County Council,1111/1001,Children and Young People,CYP,Third Party Payments,EGA,27/05/2016,02-17756,4094.6,Wyntax
Nottinghamshire County Council,1111/1001,Children and Young People,CYP,Third Party Payments,EGA,31/05/2016,02-16770,14614.24,Tiny Tots Playgroup
Nottinghamshire County Council,1111/1001,Children and Young People,CYP,Third Party Payments,EGA,31/05/2016,02-17046,815.4,Scope
Nottinghamshire County Council,1111/1001,Children and Young People,CYP,Third Party Payments,EGA,31/05/2016,02-17564,26544.64,Treehouse Care Fostering Solutions
Nottinghamshire County Council,1111/1001,Children and Young People,CYP,Third Party Payments,EGA,31/05/2016,02-17612,38528.4,Absolute Children�s Services Ltd
Nottinghamshire County Council,1111/1001,Children and Young People,CYP,Third Party Payments,EGA,31/05/2016,02-17629,848.16,Prestige Nursing
Nottinghamshire County Council,1111/1001,Children and Young People,CYP,Third Party Payments,EGA,31/05/2016,02-17755,12000.18,Regional Foster Placements Ltd
Nottinghamshire County Council,1111/1001,Children and Young People,CYP,Third Party Payments,EGA,31/05/2016,02-17757,1871.46,[Redacted]
Nottinghamshire County Council,1111/1001,Children and Young People,CYP,Third Party Payments,EGA,31/05/2016,02-17758,815.92,Framework Housing Association
Nottinghamshire County Council,1111/1001,Children and Young People,CYP,Third Party Payments,EGA,31/05/2016,02-17759,2344.3,Framework Housing Association
Nottinghamshire County Council,1111/1001,Children and Young People,CYP,Third Party Payments,EGA,31/05/2016,02-17761,2653.64,Framework Housing Association
Nottinghamshire County Council,1111/1001,Children and Young People,CYP,Third Party Payments,EGA,31/05/2016,02-17770,3322.2,TACT
Nottinghamshire County Council,1111/1001,Children and Young People,CYP,Third Party Payments,EGA,31/05/2016,02-17783,19994.4,Anglia Fostering Agency Ltd
Nottinghamshire County Council,1111/1001,Children and Young People,CYP,Third Party Payments,EGA,31/05/2016,02-17797,1684.14,A Place To Call Our Own Ltd
Nottinghamshire County Council,1111/1001,Children and Young People,CYP,Third Party Payments,EGA,31/05/2016,02-17798,1155,A Place To Call Our Own Ltd
Nottinghamshire County Council,1111/1001,Children and Young People,CYP,Third Party Payments,EGA,31/05/2016,02-17799,577.5,A Place To Call Our Own Ltd
Nottinghamshire County Council,1111/1001,Children and Young People,CYP,Transfer Payments,GAA,19/05/2016,02-17450,750,St Peters C of E Academy
Nottinghamshire County Council,1111/1001,Children and Young People,CYP,Transfer Payments,GAA,31/05/2016,02-17156,660,[Redacted]
Nottinghamshire County Council,1111/1001,Children and Young People,CYP,Support Services,HAA,04/05/2016,02-10406,858.5,All Wayz Travel
Nottinghamshire County Council,1111/1001,Children and Young People,CYP,Support Services,HAA,04/05/2016,02-10407,777.7,All Wayz Travel
Nottinghamshire County Council,1111/1001,Children and Young People,CYP,Support Services,HAA,04/05/2016,02-10413,793.21,Fozcabs Newark Taxis
Nottinghamshire County Council,1111/1001,Children and Young People,CYP,Support Services,HAA,04/05/2016,02-10443,1699.83,Nottingham Minibuses & Coaches
Nottinghamshire County Council,1111/1001,Children and Young People,CYP,Support Services,HAA,04/05/2016,02-10446,1075.47,Nottingham Minibuses & Coaches
Nottinghamshire County Council,1111/1001,Children and Young People,CYP,Support Services,HAA,04/05/2016,02-10449,1772.1,Kettlewell Retford Ltd
Nottinghamshire County Council,1111/1001,Children and Young People,CYP,Support Services,HAA,04/05/2016,02-10450,3960,Kettlewell Retford Ltd
Nottinghamshire County Council,1111/1001,Children and Young People,CYP,Support Services,HAA,04/05/2016,02-10451,1427.69,Kettlewell Retford Ltd
Nottinghamshire County Council,1111/1001,Children and Young People,CYP,Support Services,HAA,04/05/2016,02-10452,1427.69,Kettlewell Retford Ltd
Nottinghamshire County Council,1111/1001,Children and Young People,CYP,Support Services,HAA,04/05/2016,02-10453,2000,Kettlewell Retford Ltd
Nottinghamshire County Council,1111/1001,Children and Young People,CYP,Support Services,HAA,04/05/2016,02-10454,1400,Kettlewell Retford Ltd
Nottinghamshire County Council,1111/1001,Children and Young People,CYP,Support Services,HAA,05/05/2016,02-10634,1555.4,Johnson Bros Tours Ltd
Nottinghamshire County Council,1111/1001,Children and Young People,CYP,Support Services,HAA,05/05/2016,02-10635,10937.4,Johnson Bros Tours Ltd
Nottinghamshire County Council,1111/1001,Children and Young People,CYP,Support Services,HAA,05/05/2016,02-10637,597.74,Acorn Contracts
Nottinghamshire County Council,1111/1001,Children and Young People,CYP,Support Services,HAA,05/05/2016,02-10770,2537.5,Lowes Coaches Ltd
Nottinghamshire County Council,1111/1001,Children and Young People,CYP,Support Services,HAA,05/05/2016,02-10771,2908.5,Lowes Coaches Ltd
Nottinghamshire County Council,1111/1001,Children and Young People,CYP,Support Services,HAA,05/05/2016,02-10772,2963.5,Lowes Coaches Ltd
Nottinghamshire County Council,1111/1001,Children and Young People,CYP,Support Services,HAA,05/05/2016,02-10779,666.6,K & R Cars
Nottinghamshire County Council,1111/1001,Children and Young People,CYP,Support Services,HAA,05/05/2016,02-10780,1050.7,Marshalls Of Sutton On Trent Ltd
Nottinghamshire County Council,1111/1001,Children and Young People,CYP,Support Services,HAA,05/05/2016,02-10789,1666.5,Marshalls Of Sutton On Trent Ltd
Nottinghamshire County Council,1111/1001,Children and Young People,CYP,Support Services,HAA,05/05/2016,02-10791,1099.89,Marshalls Of Sutton On Trent Ltd
Nottinghamshire County Council,1111/1001,Children and Young People,CYP,Support Services,HAA,05/05/2016,02-10792,1666.5,Marshalls Of Sutton On Trent Ltd
Nottinghamshire County Council,1111/1001,Children and Young People,CYP,Support Services,HAA,05/05/2016,02-10793,1967.16,Marshalls Of Sutton On Trent Ltd
Nottinghamshire County Council,1111/1001,Children and Young People,CYP,Support Services,HAA,05/05/2016,02-10800,888.8,P & P Taxis
Nottinghamshire County Council,1111/1001,Children and Young People,CYP,Support Services,HAA,05/05/2016,02-10805,4194.7,Freeway Coaches Ltd
Nottinghamshire County Council,1111/1001,Children and Young People,CYP,Support Services,HAA,05/05/2016,02-10806,1637.47,Freeway Coaches Ltd
Nottinghamshire County Council,1111/1001,Children and Young People,CYP,Support Services,HAA,05/05/2016,02-10807,1444.85,Freeway Coaches Ltd
Nottinghamshire County Council,1111/1001,Children and Young People,CYP,Support Services,HAA,05/05/2016,02-10808,888.8,Freeway Coaches Ltd
Nottinghamshire County Council,1111/1001,Children and Young People,CYP,Support Services,HAA,05/05/2016,02-10809,1388.75,Freeway Coaches Ltd
Nottinghamshire County Council,1111/1001,Children and Young People,CYP,Support Services,HAA,05/05/2016,02-10810,1316.59,Kettlewell Retford Ltd
Nottinghamshire County Council,1111/1001,Children and Young People,CYP,Support Services,HAA,05/05/2016,02-10811,1361.03,Kettlewell Retford Ltd
Nottinghamshire County Council,1111/1001,Children and Young People,CYP,Support Services,HAA,05/05/2016,02-10812,3030,Kettlewell Retford Ltd
Nottinghamshire County Council,1111/1001,Children and Young People,CYP,Support Services,HAA,05/05/2016,02-10813,1216.6,Kettlewell Retford Ltd
Nottinghamshire County Council,1111/1001,Children and Young People,CYP,Support Services,HAA,05/05/2016,02-10814,3397.8,C W Moxon Ltd
Nottinghamshire County Council,1111/1001,Children and Young People,CYP,Support Services,HAA,05/05/2016,02-10815,1712,C W Moxon Ltd
Nottinghamshire County Council,1111/1001,Children and Young People,CYP,Support Services,HAA,05/05/2016,02-10816,1431.5,C W Moxon Ltd
Nottinghamshire County Council,1111/1001,Children and Young People,CYP,Support Services,HAA,05/05/2016,02-10817,1627.5,C W Moxon Ltd
Nottinghamshire County Council,1111/1001,Children and Young People,CYP,Support Services,HAA,05/05/2016,02-10818,1259.5,C W Moxon Ltd
Nottinghamshire County Council,1111/1001,Children and Young People,CYP,Support Services,HAA,05/05/2016,02-10824,544.5,Forest Cars
Nottinghamshire County Council,1111/1001,Children and Young People,CYP,Support Services,HAA,09/05/2016,02-11800,1723.65,Johnson Bros Tours Ltd
Nottinghamshire County Council,1111/1001,Children and Young People,CYP,Support Services,HAA,09/05/2016,02-11801,1756.35,Johnson Bros Tours Ltd
Nottinghamshire County Council,1111/1001,Children and Young People,CYP,Support Services,HAA,09/05/2016,02-11802,2051.6,Johnson Bros Tours Ltd
Nottinghamshire County Council,1111/1001,Children and Young People,CYP,Support Services,HAA,09/05/2016,02-11804,9443.5,Johnson Bros Tours Ltd
Nottinghamshire County Council,1111/1001,Children and Young People,CYP,Support Services,HAA,09/05/2016,02-11805,6851.4,Johnson Bros Tours Ltd
Nottinghamshire County Council,1111/1001,Children and Young People,CYP,Support Services,HAA,09/05/2016,02-11818,1284.25,Arnold Acorn Travel
Nottinghamshire County Council,1111/1001,Children and Young People,CYP,Support Services,HAA,09/05/2016,02-11850,6618.5,Travel Wright Ltd
Nottinghamshire County Council,1111/1001,Children and Young People,CYP,Support Services,HAA,09/05/2016,02-11852,2447.04,Travel Wright Ltd
Nottinghamshire County Council,1111/1001,Children and Young People,CYP,Support Services,HAA,09/05/2016,02-11854,1988.14,Travel Wright Ltd
Nottinghamshire County Council,1111/1001,Children and Young People,CYP,Support Services,HAA,09/05/2016,02-11855,5351.05,Travel Wright Ltd
Nottinghamshire County Council,1111/1001,Children and Young People,CYP,Support Services,HAA,09/05/2016,02-11857,1512.85,Travel Wright Ltd
Nottinghamshire County Council,1111/1001,Children and Young People,CYP,Support Services,HAA,09/05/2016,02-11859,2588.62,Travel Wright Ltd
Nottinghamshire County Council,1111/1001,Children and Young People,CYP,Support Services,HAA,09/05/2016,02-11861,1777.05,Travel Wright Ltd
Nottinghamshire County Council,1111/1001,Children and Young People,CYP,Support Services,HAA,09/05/2016,02-11862,1050.49,Travel Wright Ltd
Nottinghamshire County Council,1111/1001,Children and Young People,CYP,Support Services,HAA,09/05/2016,02-11866,1166.55,Travel Liner
Nottinghamshire County Council,1111/1001,Children and Young People,CYP,Support Services,HAA,10/05/2016,02-11929,216.86,Ace Of Mansfield Ltd
Nottinghamshire County Council,1111/1001,Children and Young People,CYP,Support Services,HAA,10/05/2016,02-11936,699.93,Meden Travel
Nottinghamshire County Council,1111/1001,Children and Young People,CYP,Support Services,HAA,10/05/2016,02-11937,311.3,Nunns Cars
Nottinghamshire County Council,1111/1001,Children and Young People,CYP,Support Services,HAA,10/05/2016,02-11946,3310.02,Isle Coaches
Nottinghamshire County Council,1111/1001,Children and Young People,CYP,Support Services,HAA,11/05/2016,02-12009,1484,Wrights Coaches
Nottinghamshire County Council,1111/1001,Children and Young People,CYP,Support Services,HAA,11/05/2016,02-12010,888.8,Wrights Coaches
Nottinghamshire County Council,1111/1001,Children and Young People,CYP,Support Services,HAA,11/05/2016,02-12015,1680.8,Gem Mini Travel Ltd
Nottinghamshire County Council,1111/1001,Children and Young People,CYP,Support Services,HAA,11/05/2016,02-12016,1805.4,Gem Mini Travel Ltd
Nottinghamshire County Council,1111/1001,Children and Young People,CYP,Support Services,HAA,11/05/2016,02-12017,1195.3,Gem Mini Travel Ltd
Nottinghamshire County Council,1111/1001,Children and Young People,CYP,Support Services,HAA,11/05/2016,02-12023,2699.42,Stagecoach Services Ltd
Nottinghamshire County Council,1111/1001,Children and Young People,CYP,Support Services,HAA,11/05/2016,02-12028,1768.69,Stagecoach Services Ltd
Nottinghamshire County Council,1111/1001,Children and Young People,CYP,Support Services,HAA,11/05/2016,02-12030,2988.59,Stagecoach Services Ltd
Nottinghamshire County Council,1111/1001,Children and Young People,CYP,Support Services,HAA,11/05/2016,02-12031,1545.72,Stagecoach Services Ltd
Nottinghamshire County Council,1111/1001,Children and Young People,CYP,Support Services,HAA,11/05/2016,02-12045,5731.05,Stagecoach Services Ltd
Nottinghamshire County Council,1111/1001,Children and Young People,CYP,Support Services,HAA,11/05/2016,02-12047,4597.9,Stagecoach Services Ltd
Nottinghamshire County Council,1111/1001,Children and Young People,CYP,Support Services,HAA,11/05/2016,02-12057,4142.95,Stagecoach Services Ltd
Nottinghamshire County Council,1111/1001,Children and Young People,CYP,Support Services,HAA,11/05/2016,02-12060,2515.37,Stagecoach Services Ltd
Nottinghamshire County Council,1111/1001,Children and Young People,CYP,Support Services,HAA,11/05/2016,02-12062,4832.85,C W Moxon Ltd
Nottinghamshire County Council,1111/1001,Children and Young People,CYP,Support Services,HAA,11/05/2016,02-12063,1559.87,Bassetlaw Action Centre
Nottinghamshire County Council,1111/1001,Children and Young People,CYP,Support Services,HAA,11/05/2016,02-12071,1544.29,Nottingham Coaches
Nottinghamshire County Council,1111/1001,Children and Young People,CYP,Support Services,HAA,11/05/2016,02-12072,1655.39,Nottingham Coaches
Nottinghamshire County Council,1111/1001,Children and Young People,CYP,Support Services,HAA,11/05/2016,02-12073,1746.85,Nottingham Coaches
Nottinghamshire County Council,1111/1001,Children and Young People,CYP,Support Services,HAA,11/05/2016,02-12074,775.5,A2B Licensed Taxis
Nottinghamshire County Council,1111/1001,Children and Young People,CYP,Support Services,HAA,12/05/2016,02-12246,944.35,Sprays Transport Ltd
Nottinghamshire County Council,1111/1001,Children and Young People,CYP,Support Services,HAA,12/05/2016,02-12252,1577.5,Gem Mini Travel Ltd
Nottinghamshire County Council,1111/1001,Children and Young People,CYP,Support Services,HAA,12/05/2016,02-12253,1144.9,Jb Tours Watnall Ltd
Nottinghamshire County Council,1111/1001,Children and Young People,CYP,Support Services,HAA,12/05/2016,02-12254,1368.05,Jb Tours Watnall Ltd
Nottinghamshire County Council,1111/1001,Children and Young People,CYP,Support Services,HAA,12/05/2016,02-12255,1458.72,Jb Tours Watnall Ltd
Nottinghamshire County Council,1111/1001,Children and Young People,CYP,Support Services,HAA,12/05/2016,02-12258,1088.78,Wilfreda Beehive
Nottinghamshire County Council,1111/1001,Children and Young People,CYP,Support Services,HAA,12/05/2016,02-12272,1720.49,Nottingham Coaches
Nottinghamshire County Council,1111/1001,Children and Young People,CYP,Support Services,HAA,13/05/2016,02-12338,1452.24,Sharpes Of Nottingham
Nottinghamshire County Council,1111/1001,Children and Young People,CYP,Support Services,HAA,13/05/2016,02-12339,2240.48,Sharpes Of Nottingham
Nottinghamshire County Council,1111/1001,Children and Young People,CYP,Support Services,HAA,13/05/2016,02-12340,2320.98,Sharpes Of Nottingham
Nottinghamshire County Council,1111/1001,Children and Young People,CYP,Support Services,HAA,13/05/2016,02-12341,1871.98,Sharpes Of Nottingham
Nottinghamshire County Council,1111/1001,Children and Young People,CYP,Support Services,HAA,13/05/2016,02-12342,2240.98,Sharpes Of Nottingham
Nottinghamshire County Council,1111/1001,Children and Young People,CYP,Support Services,HAA,13/05/2016,02-12343,1702.03,Sharpes Of Nottingham
Nottinghamshire County Council,1111/1001,Children and Young People,CYP,Support Services,HAA,13/05/2016,02-12344,4015.73,Sharpes Of Nottingham
Nottinghamshire County Council,1111/1001,Children and Young People,CYP,Support Services,HAA,13/05/2016,02-12345,2320.98,Sharpes Of Nottingham
Nottinghamshire County Council,1111/1001,Children and Young People,CYP,Support Services,HAA,13/05/2016,02-12346,1638,Sharpes Of Nottingham
Nottinghamshire County Council,1111/1001,Children and Young People,CYP,Support Services,HAA,13/05/2016,02-12347,1261.04,Sharpes Of Nottingham
Nottinghamshire County Council,1111/1001,Children and Young People,CYP,Support Services,HAA,13/05/2016,02-12348,1660.33,Sharpes Of Nottingham
Nottinghamshire County Council,1111/1001,Children and Young People,CYP,Support Services,HAA,13/05/2016,02-12350,3271,Glenn Ryder Coaches
Nottinghamshire County Council,1111/1001,Children and Young People,CYP,Support Services,HAA,13/05/2016,02-12353,4666,Butler Brothers Ltd
Nottinghamshire County Council,1111/1001,Children and Young People,CYP,Support Services,HAA,13/05/2016,02-12354,3900,Butler Brothers Ltd
Nottinghamshire County Council,1111/1001,Children and Young People,CYP,Support Services,HAA,13/05/2016,02-12365,848.4,Abacus Cars
Nottinghamshire County Council,1111/1001,Children and Young People,CYP,Support Services,HAA,13/05/2016,02-12368,455.02,Abacus Cars
Nottinghamshire County Council,1111/1001,Children and Young People,CYP,Support Services,HAA,13/05/2016,02-12374,1420,Tiger European Uk Ltd
Nottinghamshire County Council,1111/1001,Children and Young People,CYP,Support Services,HAA,13/05/2016,02-12375,2055.35,Tiger European Uk Ltd
Nottinghamshire County Council,1111/1001,Children and Young People,CYP,Support Services,HAA,13/05/2016,02-12376,2685,Tiger European Uk Ltd
Nottinghamshire County Council,1111/1001,Children and Young People,CYP,Support Services,HAA,13/05/2016,02-12377,1632.4,Tiger European Uk Ltd
Nottinghamshire County Council,1111/1001,Children and Young People,CYP,Support Services,HAA,13/05/2016,02-12378,1605.9,Tiger European Uk Ltd
Nottinghamshire County Council,1111/1001,Children and Young People,CYP,Support Services,HAA,13/05/2016,02-12379,1785.2,Tiger European Uk Ltd
Nottinghamshire County Council,1111/1001,Children and Young People,CYP,Support Services,HAA,13/05/2016,02-12380,1445.65,Tiger European Uk Ltd
Nottinghamshire County Council,1111/1001,Children and Young People,CYP,Support Services,HAA,13/05/2016,02-12381,1755.6,Tiger European Uk Ltd
Nottinghamshire County Council,1111/1001,Children and Young People,CYP,Support Services,HAA,13/05/2016,02-12382,564.3,Tiger European Uk Ltd
Nottinghamshire County Council,1111/1001,Children and Young People,CYP,Support Services,HAA,13/05/2016,02-12383,1343.4,Tiger European Uk Ltd
Nottinghamshire County Council,1111/1001,Children and Young People,CYP,Support Services,HAA,13/05/2016,02-12384,1464.5,Tiger European Uk Ltd
Nottinghamshire County Council,1111/1001,Children and Young People,CYP,Support Services,HAA,13/05/2016,02-12385,1383,Tiger European Uk Ltd
Nottinghamshire County Council,1111/1001,Children and Young People,CYP,Support Services,HAA,13/05/2016,02-12386,1504.9,Tiger European Uk Ltd
Nottinghamshire County Council,1111/1001,Children and Young People,CYP,Support Services,HAA,13/05/2016,02-12387,877.69,Paul S Winson Coaches
Nottinghamshire County Council,1111/1001,Children and Young People,CYP,Support Services,HAA,13/05/2016,02-12390,611.05,Broadsword Cars
Nottinghamshire County Council,1111/1001,Children and Young People,CYP,Support Services,HAA,17/05/2016,02-15571,550,D G Private Hire Ltd
Nottinghamshire County Council,1111/1001,Children and Young People,CYP,Support Services,HAA,17/05/2016,02-15572,840,D G Private Hire Ltd
Nottinghamshire County Council,1111/1001,Children and Young People,CYP,Support Services,HAA,17/05/2016,02-15578,2699.8,Jb Tours Watnall Ltd
Nottinghamshire County Council,1111/1001,Children and Young People,CYP,Support Services,HAA,17/05/2016,02-15579,2383,Jb Tours Watnall Ltd
Nottinghamshire County Council,1111/1001,Children and Young People,CYP,Support Services,HAA,17/05/2016,02-15580,2686.6,Jb Tours Watnall Ltd
Nottinghamshire County Council,1111/1001,Children and Young People,CYP,Support Services,HAA,17/05/2016,02-15582,1483,Silverdale Tours Nottm Ltd
Nottinghamshire County Council,1111/1001,Children and Young People,CYP,Support Services,HAA,17/05/2016,02-15583,1833.09,Silverdale Tours Nottm Ltd
Nottinghamshire County Council,1111/1001,Children and Young People,CYP,Support Services,HAA,17/05/2016,02-15584,1630.94,Silverdale Tours Nottm Ltd
Nottinghamshire County Council,1111/1001,Children and Young People,CYP,Support Services,HAA,17/05/2016,02-15585,1425.94,Silverdale Tours Nottm Ltd
Nottinghamshire County Council,1111/1001,Children and Young People,CYP,Support Services,HAA,17/05/2016,02-15586,1185.98,Silverdale Tours Nottm Ltd
Nottinghamshire County Council,1111/1001,Children and Young People,CYP,Support Services,HAA,17/05/2016,02-15587,1546.89,Silverdale Tours Nottm Ltd
Nottinghamshire County Council,1111/1001,Children and Young People,CYP,Support Services,HAA,17/05/2016,02-15588,1674.14,Silverdale Tours Nottm Ltd
Nottinghamshire County Council,1111/1001,Children and Young People,CYP,Support Services,HAA,17/05/2016,02-15589,1402.78,Silverdale Tours Nottm Ltd
Nottinghamshire County Council,1111/1001,Children and Young People,CYP,Support Services,HAA,17/05/2016,02-15590,1540.95,Silverdale Tours Nottm Ltd
Nottinghamshire County Council,1111/1001,Children and Young People,CYP,Support Services,HAA,17/05/2016,02-15591,967.45,Wallis Coachways
Nottinghamshire County Council,1111/1001,Children and Young People,CYP,Support Services,HAA,17/05/2016,02-15603,1302.9,F & J Marriott T/A Unity Coaches
Nottinghamshire County Council,1111/1001,Children and Young People,CYP,Support Services,HAA,24/05/2016,02-16531,4545,Johnson Bros Tours Ltd
Nottinghamshire County Council,1111/1001,Children and Young People,CYP,Support Services,HAA,24/05/2016,02-16532,560,SJW (Muskham) Ltd T/A Z Cars
Nottinghamshire County Council,1111/1001,Children and Young People,CYP,Support Services,HAA,24/05/2016,02-16533,441,SJW (Muskham) Ltd T/A Z Cars
Nottinghamshire County Council,1111/1001,Children and Young People,CYP,Support Services,HAA,24/05/2016,02-16542,1388.5,Lowes Coaches Ltd
Nottinghamshire County Council,1111/1001,Children and Young People,CYP,Support Services,HAA,24/05/2016,02-16543,1375.6,Lowes Coaches Ltd
Nottinghamshire County Council,1111/1001,Children and Young People,CYP,Support Services,HAA,24/05/2016,02-16544,1427.5,Lowes Coaches Ltd
Nottinghamshire County Council,1111/1001,Children and Young People,CYP,Support Services,HAA,24/05/2016,02-16551,1777.6,AOT Coaches
Nottinghamshire County Council,1111/1001,Children and Young People,CYP,Support Services,HAA,24/05/2016,02-16552,1777.6,AOT Coaches
Nottinghamshire County Council,1111/1001,Children and Young People,CYP,Support Services,HAA,24/05/2016,02-16556,1478.95,AOT Coaches
Nottinghamshire County Council,1111/1001,Children and Young People,CYP,Support Services,HAA,24/05/2016,02-16557,1448.4,AOT Coaches
Nottinghamshire County Council,1111/1001,Children and Young People,CYP,Support Services,HAA,24/05/2016,02-16558,3465,Marshalls Of Sutton On Trent Ltd
Nottinghamshire County Council,1111/1001,Children and Young People,CYP,Support Services,HAA,26/05/2016,02-16736,2625.5,Silverdale Tours Nottm Ltd
Nottinghamshire County Council,1111/1001,Children and Young People,CYP,Income,JBA,17/05/2016,02-15537,43456.13,"Culture, Learning & Libraries (Midl"
Nottinghamshire County Council,1111/1001,Adult Social Care and Health,ASCH,Premises Related,BAA,17/05/2016,02-15612,634,Sues Maintenance Services Ltd
Nottinghamshire County Council,1111/1001,Adult Social Care and Health,ASCH,Premises Related,BAA,20/05/2016,02-17548,5336.45,British Red Cross Society
Nottinghamshire County Council,1111/1001,Adult Social Care and Health,ASCH,Premises Related,BAA,26/05/2016,02-16739,543.5,[Redacted]
Nottinghamshire County Council,1111/1001,Adult Social Care and Health,ASCH,Premises Related,BAA,26/05/2016,02-16740,735,Cw Plumbing Heating & Gas Services
Nottinghamshire County Council,1111/1001,Adult Social Care and Health,ASCH,Premises Related,BAA,27/05/2016,02-17152,9588.37,Prism Medical Uk
Nottinghamshire County Council,1111/1001,Adult Social Care and Health,ASCH,Premises Related,BCA,24/05/2016,02-17602,1172.64,Hargreaves (UK) Services Ltd - Mine
Nottinghamshire County Council,1111/1001,Adult Social Care and Health,ASCH,Premises Related,BDA,20/05/2016,02-17541,36250,Trustees Of The Sherwood Press Pens
Nottinghamshire County Council,1111/1001,Adult Social Care and Health,ASCH,Premises Related,BDA,23/05/2016,02-17308,750,Aurora Wellbeing Centre
Nottinghamshire County Council,1111/1001,Adult Social Care and Health,ASCH,Premises Related,BEA,03/05/2016,02-10170,659.36,Gedling Borough Council
Nottinghamshire County Council,1111/1001,Adult Social Care and Health,ASCH,Premises Related,BEA,04/05/2016,02-10580,1510.9,Newark & Sherwood District Council
Nottinghamshire County Council,1111/1001,Adult Social Care and Health,ASCH,Premises Related,BEA,18/05/2016,02-12284,1242.13,Ashfield District Council
Nottinghamshire County Council,1111/1001,Adult Social Care and Health,ASCH,Premises Related,BFA,27/05/2016,02-16760,2413.93,Severn Trent Water Ltd
Nottinghamshire County Council,1111/1001,Adult Social Care and Health,ASCH,Transport Related,CAA,05/05/2016,02-16989,513,Mexa Thermal Systems Ltd
Nottinghamshire County Council,1111/1001,Adult Social Care and Health,ASCH,Transport Related,CAA,23/05/2016,02-17587,586,Mexa Thermal Systems Ltd
Nottinghamshire County Council,1111/1001,Adult Social Care and Health,ASCH,Transport Related,CBA,04/05/2016,02-10447,2380,Aj Travel
Nottinghamshire County Council,1111/1001,Adult Social Care and Health,ASCH,Transport Related,CBA,05/05/2016,02-10769,2418.99,Ja Travel Ltd
Nottinghamshire County Council,1111/1001,Adult Social Care and Health,ASCH,Transport Related,CBA,05/05/2016,02-10773,3558.87,Vallances Coaches
Nottinghamshire County Council,1111/1001,Adult Social Care and Health,ASCH,Transport Related,CBA,12/05/2016,02-12228,3511.62,Mct Uk Ltd
Nottinghamshire County Council,1111/1001,Adult Social Care and Health,ASCH,Transport Related,CBA,17/05/2016,02-15604,3146.25,BN Gibson Ltd
Nottinghamshire County Council,1111/1001,Adult Social Care and Health,ASCH,Transport Related,CCA,05/05/2016,02-10712,423.17,Arrow Specialised Transport Ltd
Nottinghamshire County Council,1111/1001,Adult Social Care and Health,ASCH,Transport Related,CCA,11/05/2016,02-11992,104.97,F4Control Ltd (t/a First4care)
Nottinghamshire County Council,1111/1001,Adult Social Care and Health,ASCH,Transport Related,CDA,04/05/2016,02-10390,2651.25,Taxicover Uk Ltd
Nottinghamshire County Council,1111/1001,Adult Social Care and Health,ASCH,Transport Related,CDA,04/05/2016,02-10405,528.1,Southside Cars
Nottinghamshire County Council,1111/1001,Adult Social Care and Health,ASCH,Transport Related,CDA,04/05/2016,02-10408,733.85,All Wayz Travel
Nottinghamshire County Council,1111/1001,Adult Social Care and Health,ASCH,Transport Related,CDA,04/05/2016,02-10419,1800,Fozcabs Newark Taxis
Nottinghamshire County Council,1111/1001,Adult Social Care and Health,ASCH,Transport Related,CDA,04/05/2016,02-10420,2300.52,Hawkins Taxis & Transport
Nottinghamshire County Council,1111/1001,Adult Social Care and Health,ASCH,Transport Related,CDA,04/05/2016,02-10424,2649.57,Midfield Travel
Nottinghamshire County Council,1111/1001,Adult Social Care and Health,ASCH,Transport Related,CDA,04/05/2016,02-10457,76.64,Diamond Cars
Nottinghamshire County Council,1111/1001,Adult Social Care and Health,ASCH,Transport Related,CDA,05/05/2016,02-10636,1102.92,Acorn Contracts
Nottinghamshire County Council,1111/1001,Adult Social Care and Health,ASCH,Transport Related,CDA,05/05/2016,02-10678,2460.36,Arrow Specialised Transport Ltd
Nottinghamshire County Council,1111/1001,Adult Social Care and Health,ASCH,Transport Related,CDA,05/05/2016,02-10690,310.8,Arrow Specialised Transport Ltd
Nottinghamshire County Council,1111/1001,Adult Social Care and Health,ASCH,Transport Related,CDA,05/05/2016,02-10692,236.04,Arrow Specialised Transport Ltd
Nottinghamshire County Council,1111/1001,Adult Social Care and Health,ASCH,Transport Related,CDA,05/05/2016,02-10694,624.18,Arrow Specialised Transport Ltd
Nottinghamshire County Council,1111/1001,Adult Social Care and Health,ASCH,Transport Related,CDA,05/05/2016,02-10702,2982,Arrow Specialised Transport Ltd
Nottinghamshire County Council,1111/1001,Adult Social Care and Health,ASCH,Transport Related,CDA,05/05/2016,02-10719,3339,Arrow Specialised Transport Ltd
Nottinghamshire County Council,1111/1001,Adult Social Care and Health,ASCH,Transport Related,CDA,05/05/2016,02-10727,1071.46,Bridges Transport Services
Nottinghamshire County Council,1111/1001,Adult Social Care and Health,ASCH,Transport Related,CDA,05/05/2016,02-10728,3413.76,Bridges Transport Services
Nottinghamshire County Council,1111/1001,Adult Social Care and Health,ASCH,Transport Related,CDA,05/05/2016,02-10729,2109.03,Bridges Transport Services
Nottinghamshire County Council,1111/1001,Adult Social Care and Health,ASCH,Transport Related,CDA,05/05/2016,02-10730,875.67,Bridges Transport Services
Nottinghamshire County Council,1111/1001,Adult Social Care and Health,ASCH,Transport Related,CDA,05/05/2016,02-10731,1298.01,Bridges Transport Services
Nottinghamshire County Council,1111/1001,Adult Social Care and Health,ASCH,Transport Related,CDA,05/05/2016,02-10732,1246.68,Bridges Transport Services
Nottinghamshire County Council,1111/1001,Adult Social Care and Health,ASCH,Transport Related,CDA,05/05/2016,02-10734,3136.98,Bridges Transport Services
Nottinghamshire County Council,1111/1001,Adult Social Care and Health,ASCH,Transport Related,CDA,05/05/2016,02-10735,618.15,Bridges Transport Services
Nottinghamshire County Council,1111/1001,Adult Social Care and Health,ASCH,Transport Related,CDA,05/05/2016,02-10759,720,Bridges Transport Services
Nottinghamshire County Council,1111/1001,Adult Social Care and Health,ASCH,Transport Related,CDA,05/05/2016,02-10760,1739.95,Bridges Transport Services
Nottinghamshire County Council,1111/1001,Adult Social Care and Health,ASCH,Transport Related,CDA,05/05/2016,02-10761,990,Galaxy Cabs
Nottinghamshire County Council,1111/1001,Adult Social Care and Health,ASCH,Transport Related,CDA,05/05/2016,02-10778,1207.26,Beechwood Taxis
Nottinghamshire County Council,1111/1001,Adult Social Care and Health,ASCH,Transport Related,CDA,05/05/2016,02-10795,816,Tims Taxi
Nottinghamshire County Council,1111/1001,Adult Social Care and Health,ASCH,Transport Related,CDA,05/05/2016,02-10796,2898,P & P Taxis
Nottinghamshire County Council,1111/1001,Adult Social Care and Health,ASCH,Transport Related,CDA,05/05/2016,02-10801,1145.34,P & P Taxis
Nottinghamshire County Council,1111/1001,Adult Social Care and Health,ASCH,Transport Related,CDA,05/05/2016,02-10802,949.4,P & P Taxis
Nottinghamshire County Council,1111/1001,Adult Social Care and Health,ASCH,Transport Related,CDA,05/05/2016,02-10803,1145.34,P & P Taxis
Nottinghamshire County Council,1111/1001,Adult Social Care and Health,ASCH,Transport Related,CDA,05/05/2016,02-10804,1084.8,P & P Taxis
Nottinghamshire County Council,1111/1001,Adult Social Care and Health,ASCH,Transport Related,CDA,05/05/2016,02-10820,341.51,Town Cars (UK) Ltd
Nottinghamshire County Council,1111/1001,Adult Social Care and Health,ASCH,Transport Related,CDA,05/05/2016,02-10822,2640.75,Town Cars (UK) Ltd
Nottinghamshire County Council,1111/1001,Adult Social Care and Health,ASCH,Transport Related,CDA,05/05/2016,02-10829,130.4,Forest Cars
Nottinghamshire County Council,1111/1001,Adult Social Care and Health,ASCH,Transport Related,CDA,09/05/2016,02-11821,517.12,Ng11 Cars
Nottinghamshire County Council,1111/1001,Adult Social Care and Health,ASCH,Transport Related,CDA,09/05/2016,02-11836,1140,Shelleys Taxis Ltd
Nottinghamshire County Council,1111/1001,Adult Social Care and Health,ASCH,Transport Related,CDA,09/05/2016,02-11839,1632.5,Abacus Cars
Nottinghamshire County Council,1111/1001,Adult Social Care and Health,ASCH,Transport Related,CDA,09/05/2016,02-11840,659.36,Abacus Cars
Nottinghamshire County Council,1111/1001,Adult Social Care and Health,ASCH,Transport Related,CDA,09/05/2016,02-11841,1155,Abacus Cars
Nottinghamshire County Council,1111/1001,Adult Social Care and Health,ASCH,Transport Related,CDA,09/05/2016,02-11842,504.32,Abacus Cars
Nottinghamshire County Council,1111/1001,Adult Social Care and Health,ASCH,Transport Related,CDA,09/05/2016,02-11843,971.62,Abacus Cars
Nottinghamshire County Council,1111/1001,Adult Social Care and Health,ASCH,Transport Related,CDA,09/05/2016,02-11844,956.28,Abacus Cars
Nottinghamshire County Council,1111/1001,Adult Social Care and Health,ASCH,Transport Related,CDA,09/05/2016,02-11845,557.52,Abacus Cars
Nottinghamshire County Council,1111/1001,Adult Social Care and Health,ASCH,Transport Related,CDA,09/05/2016,02-11846,790.56,Abacus Cars
Nottinghamshire County Council,1111/1001,Adult Social Care and Health,ASCH,Transport Related,CDA,09/05/2016,02-11847,528,Abacus Cars
Nottinghamshire County Council,1111/1001,Adult Social Care and Health,ASCH,Transport Related,CDA,10/05/2016,02-11925,721.92,Ace Of Mansfield Ltd
Nottinghamshire County Council,1111/1001,Adult Social Care and Health,ASCH,Transport Related,CDA,10/05/2016,02-11927,1272.3,Ace Of Mansfield Ltd
Nottinghamshire County Council,1111/1001,Adult Social Care and Health,ASCH,Transport Related,CDA,10/05/2016,02-11933,1920.8,Alpha Cars
Nottinghamshire County Council,1111/1001,Adult Social Care and Health,ASCH,Transport Related,CDA,10/05/2016,02-11934,614.64,Aaeron Cars
Nottinghamshire County Council,1111/1001,Adult Social Care and Health,ASCH,Transport Related,CDA,10/05/2016,02-11935,609,Aaeron Cars
Nottinghamshire County Council,1111/1001,Adult Social Care and Health,ASCH,Transport Related,CDA,10/05/2016,02-11949,808,Ace Cars
Nottinghamshire County Council,1111/1001,Adult Social Care and Health,ASCH,Transport Related,CDA,10/05/2016,02-11953,298.12,Ace Cars
Nottinghamshire County Council,1111/1001,Adult Social Care and Health,ASCH,Transport Related,CDA,11/05/2016,02-11983,1740.48,F4Control Ltd (t/a First4care)
Nottinghamshire County Council,1111/1001,Adult Social Care and Health,ASCH,Transport Related,CDA,11/05/2016,02-11985,112.91,F4Control Ltd (t/a First4care)
Nottinghamshire County Council,1111/1001,Adult Social Care and Health,ASCH,Transport Related,CDA,11/05/2016,02-11987,126.2,F4Control Ltd (t/a First4care)
Nottinghamshire County Council,1111/1001,Adult Social Care and Health,ASCH,Transport Related,CDA,11/05/2016,02-11989,88.88,F4Control Ltd (t/a First4care)
Nottinghamshire County Council,1111/1001,Adult Social Care and Health,ASCH,Transport Related,CDA,11/05/2016,02-11992,769.79,F4Control Ltd (t/a First4care)
Nottinghamshire County Council,1111/1001,Adult Social Care and Health,ASCH,Transport Related,CDA,11/05/2016,02-12001,1253.49,F4Control Ltd (t/a First4care)
Nottinghamshire County Council,1111/1001,Adult Social Care and Health,ASCH,Transport Related,CDA,11/05/2016,02-12069,76.64,Diamond Cars
Nottinghamshire County Council,1111/1001,Adult Social Care and Health,ASCH,Transport Related,CDA,12/05/2016,02-12215,584.22,Alert Cars Ltd
Nottinghamshire County Council,1111/1001,Adult Social Care and Health,ASCH,Transport Related,CDA,12/05/2016,02-12217,514.93,Alert Cars Ltd
Nottinghamshire County Council,1111/1001,Adult Social Care and Health,ASCH,Transport Related,CDA,12/05/2016,02-12218,590.1,Alert Cars Ltd
Nottinghamshire County Council,1111/1001,Adult Social Care and Health,ASCH,Transport Related,CDA,12/05/2016,02-12220,549.28,CBC Taxis Ltd
Nottinghamshire County Council,1111/1001,Adult Social Care and Health,ASCH,Transport Related,CDA,12/05/2016,02-12221,771.09,CBC Taxis Ltd
Nottinghamshire County Council,1111/1001,Adult Social Care and Health,ASCH,Transport Related,CDA,12/05/2016,02-12222,1015.07,CBC Taxis Ltd
Nottinghamshire County Council,1111/1001,Adult Social Care and Health,ASCH,Transport Related,CDA,12/05/2016,02-12223,610.56,CBC Taxis Ltd
Nottinghamshire County Council,1111/1001,Adult Social Care and Health,ASCH,Transport Related,CDA,12/05/2016,02-12224,556.2,CBC Taxis Ltd
Nottinghamshire County Council,1111/1001,Adult Social Care and Health,ASCH,Transport Related,CDA,12/05/2016,02-12235,183,Sprays Transport Ltd
Nottinghamshire County Council,1111/1001,Adult Social Care and Health,ASCH,Transport Related,CDA,12/05/2016,02-12244,183,Sprays Transport Ltd
Nottinghamshire County Council,1111/1001,Adult Social Care and Health,ASCH,Transport Related,CDA,12/05/2016,02-12248,1175.8,Abacus Cars
Nottinghamshire County Council,1111/1001,Adult Social Care and Health,ASCH,Transport Related,CDA,12/05/2016,02-12249,960,Abacus Cars
Nottinghamshire County Council,1111/1001,Adult Social Care and Health,ASCH,Transport Related,CDA,12/05/2016,02-12250,1891.6,Abacus Cars
Nottinghamshire County Council,1111/1001,Adult Social Care and Health,ASCH,Transport Related,CDA,12/05/2016,02-12265,2807.8,Ace Cars
Nottinghamshire County Council,1111/1001,Adult Social Care and Health,ASCH,Transport Related,CDA,12/05/2016,02-12271,1437.4,In Taxis
Nottinghamshire County Council,1111/1001,Adult Social Care and Health,ASCH,Transport Related,CDA,13/05/2016,02-12360,571.54,Abacus Cars
Nottinghamshire County Council,1111/1001,Adult Social Care and Health,ASCH,Transport Related,CDA,13/05/2016,02-12371,772.24,Abacus Cars
Nottinghamshire County Council,1111/1001,Adult Social Care and Health,ASCH,Transport Related,CDA,17/05/2016,02-15550,3817.8,BN Gibson Ltd
Nottinghamshire County Council,1111/1001,Adult Social Care and Health,ASCH,Transport Related,CDA,17/05/2016,02-15569,821.87,D G Private Hire Ltd
Nottinghamshire County Council,1111/1001,Adult Social Care and Health,ASCH,Transport Related,CDA,17/05/2016,02-15573,1690,D G Private Hire Ltd
Nottinghamshire County Council,1111/1001,Adult Social Care and Health,ASCH,Transport Related,CDA,17/05/2016,02-15593,76.64,Diamond Cars
Nottinghamshire County Council,1111/1001,Adult Social Care and Health,ASCH,Transport Related,CDA,17/05/2016,02-15604,845.43,BN Gibson Ltd
Nottinghamshire County Council,1111/1001,Adult Social Care and Health,ASCH,Transport Related,CDA,17/05/2016,02-15609,2163.42,[Redacted]
Nottinghamshire County Council,1111/1001,Adult Social Care and Health,ASCH,Transport Related,CDA,19/05/2016,02-15997,1044.91,Acorn Contracts
Nottinghamshire County Council,1111/1001,Adult Social Care and Health,ASCH,Transport Related,CDA,19/05/2016,02-15999,844.36,D G Private Hire Ltd
Nottinghamshire County Council,1111/1001,Adult Social Care and Health,ASCH,Transport Related,CDA,19/05/2016,02-16000,580,D G Private Hire Ltd
Nottinghamshire County Council,1111/1001,Adult Social Care and Health,ASCH,Transport Related,CDA,24/05/2016,02-16538,1111.68,Arrow Specialised Transport Ltd
Nottinghamshire County Council,1111/1001,Adult Social Care and Health,ASCH,Transport Related,CDA,24/05/2016,02-16545,611.84,Shelleys Taxis Ltd
Nottinghamshire County Council,1111/1001,Adult Social Care and Health,ASCH,Transport Related,CDA,24/05/2016,02-16559,1312.3,AAA Cabs
Nottinghamshire County Council,1111/1001,Adult Social Care and Health,ASCH,Transport Related,CDA,24/05/2016,02-16561,76.64,Diamond Cars
Nottinghamshire County Council,1111/1001,Adult Social Care and Health,ASCH,Transport Related,CDA,26/05/2016,02-16735,1682.8,Carlton Cars Ltd T/A Trent Cars
Nottinghamshire County Council,1111/1001,Adult Social Care and Health,ASCH,Transport Related,CDA,31/05/2016,02-16774,573.3,CBC Taxis Ltd
Nottinghamshire County Council,1111/1001,Adult Social Care and Health,ASCH,Transport Related,CDA,31/05/2016,02-16775,1100.7,Arrow Specialised Transport Ltd
Nottinghamshire County Council,1111/1001,Adult Social Care and Health,ASCH,Supplies & Services,DAA,18/05/2016,02-17389,5200,Mansfield District Council
Nottinghamshire County Council,1111/1001,Adult Social Care and Health,ASCH,Supplies & Services,DAA,18/05/2016,02-17406,1333.8,Nutri Pack Uk Ltd
Nottinghamshire County Council,1111/1001,Adult Social Care and Health,ASCH,Supplies & Services,DAA,23/05/2016,02-17575,2733,CPL Nottingham Ltd
Nottinghamshire County Council,1111/1001,Adult Social Care and Health,ASCH,Supplies & Services,DAA,25/05/2016,02-17443,1948,Tunstall Healthcare Uk Ltd
Nottinghamshire County Council,1111/1001,Adult Social Care and Health,ASCH,Supplies & Services,DAA,27/05/2016,02-17148,372869.95,British Red Cross Society
Nottinghamshire County Council,1111/1001,Adult Social Care and Health,ASCH,Supplies & Services,DAA,27/05/2016,02-17710,535,Calandine Lifts Ltd
Nottinghamshire County Council,1111/1001,Adult Social Care and Health,ASCH,Supplies & Services,DAA,31/05/2016,02-17070,22672.9,British Red Cross Society
Nottinghamshire County Council,1111/1001,Adult Social Care and Health,ASCH,Supplies & Services,DAA,31/05/2016,02-17095,38838.76,British Red Cross Society
Nottinghamshire County Council,1111/1001,Adult Social Care and Health,ASCH,Supplies & Services,DAA,31/05/2016,02-17774,5298.9,Nutri Pack Uk Ltd
Nottinghamshire County Council,1111/1001,Adult Social Care and Health,ASCH,Supplies & Services,DBA,05/05/2016,02-10853,682.89,Brake Bros Ltd
Nottinghamshire County Council,1111/1001,Adult Social Care and Health,ASCH,Supplies & Services,DBA,05/05/2016,02-10862,456.17,Millside Barrowcliffe Limited
Nottinghamshire County Council,1111/1001,Adult Social Care and Health,ASCH,Supplies & Services,DBA,06/05/2016,02-10866,757.95,Brake Bros Ltd
Nottinghamshire County Council,1111/1001,Adult Social Care and Health,ASCH,Supplies & Services,DBA,06/05/2016,02-10867,2136.38,Brake Bros Ltd
Nottinghamshire County Council,1111/1001,Adult Social Care and Health,ASCH,Supplies & Services,DBA,06/05/2016,02-10873,2716,Brake Bros Ltd
Nottinghamshire County Council,1111/1001,Adult Social Care and Health,ASCH,Supplies & Services,DBA,06/05/2016,02-10878,289.27,Brake Bros Ltd
Nottinghamshire County Council,1111/1001,Adult Social Care and Health,ASCH,Supplies & Services,DBA,10/05/2016,02-11970,5103.66,John Palin (Wholesale) Ltd
Nottinghamshire County Council,1111/1001,Adult Social Care and Health,ASCH,Supplies & Services,DBA,12/05/2016,02-12297,89.87,Brake Bros Ltd
Nottinghamshire County Council,1111/1001,Adult Social Care and Health,ASCH,Supplies & Services,DBA,12/05/2016,02-12302,982.75,Brake Bros Ltd
Nottinghamshire County Council,1111/1001,Adult Social Care and Health,ASCH,Supplies & Services,DBA,12/05/2016,02-12306,2360.37,Brake Bros Ltd
Nottinghamshire County Council,1111/1001,Adult Social Care and Health,ASCH,Supplies & Services,DBA,12/05/2016,02-12309,1629.43,Brake Bros Ltd
Nottinghamshire County Council,1111/1001,Adult Social Care and Health,ASCH,Supplies & Services,DBA,12/05/2016,02-12312,108.13,Brake Bros Ltd
Nottinghamshire County Council,1111/1001,Adult Social Care and Health,ASCH,Supplies & Services,DBA,17/05/2016,02-15617,3448.04,M Maloney Country Butchers & B Ltd
Nottinghamshire County Council,1111/1001,Adult Social Care and Health,ASCH,Supplies & Services,DBA,17/05/2016,02-15621,2309.77,M Maloney Country Butchers & B Ltd
Nottinghamshire County Council,1111/1001,Adult Social Care and Health,ASCH,Supplies & Services,DBA,17/05/2016,02-15625,4060.73,M Maloney Country Butchers & B Ltd
Nottinghamshire County Council,1111/1001,Adult Social Care and Health,ASCH,Supplies & Services,DBA,17/05/2016,02-15629,3992.91,M Maloney Country Butchers & B Ltd
Nottinghamshire County Council,1111/1001,Adult Social Care and Health,ASCH,Supplies & Services,DBA,17/05/2016,02-17315,878.63,Mkg Food Products Ltd
Nottinghamshire County Council,1111/1001,Adult Social Care and Health,ASCH,Supplies & Services,DBA,17/05/2016,02-17316,885.89,Mkg Food Products Ltd
Nottinghamshire County Council,1111/1001,Adult Social Care and Health,ASCH,Supplies & Services,DBA,17/05/2016,02-17318,1563.14,Mkg Food Products Ltd
Nottinghamshire County Council,1111/1001,Adult Social Care and Health,ASCH,Supplies & Services,DBA,17/05/2016,02-17319,1459.34,Mkg Food Products Ltd
Nottinghamshire County Council,1111/1001,Adult Social Care and Health,ASCH,Supplies & Services,DBA,17/05/2016,02-17326,1288.02,Sleaford Quality Foods Ltd
Nottinghamshire County Council,1111/1001,Adult Social Care and Health,ASCH,Supplies & Services,DBA,18/05/2016,02-15740,1942.95,Brake Bros Ltd
Nottinghamshire County Council,1111/1001,Adult Social Care and Health,ASCH,Supplies & Services,DBA,18/05/2016,02-15743,873.52,Brake Bros Ltd
Nottinghamshire County Council,1111/1001,Adult Social Care and Health,ASCH,Supplies & Services,DBA,18/05/2016,02-15749,1070.55,Brake Bros Ltd
Nottinghamshire County Council,1111/1001,Adult Social Care and Health,ASCH,Supplies & Services,DBA,18/05/2016,02-15752,531.06,Brake Bros Ltd
Nottinghamshire County Council,1111/1001,Adult Social Care and Health,ASCH,Supplies & Services,DBA,23/05/2016,02-16083,3561.84,M Maloney Country Butchers & B Ltd
Nottinghamshire County Council,1111/1001,Adult Social Care and Health,ASCH,Supplies & Services,DBA,23/05/2016,02-16087,5378.37,M Maloney Country Butchers & B Ltd
Nottinghamshire County Council,1111/1001,Adult Social Care and Health,ASCH,Supplies & Services,DBA,25/05/2016,02-17634,831.49,Mkg Food Products Ltd
Nottinghamshire County Council,1111/1001,Adult Social Care and Health,ASCH,Supplies & Services,DBA,26/05/2016,02-17495,515.06,Sleaford Quality Foods Ltd
Nottinghamshire County Council,1111/1001,Adult Social Care and Health,ASCH,Supplies & Services,DBA,27/05/2016,02-17744,1001.75,Mkg Food Products Ltd
Nottinghamshire County Council,1111/1001,Adult Social Care and Health,ASCH,Supplies & Services,DBA,31/05/2016,02-17099,634.25,IDC Ltd
Nottinghamshire County Council,1111/1001,Adult Social Care and Health,ASCH,Supplies & Services,DBA,31/05/2016,02-17426,853.94,IDC Ltd
Nottinghamshire County Council,1111/1001,Adult Social Care and Health,ASCH,Supplies & Services,DBA,31/05/2016,02-17444,798.03,IDC Ltd
Nottinghamshire County Council,1111/1001,Adult Social Care and Health,ASCH,Supplies & Services,DBA,31/05/2016,02-17773,796.17,Mkg Food Products Ltd
Nottinghamshire County Council,1111/1001,Adult Social Care and Health,ASCH,Supplies & Services,DBA,31/05/2016,02-17775,1562.5,Foodblenders Ltd
Nottinghamshire County Council,1111/1001,Adult Social Care and Health,ASCH,Supplies & Services,DEA,09/05/2016,02-11876,72.28,Security Plus Ltd
Nottinghamshire County Council,1111/1001,Adult Social Care and Health,ASCH,Supplies & Services,DEA,12/05/2016,02-17193,3333,Notts Deaf Society Ltd
Nottinghamshire County Council,1111/1001,Adult Social Care and Health,ASCH,Supplies & Services,DEA,13/05/2016,02-17143,899,Bsi Accounts Receivable
Nottinghamshire County Council,1111/1001,Adult Social Care and Health,ASCH,Supplies & Services,DEA,17/05/2016,02-17310,1133.75,[Redacted]
Nottinghamshire County Council,1111/1001,Adult Social Care and Health,ASCH,Supplies & Services,DEA,20/05/2016,02-17044,748,Carers Uk
Nottinghamshire County Council,1111/1001,Adult Social Care and Health,ASCH,Supplies & Services,DEA,20/05/2016,02-17501,590.6,Heating & Process Eng Serv Ltd
Nottinghamshire County Council,1111/1001,Adult Social Care and Health,ASCH,Supplies & Services,DEA,27/05/2016,02-16965,650,Skills For Care
Nottinghamshire County Council,1111/1001,Adult Social Care and Health,ASCH,Supplies & Services,DEA,27/05/2016,02-17753,2489,Age Uk Nottm & Notts
Nottinghamshire County Council,1111/1001,Adult Social Care and Health,ASCH,Supplies & Services,DEA,31/05/2016,02-15613,162.63,Security Plus Ltd
Nottinghamshire County Council,1111/1001,Adult Social Care and Health,ASCH,Supplies & Services,DEA,31/05/2016,02-17803,1105,[Redacted]
Nottinghamshire County Council,1111/1001,Adult Social Care and Health,ASCH,Supplies & Services,DFA,12/05/2016,02-12274,668.47,Lantec Services Ltd
Nottinghamshire County Council,1111/1001,Adult Social Care and Health,ASCH,Supplies & Services,DFA,18/05/2016,02-17370,1540,Trojan Consultants Ltd
Nottinghamshire County Council,1111/1001,Adult Social Care and Health,ASCH,Supplies & Services,DFA,23/05/2016,02-17595,1008.1,Reliance High-Tech Ltd
Nottinghamshire County Council,1111/1001,Adult Social Care and Health,ASCH,Supplies & Services,DGA,25/05/2016,02-16706,2146.68,P & P Taxis
Nottinghamshire County Council,1111/1001,Adult Social Care and Health,ASCH,Supplies & Services,DHA,18/05/2016,02-15737,11710,Mansfield Community Voluntary Serv
Nottinghamshire County Council,1111/1001,Adult Social Care and Health,ASCH,Supplies & Services,DHA,24/05/2016,02-16576,10985,Our Centre
Nottinghamshire County Council,1111/1001,Adult Social Care and Health,ASCH,Supplies & Services,DHA,31/05/2016,02-16769,11938,Bassetlaw Action Centre
Nottinghamshire County Council,1111/1001,Adult Social Care and Health,ASCH,Supplies & Services,DKA,27/05/2016,02-17148,21255.78,British Red Cross Society
Nottinghamshire County Council,1111/1001,Adult Social Care and Health,ASCH,Supplies & Services,DKA,31/05/2016,02-17095,372.5,British Red Cross Society
Nottinghamshire County Council,1111/1001,Adult Social Care and Health,ASCH,Third Party Payments,EAA,04/05/2016,02-16938,1442.22,Bassetlaw District Council
Nottinghamshire County Council,1111/1001,Adult Social Care and Health,ASCH,Third Party Payments,EBA,09/05/2016,02-17052,54682.5,Framework Housing Association
Nottinghamshire County Council,1111/1001,Adult Social Care and Health,ASCH,Third Party Payments,EBA,19/05/2016,02-16008,5096,Metropolitan Housing Trust
Nottinghamshire County Council,1111/1001,Adult Social Care and Health,ASCH,Third Party Payments,EBA,19/05/2016,02-16009,101500.61,Framework Housing Association
Nottinghamshire County Council,1111/1001,Adult Social Care and Health,ASCH,Third Party Payments,EBA,19/05/2016,02-16010,1338.72,NCHA Ltd
Nottinghamshire County Council,1111/1001,Adult Social Care and Health,ASCH,Third Party Payments,EBA,19/05/2016,02-17445,18897.91,Framework Housing Association
Nottinghamshire County Council,1111/1001,Adult Social Care and Health,ASCH,Third Party Payments,EBA,19/05/2016,02-17446,18897.91,Framework Housing Association
Nottinghamshire County Council,1111/1001,Adult Social Care and Health,ASCH,Third Party Payments,EBA,20/05/2016,02-17518,54682.5,Framework Housing Association
Nottinghamshire County Council,1111/1001,Adult Social Care and Health,ASCH,Third Party Payments,EBA,31/05/2016,02-17216,17916.66,Framework Housing Association
Nottinghamshire County Council,1111/1001,Adult Social Care and Health,ASCH,Third Party Payments,EBA,31/05/2016,02-17243,22916.66,Framework Housing Association
Nottinghamshire County Council,1111/1001,Adult Social Care and Health,ASCH,Third Party Payments,ECA,03/05/2016,02-10185,1040,Beeches Nursing Home
Nottinghamshire County Council,1111/1001,Adult Social Care and Health,ASCH,Third Party Payments,ECA,03/05/2016,02-10187,112,Berry Hill Park
Nottinghamshire County Council,1111/1001,Adult Social Care and Health,ASCH,Third Party Payments,ECA,03/05/2016,02-10201,448,Eton Park Residential Home-In Admin
Nottinghamshire County Council,1111/1001,Adult Social Care and Health,ASCH,Third Party Payments,ECA,03/05/2016,02-10206,448,Eton Park Residential Home-In Admin
Nottinghamshire County Council,1111/1001,Adult Social Care and Health,ASCH,Third Party Payments,ECA,03/05/2016,02-10235,480,Broadgate Nursing Home
Nottinghamshire County Council,1111/1001,Adult Social Care and Health,ASCH,Third Party Payments,ECA,03/05/2016,02-10237,496,Victoria Care Home
Nottinghamshire County Council,1111/1001,Adult Social Care and Health,ASCH,Third Party Payments,ECA,03/05/2016,02-10241,1344,Nightingale Care Home
Nottinghamshire County Council,1111/1001,Adult Social Care and Health,ASCH,Third Party Payments,ECA,03/05/2016,02-10243,1344,Nightingale Care Home
Nottinghamshire County Council,1111/1001,Adult Social Care and Health,ASCH,Third Party Payments,ECA,03/05/2016,02-10249,224,Nightingale Care Home
Nottinghamshire County Council,1111/1001,Adult Social Care and Health,ASCH,Third Party Payments,ECA,03/05/2016,02-10255,1344,Nightingale Care Home
Nottinghamshire County Council,1111/1001,Adult Social Care and Health,ASCH,Third Party Payments,ECA,03/05/2016,02-10295,320,Carlton Care Home
Nottinghamshire County Council,1111/1001,Adult Social Care and Health,ASCH,Third Party Payments,ECA,03/05/2016,02-10302,640,Chengun Care Homes Ltd
Nottinghamshire County Council,1111/1001,Adult Social Care and Health,ASCH,Third Party Payments,ECA,04/05/2016,02-10539,448,Nightingale Care Home
Nottinghamshire County Council,1111/1001,Adult Social Care and Health,ASCH,Third Party Payments,ECA,04/05/2016,02-10541,448,Nightingale Care Home
Nottinghamshire County Council,1111/1001,Adult Social Care and Health,ASCH,Third Party Payments,ECA,04/05/2016,02-10550,448,Nightingale Care Home
Nottinghamshire County Council,1111/1001,Adult Social Care and Health,ASCH,Third Party Payments,ECA,09/05/2016,02-11884,864,Landermeads Nursing Home
Nottinghamshire County Council,1111/1001,Adult Social Care and Health,ASCH,Third Party Payments,ECA,16/05/2016,02-12433,448,Bramcote Hills Care Home
Nottinghamshire County Council,1111/1001,Adult Social Care and Health,ASCH,Third Party Payments,ECA,16/05/2016,02-12435,448,Bramcote Hills Care Home
Nottinghamshire County Council,1111/1001,Adult Social Care and Health,ASCH,Third Party Payments,ECA,16/05/2016,02-12438,448,Bramcote Hills Care Home
Nottinghamshire County Council,1111/1001,Adult Social Care and Health,ASCH,Third Party Payments,ECA,16/05/2016,02-12440,448,Bramcote Hills Care Home
Nottinghamshire County Council,1111/1001,Adult Social Care and Health,ASCH,Third Party Payments,ECA,16/05/2016,02-12442,448,Bramcote Hills Care Home
Nottinghamshire County Council,1111/1001,Adult Social Care and Health,ASCH,Third Party Payments,ECA,16/05/2016,02-12444,448,Bramcote Hills Care Home
Nottinghamshire County Council,1111/1001,Adult Social Care and Health,ASCH,Third Party Payments,ECA,16/05/2016,02-12446,8654.56,Bramcote Hills Care Home
Nottinghamshire County Council,1111/1001,Adult Social Care and Health,ASCH,Third Party Payments,ECA,16/05/2016,02-12448,448,Bramcote Hills Care Home
Nottinghamshire County Council,1111/1001,Adult Social Care and Health,ASCH,Third Party Payments,ECA,16/05/2016,02-12450,448,Bramcote Hills Care Home
Nottinghamshire County Council,1111/1001,Adult Social Care and Health,ASCH,Third Party Payments,ECA,16/05/2016,02-12452,448,Bramcote Hills Care Home
Nottinghamshire County Council,1111/1001,Adult Social Care and Health,ASCH,Third Party Payments,ECA,16/05/2016,02-12474,448,The Grange Nursing Home
Nottinghamshire County Council,1111/1001,Adult Social Care and Health,ASCH,Third Party Payments,ECA,16/05/2016,02-12486,448,Belvoir Vale
Nottinghamshire County Council,1111/1001,Adult Social Care and Health,ASCH,Third Party Payments,ECA,16/05/2016,02-12497,448,Belle Vue
Nottinghamshire County Council,1111/1001,Adult Social Care and Health,ASCH,Third Party Payments,ECA,16/05/2016,02-12505,-5808,Ashcroft
Nottinghamshire County Council,1111/1001,Adult Social Care and Health,ASCH,Third Party Payments,ECA,16/05/2016,02-12508,448,Ashcroft
Nottinghamshire County Council,1111/1001,Adult Social Care and Health,ASCH,Third Party Payments,ECA,16/05/2016,02-12512,448,Ashcroft
Nottinghamshire County Council,1111/1001,Adult Social Care and Health,ASCH,Third Party Payments,ECA,16/05/2016,02-12516,448,Ashcroft
Nottinghamshire County Council,1111/1001,Adult Social Care and Health,ASCH,Third Party Payments,ECA,16/05/2016,02-12520,448,Ashcroft
Nottinghamshire County Council,1111/1001,Adult Social Care and Health,ASCH,Third Party Payments,ECA,16/05/2016,02-12522,448,Ashcroft
Nottinghamshire County Council,1111/1001,Adult Social Care and Health,ASCH,Third Party Payments,ECA,16/05/2016,02-12524,448,Ashcroft
Nottinghamshire County Council,1111/1001,Adult Social Care and Health,ASCH,Third Party Payments,ECA,16/05/2016,02-12528,448,Ashcroft
Nottinghamshire County Council,1111/1001,Adult Social Care and Health,ASCH,Third Party Payments,ECA,16/05/2016,02-12530,448,Ashcroft
Nottinghamshire County Council,1111/1001,Adult Social Care and Health,ASCH,Third Party Payments,ECA,16/05/2016,02-12534,448,Ashcroft
Nottinghamshire County Council,1111/1001,Adult Social Care and Health,ASCH,Third Party Payments,ECA,16/05/2016,02-12536,448,Ashcroft
Nottinghamshire County Council,1111/1001,Adult Social Care and Health,ASCH,Third Party Payments,ECA,16/05/2016,02-12539,448,Ashcroft
Nottinghamshire County Council,1111/1001,Adult Social Care and Health,ASCH,Third Party Payments,ECA,16/05/2016,02-12542,448,Ashcroft
Nottinghamshire County Council,1111/1001,Adult Social Care and Health,ASCH,Third Party Payments,ECA,16/05/2016,02-12544,448,Kingsthorpe View Nursing Home
Nottinghamshire County Council,1111/1001,Adult Social Care and Health,ASCH,Third Party Payments,ECA,16/05/2016,02-12548,896,Kingsthorpe View Nursing Home
Nottinghamshire County Council,1111/1001,Adult Social Care and Health,ASCH,Third Party Payments,ECA,16/05/2016,02-12560,832,HC1 Ltd Re. Oaklands (Whaley Thorns
Nottinghamshire County Council,1111/1001,Adult Social Care and Health,ASCH,Third Party Payments,ECA,16/05/2016,02-12563,448,Beauvale Nursing Home
Nottinghamshire County Council,1111/1001,Adult Social Care and Health,ASCH,Third Party Payments,ECA,16/05/2016,02-12565,448,Beauvale Nursing Home
Nottinghamshire County Council,1111/1001,Adult Social Care and Health,ASCH,Third Party Payments,ECA,16/05/2016,02-12568,448,Beauvale Nursing Home
Nottinghamshire County Council,1111/1001,Adult Social Care and Health,ASCH,Third Party Payments,ECA,16/05/2016,02-12572,448,Beauvale Nursing Home
Nottinghamshire County Council,1111/1001,Adult Social Care and Health,ASCH,Third Party Payments,ECA,16/05/2016,02-12574,448,Beauvale Nursing Home
Nottinghamshire County Council,1111/1001,Adult Social Care and Health,ASCH,Third Party Payments,ECA,16/05/2016,02-12576,448,Beauvale Nursing Home
Nottinghamshire County Council,1111/1001,Adult Social Care and Health,ASCH,Third Party Payments,ECA,16/05/2016,02-12578,448,Beauvale Nursing Home
Nottinghamshire County Council,1111/1001,Adult Social Care and Health,ASCH,Third Party Payments,ECA,16/05/2016,02-12580,448,Beauvale Nursing Home
Nottinghamshire County Council,1111/1001,Adult Social Care and Health,ASCH,Third Party Payments,ECA,16/05/2016,02-12582,448,Beauvale Nursing Home
Nottinghamshire County Council,1111/1001,Adult Social Care and Health,ASCH,Third Party Payments,ECA,16/05/2016,02-12585,448,Beauvale Nursing Home
Nottinghamshire County Council,1111/1001,Adult Social Care and Health,ASCH,Third Party Payments,ECA,16/05/2016,02-12587,656,Beauvale Nursing Home
Nottinghamshire County Council,1111/1001,Adult Social Care and Health,ASCH,Third Party Payments,ECA,16/05/2016,02-12589,448,Beauvale Nursing Home
Nottinghamshire County Council,1111/1001,Adult Social Care and Health,ASCH,Third Party Payments,ECA,16/05/2016,02-12591,448,Beauvale Nursing Home
Nottinghamshire County Council,1111/1001,Adult Social Care and Health,ASCH,Third Party Payments,ECA,16/05/2016,02-12605,448,Silverwood Care Home
Nottinghamshire County Council,1111/1001,Adult Social Care and Health,ASCH,Third Party Payments,ECA,16/05/2016,02-12610,448,Silverwood Care Home
Nottinghamshire County Council,1111/1001,Adult Social Care and Health,ASCH,Third Party Payments,ECA,16/05/2016,02-12612,448,Silverwood Care Home
Nottinghamshire County Council,1111/1001,Adult Social Care and Health,ASCH,Third Party Payments,ECA,16/05/2016,02-12615,448,Silverwood Care Home
Nottinghamshire County Council,1111/1001,Adult Social Care and Health,ASCH,Third Party Payments,ECA,16/05/2016,02-12618,448,Silverwood Care Home
Nottinghamshire County Council,1111/1001,Adult Social Care and Health,ASCH,Third Party Payments,ECA,16/05/2016,02-12620,448,Silverwood Care Home
Nottinghamshire County Council,1111/1001,Adult Social Care and Health,ASCH,Third Party Payments,ECA,16/05/2016,02-12623,448,Silverwood Care Home
Nottinghamshire County Council,1111/1001,Adult Social Care and Health,ASCH,Third Party Payments,ECA,16/05/2016,02-12626,448,Silverwood Care Home
Nottinghamshire County Council,1111/1001,Adult Social Care and Health,ASCH,Third Party Payments,ECA,16/05/2016,02-12628,832,Silverwood Care Home
Nottinghamshire County Council,1111/1001,Adult Social Care and Health,ASCH,Third Party Payments,ECA,16/05/2016,02-12630,448,Silverwood Care Home
Nottinghamshire County Council,1111/1001,Adult Social Care and Health,ASCH,Third Party Payments,ECA,16/05/2016,02-12632,448,Silverwood Care Home
Nottinghamshire County Council,1111/1001,Adult Social Care and Health,ASCH,Third Party Payments,ECA,16/05/2016,02-12635,448,Silverwood Care Home
Nottinghamshire County Council,1111/1001,Adult Social Care and Health,ASCH,Third Party Payments,ECA,16/05/2016,02-12637,448,Silverwood Care Home
Nottinghamshire County Council,1111/1001,Adult Social Care and Health,ASCH,Third Party Payments,ECA,16/05/2016,02-12639,448,Silverwood Care Home
Nottinghamshire County Council,1111/1001,Adult Social Care and Health,ASCH,Third Party Payments,ECA,16/05/2016,02-12641,1504,Silverwood Care Home
Nottinghamshire County Council,1111/1001,Adult Social Care and Health,ASCH,Third Party Payments,ECA,16/05/2016,02-12643,448,Silverwood Care Home
Nottinghamshire County Council,1111/1001,Adult Social Care and Health,ASCH,Third Party Payments,ECA,16/05/2016,02-12647,448,Silverwood Care Home
Nottinghamshire County Council,1111/1001,Adult Social Care and Health,ASCH,Third Party Payments,ECA,16/05/2016,02-12656,448,Spring Water Lodge
Nottinghamshire County Council,1111/1001,Adult Social Care and Health,ASCH,Third Party Payments,ECA,16/05/2016,02-12659,448,Spring Water Lodge
Nottinghamshire County Council,1111/1001,Adult Social Care and Health,ASCH,Third Party Payments,ECA,16/05/2016,02-12661,448,Spring Water Lodge
Nottinghamshire County Council,1111/1001,Adult Social Care and Health,ASCH,Third Party Payments,ECA,16/05/2016,02-12669,448,Spring Water Lodge
Nottinghamshire County Council,1111/1001,Adult Social Care and Health,ASCH,Third Party Payments,ECA,16/05/2016,02-12673,448,Spring Water Lodge
Nottinghamshire County Council,1111/1001,Adult Social Care and Health,ASCH,Third Party Payments,ECA,16/05/2016,02-12679,448,Spring Water Lodge
Nottinghamshire County Council,1111/1001,Adult Social Care and Health,ASCH,Third Party Payments,ECA,16/05/2016,02-12681,448,Spring Water Lodge
Nottinghamshire County Council,1111/1001,Adult Social Care and Health,ASCH,Third Party Payments,ECA,16/05/2016,02-12683,448,Spring Water Lodge
Nottinghamshire County Council,1111/1001,Adult Social Care and Health,ASCH,Third Party Payments,ECA,16/05/2016,02-12710,448,Oaks Care Centre
Nottinghamshire County Council,1111/1001,Adult Social Care and Health,ASCH,Third Party Payments,ECA,16/05/2016,02-12713,448,Oaks Care Centre
Nottinghamshire County Council,1111/1001,Adult Social Care and Health,ASCH,Third Party Payments,ECA,16/05/2016,02-12719,448,Oaks Care Centre
Nottinghamshire County Council,1111/1001,Adult Social Care and Health,ASCH,Third Party Payments,ECA,16/05/2016,02-12723,448,Oaks Care Centre
Nottinghamshire County Council,1111/1001,Adult Social Care and Health,ASCH,Third Party Payments,ECA,16/05/2016,02-12726,448,Oaks Care Centre
Nottinghamshire County Council,1111/1001,Adult Social Care and Health,ASCH,Third Party Payments,ECA,16/05/2016,02-12743,448,Charnwood House
Nottinghamshire County Council,1111/1001,Adult Social Care and Health,ASCH,Third Party Payments,ECA,16/05/2016,02-12745,448,Charnwood House
Nottinghamshire County Council,1111/1001,Adult Social Care and Health,ASCH,Third Party Payments,ECA,16/05/2016,02-12747,448,Charnwood House
Nottinghamshire County Council,1111/1001,Adult Social Care and Health,ASCH,Third Party Payments,ECA,16/05/2016,02-12749,448,Charnwood House
Nottinghamshire County Council,1111/1001,Adult Social Care and Health,ASCH,Third Party Payments,ECA,16/05/2016,02-12753,976,Charnwood House
Nottinghamshire County Council,1111/1001,Adult Social Care and Health,ASCH,Third Party Payments,ECA,16/05/2016,02-12755,448,Charnwood House
Nottinghamshire County Council,1111/1001,Adult Social Care and Health,ASCH,Third Party Payments,ECA,16/05/2016,02-12758,448,Charnwood House
Nottinghamshire County Council,1111/1001,Adult Social Care and Health,ASCH,Third Party Payments,ECA,16/05/2016,02-12761,448,Charnwood House
Nottinghamshire County Council,1111/1001,Adult Social Care and Health,ASCH,Third Party Payments,ECA,16/05/2016,02-12765,448,Charnwood House
Nottinghamshire County Council,1111/1001,Adult Social Care and Health,ASCH,Third Party Payments,ECA,16/05/2016,02-12767,1888,Charnwood House
Nottinghamshire County Council,1111/1001,Adult Social Care and Health,ASCH,Third Party Payments,ECA,16/05/2016,02-12769,544,Charnwood House
Nottinghamshire County Council,1111/1001,Adult Social Care and Health,ASCH,Third Party Payments,ECA,16/05/2016,02-12771,448,Four Seasons (Evedale) Ltd Re Charn
Nottinghamshire County Council,1111/1001,Adult Social Care and Health,ASCH,Third Party Payments,ECA,16/05/2016,02-12775,448,Four Seasons (Evedale) Ltd Re Charn
Nottinghamshire County Council,1111/1001,Adult Social Care and Health,ASCH,Third Party Payments,ECA,16/05/2016,02-12777,448,Four Seasons (Evedale) Ltd Re Charn
Nottinghamshire County Council,1111/1001,Adult Social Care and Health,ASCH,Third Party Payments,ECA,16/05/2016,02-12781,448,Four Seasons (Evedale) Ltd Re Sycam
Nottinghamshire County Council,1111/1001,Adult Social Care and Health,ASCH,Third Party Payments,ECA,16/05/2016,02-12783,448,Four Seasons (Evedale) Ltd Re Sycam
Nottinghamshire County Council,1111/1001,Adult Social Care and Health,ASCH,Third Party Payments,ECA,16/05/2016,02-12786,448,Four Seasons (Evedale) Ltd Re Sycam
Nottinghamshire County Council,1111/1001,Adult Social Care and Health,ASCH,Third Party Payments,ECA,16/05/2016,02-12788,448,Four Seasons (Evedale) Ltd Re Sycam
Nottinghamshire County Council,1111/1001,Adult Social Care and Health,ASCH,Third Party Payments,ECA,16/05/2016,02-12792,448,Four Seasons (Evedale) Ltd Re Sycam
Nottinghamshire County Council,1111/1001,Adult Social Care and Health,ASCH,Third Party Payments,ECA,16/05/2016,02-12798,448,Four Seasons (Evedale) Ltd Re Sycam
Nottinghamshire County Council,1111/1001,Adult Social Care and Health,ASCH,Third Party Payments,ECA,16/05/2016,02-12800,1056,Four Seasons (Evedale) Ltd Re Sycam
Nottinghamshire County Council,1111/1001,Adult Social Care and Health,ASCH,Third Party Payments,ECA,16/05/2016,02-12803,448,Howson Care Centre
Nottinghamshire County Council,1111/1001,Adult Social Care and Health,ASCH,Third Party Payments,ECA,16/05/2016,02-12805,448,Howson Care Centre
Nottinghamshire County Council,1111/1001,Adult Social Care and Health,ASCH,Third Party Payments,ECA,16/05/2016,02-12807,616.56,Howson Care Centre
Nottinghamshire County Council,1111/1001,Adult Social Care and Health,ASCH,Third Party Payments,ECA,16/05/2016,02-12809,616.56,Howson Care Centre
Nottinghamshire County Council,1111/1001,Adult Social Care and Health,ASCH,Third Party Payments,ECA,16/05/2016,02-12811,448,Howson Care Centre
Nottinghamshire County Council,1111/1001,Adult Social Care and Health,ASCH,Third Party Payments,ECA,16/05/2016,02-12813,448,Howson Care Centre
Nottinghamshire County Council,1111/1001,Adult Social Care and Health,ASCH,Third Party Payments,ECA,16/05/2016,02-12817,448,Churchfield Drive Care Home
Nottinghamshire County Council,1111/1001,Adult Social Care and Health,ASCH,Third Party Payments,ECA,16/05/2016,02-12821,448,Churchfield Drive Care Home
Nottinghamshire County Council,1111/1001,Adult Social Care and Health,ASCH,Third Party Payments,ECA,16/05/2016,02-12845,448,Churchfield Nursing Home
Nottinghamshire County Council,1111/1001,Adult Social Care and Health,ASCH,Third Party Payments,ECA,16/05/2016,02-12847,448,Churchfield Nursing Home
Nottinghamshire County Council,1111/1001,Adult Social Care and Health,ASCH,Third Party Payments,ECA,16/05/2016,02-12849,448,Churchfield Nursing Home
Nottinghamshire County Council,1111/1001,Adult Social Care and Health,ASCH,Third Party Payments,ECA,16/05/2016,02-12851,448,Churchfield Nursing Home
Nottinghamshire County Council,1111/1001,Adult Social Care and Health,ASCH,Third Party Payments,ECA,16/05/2016,02-12853,448,Churchfield Nursing Home
Nottinghamshire County Council,1111/1001,Adult Social Care and Health,ASCH,Third Party Payments,ECA,16/05/2016,02-12855,448,Churchfield Nursing Home
Nottinghamshire County Council,1111/1001,Adult Social Care and Health,ASCH,Third Party Payments,ECA,16/05/2016,02-12857,448,Churchfield Nursing Home
Nottinghamshire County Council,1111/1001,Adult Social Care and Health,ASCH,Third Party Payments,ECA,16/05/2016,02-12859,448,Churchfield Nursing Home
